'DEPARTMENT_FAMILY,ENTITY,PAYMENT_DATE,EXPENSE_TYPE,EXPENSE_AREA,SUPPLIER,TRANSACTION_NUMBER, AMOUNT ,DESCRIPTION
MINISTRY OF JUSTICE,LEGAL AID AGENCY,31/08/2016,Higher Crime,LEGAL AID FUND,ABBEY SOLICITORS,1048397:145109630," 44,971.20 ",Legal Aid Payment Higher Crime
MINISTRY OF JUSTICE,LEGAL AID AGENCY,31/08/2016,Higher Crime,LEGAL AID FUND,ABBEY SOLICITORS,1048397:145133763," 89,975.11 ",Legal Aid Payment Higher Crime
MINISTRY OF JUSTICE,LEGAL AID AGENCY,31/08/2016,Legal Help,LEGAL AID FUND,ABBOTSTONE LAW LLP,1045430:145131425," 78,010.00 ",Legal Aid Payment Legal Help
MINISTRY OF JUSTICE,LEGAL AID AGENCY,31/08/2016,Legal Help,LEGAL AID FUND,ABR SOLICITORS,1048532:145131017," 25,847.00 ",Legal Aid Payment Legal Help
MINISTRY OF JUSTICE,LEGAL AID AGENCY,10/08/2016,Higher Crime,LEGAL AID FUND,ABV SOLICITORS,1035586:144981398," 65,378.40 ",Legal Aid Payment Higher Crime
MINISTRY OF JUSTICE,LEGAL AID AGENCY,18/08/2016,Higher Crime,LEGAL AID FUND,ABV SOLICITORS,1039278:144989674," 30,518.02 ",Legal Aid Payment Higher Crime
MINISTRY OF JUSTICE,LEGAL AID AGENCY,18/08/2016,Higher Crime,LEGAL AID FUND,ABV SOLICITORS,1039278:144989663," 51,085.10 ",Legal Aid Payment Higher Crime
MINISTRY OF JUSTICE,LEGAL AID AGENCY,31/08/2016,Lower Crime,LEGAL AID FUND,ABV SOLICITORS,1048422:145131462," 80,800.00 ",Legal Aid Payment Lower Crime
MINISTRY OF JUSTICE,LEGAL AID AGENCY,31/08/2016,Higher Crime,LEGAL AID FUND,ABV SOLICITORS,1048422:145133866," 105,857.75 ",Legal Aid Payment Higher Crime
MINISTRY OF JUSTICE,LEGAL AID AGENCY,31/08/2016,Lower Crime,LEGAL AID FUND,ACA LAW LTD,1048705:145132255," 35,012.00 ",Legal Aid Payment Lower Crime
MINISTRY OF JUSTICE,LEGAL AID AGENCY,31/08/2016,Lower Crime,LEGAL AID FUND,ACHOM & PARTNERS,1047981:145132823," 26,519.00 ",Legal Aid Payment Lower Crime
MINISTRY OF JUSTICE,LEGAL AID AGENCY,10/08/2016,Higher Crime,LEGAL AID FUND,ADH LAW,1035581:144948938," 26,507.10 ",Legal Aid Payment Higher Crime
MINISTRY OF JUSTICE,LEGAL AID AGENCY,03/08/2016,Higher Crime,LEGAL AID FUND,ADVICE WISE SOLICITORS,1028563:144896359," 38,670.16 ",Legal Aid Payment Higher Crime
MINISTRY OF JUSTICE,LEGAL AID AGENCY,10/08/2016,Higher Crime,LEGAL AID FUND,AHMED HOSSAIN,1035181:144937776," 31,084.44 ",Legal Aid Payment Higher Crime
MINISTRY OF JUSTICE,LEGAL AID AGENCY,31/08/2016,Legal Help,LEGAL AID FUND,ALASTAIR BATEMAN & CO,1048630:145130746," 47,476.00 ",Legal Aid Payment Legal Help
MINISTRY OF JUSTICE,LEGAL AID AGENCY,31/08/2016,Lower Crime,LEGAL AID FUND,ALBIN & CO LTD,1048391:145131511," 40,000.00 ",Legal Aid Payment Lower Crime
MINISTRY OF JUSTICE,LEGAL AID AGENCY,31/08/2016,Lower Crime,LEGAL AID FUND,ALDERSON LAW LLP,1045539:145131797," 30,800.00 ",Legal Aid Payment Lower Crime
MINISTRY OF JUSTICE,LEGAL AID AGENCY,03/08/2016,Lower Crime,LEGAL AID FUND,ALDRIDGE BROWNLEE SOLICITORS LLP,1030313:144844580,"-27,300.00 ",Legal Aid Payment Lower Crime
MINISTRY OF JUSTICE,LEGAL AID AGENCY,10/08/2016,Higher Crime,LEGAL AID FUND,ALEX JAMIESON,1035476:144927277," 31,717.24 ",Legal Aid Payment Higher Crime
MINISTRY OF JUSTICE,LEGAL AID AGENCY,24/08/2016,Civil Representation,LEGAL AID FUND,ALEXA R STOREY-REA,1041981:145006085,"-33,048.00 ",Legal Aid Payment Civil Representation
MINISTRY OF JUSTICE,LEGAL AID AGENCY,24/08/2016,Civil Representation,LEGAL AID FUND,ALEXA R STOREY-REA,1041981:144954052," 31,320.00 ",Legal Aid Payment Civil Representation
MINISTRY OF JUSTICE,LEGAL AID AGENCY,31/08/2016,Lower Crime,LEGAL AID FUND,ALEXANDER BENNETT,1045519:145131568," 27,000.00 ",Legal Aid Payment Lower Crime
MINISTRY OF JUSTICE,LEGAL AID AGENCY,03/08/2016,Higher Crime,LEGAL AID FUND,ALEXANDER CAMERON QC,1028445:144871944," 128,400.00 ",Legal Aid Payment Higher Crime
MINISTRY OF JUSTICE,LEGAL AID AGENCY,18/08/2016,Civil Representation,LEGAL AID FUND,ALEXANDER GASK,1037756:145043395," 25,330.80 ",Legal Aid Payment Civil Representation
MINISTRY OF JUSTICE,LEGAL AID AGENCY,10/08/2016,Higher Crime,LEGAL AID FUND,ALEXANDER UPTON,1033061:144987585," 49,520.00 ",Legal Aid Payment Higher Crime
MINISTRY OF JUSTICE,LEGAL AID AGENCY,03/08/2016,Higher Crime,LEGAL AID FUND,ALI & CO,1028679:144886080," 65,456.66 ",Legal Aid Payment Higher Crime
MINISTRY OF JUSTICE,LEGAL AID AGENCY,18/08/2016,Higher Crime,LEGAL AID FUND,ALI N BAJWA QC,1038670:145000499," 31,318.78 ",Legal Aid Payment Higher Crime
MINISTRY OF JUSTICE,LEGAL AID AGENCY,03/08/2016,Higher Crime,LEGAL AID FUND,ALISON C PRYOR,1027903:144876519," 31,264.34 ",Legal Aid Payment Higher Crime
MINISTRY OF JUSTICE,LEGAL AID AGENCY,10/08/2016,Civil Representation,LEGAL AID FUND,ALISON D MOORE,1034400:144907875," 81,601.28 ",Legal Aid Payment Civil Representation
MINISTRY OF JUSTICE,LEGAL AID AGENCY,10/08/2016,Civil Representation,LEGAL AID FUND,ALISON S GRIEF,1032643:144953023," 68,619.00 ",Legal Aid Payment Civil Representation
MINISTRY OF JUSTICE,LEGAL AID AGENCY,10/08/2016,Higher Crime,LEGAL AID FUND,ALISTER S WEBSTER QC,1032947:144987688," 92,200.00 ",Legal Aid Payment Higher Crime
MINISTRY OF JUSTICE,LEGAL AID AGENCY,31/08/2016,Lower Crime,LEGAL AID FUND,ALLEN HOOLE SOLICITORS,1048143:145131492," 25,000.00 ",Legal Aid Payment Lower Crime
MINISTRY OF JUSTICE,LEGAL AID AGENCY,31/08/2016,Lower Crime,LEGAL AID FUND,ALLEN HOOLE SOLICITORS,1049208:145131535," 43,600.00 ",Legal Aid Payment Lower Crime
MINISTRY OF JUSTICE,LEGAL AID AGENCY,03/08/2016,Higher Crime,LEGAL AID FUND,ALTAF SOLICITORS LTD,1031424:144896613," 35,394.22 ",Legal Aid Payment Higher Crime
MINISTRY OF JUSTICE,LEGAL AID AGENCY,03/08/2016,Civil Representation,LEGAL AID FUND,AMANDA L CRANNY,1031926:144870623,"-29,927.98 ",Legal Aid Payment Civil Representation
MINISTRY OF JUSTICE,LEGAL AID AGENCY,01/08/2016,Civil Representation,LEGAL AID FUND,AMBER LEGAL,1027609:140625586,"-29,641.78 ",Legal Aid Payment Civil Representation
MINISTRY OF JUSTICE,LEGAL AID AGENCY,01/08/2016,Civil Representation,LEGAL AID FUND,AMBER LEGAL,1027609:140625584,"-26,655.05 ",Legal Aid Payment Civil Representation
MINISTRY OF JUSTICE,LEGAL AID AGENCY,03/08/2016,Higher Crime,LEGAL AID FUND,ANDERSONS SOLICITORS,1031726:144866289," 62,515.99 ",Legal Aid Payment Higher Crime
MINISTRY OF JUSTICE,LEGAL AID AGENCY,24/08/2016,Higher Crime,LEGAL AID FUND,ANDREW J HALL QC,1042048:145098074," 61,595.71 ",Legal Aid Payment Higher Crime
MINISTRY OF JUSTICE,LEGAL AID AGENCY,03/08/2016,Higher Crime,LEGAL AID FUND,ANDREW J O'BYRNE QC,1029737:144881574," 48,360.00 ",Legal Aid Payment Higher Crime
MINISTRY OF JUSTICE,LEGAL AID AGENCY,10/08/2016,Higher Crime,LEGAL AID FUND,ANDREW W MCGEE,1032736:144954870," 74,960.00 ",Legal Aid Payment Higher Crime
MINISTRY OF JUSTICE,LEGAL AID AGENCY,31/08/2016,Higher Crime,LEGAL AID FUND,ANEURIN BREWER,1047755:145134327," 34,631.76 ",Legal Aid Payment Higher Crime
MINISTRY OF JUSTICE,LEGAL AID AGENCY,24/08/2016,Civil Representation,LEGAL AID FUND,ANGELS SOLICITORS LLP,1044602:145064476," 27,378.10 ",Legal Aid Payment Civil Representation
MINISTRY OF JUSTICE,LEGAL AID AGENCY,31/08/2016,Civil Representation,LEGAL AID FUND,ANTHONY KING & COMPANY,1049546:3000000913480028," 41,136.86 ",Legal Aid Payment Civil Representation
MINISTRY OF JUSTICE,LEGAL AID AGENCY,31/08/2016,Civil Representation,LEGAL AID FUND,ANTHONY MORRIS LTD,1049059:145127519," 25,468.53 ",Legal Aid Payment Civil Representation
MINISTRY OF JUSTICE,LEGAL AID AGENCY,03/08/2016,Higher Crime,LEGAL AID FUND,ANTHONY R BARRACLOUGH,1031023:144866624," 36,889.32 ",Legal Aid Payment Higher Crime
MINISTRY OF JUSTICE,LEGAL AID AGENCY,31/08/2016,Legal Help,LEGAL AID FUND,APPLEMAN LEGAL,1045424:145131430," 38,220.00 ",Legal Aid Payment Legal Help
MINISTRY OF JUSTICE,LEGAL AID AGENCY,24/08/2016,Higher Crime,LEGAL AID FUND,ARANI SOLICITORS,1044567:145070088," 89,975.11 ",Legal Aid Payment Higher Crime
MINISTRY OF JUSTICE,LEGAL AID AGENCY,24/08/2016,Higher Crime,LEGAL AID FUND,ARANI SOLICITORS,1044567:145070085," 97,258.75 ",Legal Aid Payment Higher Crime
MINISTRY OF JUSTICE,LEGAL AID AGENCY,18/08/2016,Civil Representation,LEGAL AID FUND,ARMITAGE SYKES SOLICITORS LTD,1037106:3000000696330014," 32,786.85 ",Legal Aid Payment Civil Representation
MINISTRY OF JUSTICE,LEGAL AID AGENCY,18/08/2016,Civil Representation,LEGAL AID FUND,ARTHUR & CO,1040027:145013848," 38,236.94 ",Legal Aid Payment Civil Representation
MINISTRY OF JUSTICE,LEGAL AID AGENCY,03/08/2016,Higher Crime,LEGAL AID FUND,ASHCOTT SOLICITORS LTD,1029865:144896041," 27,986.72 ",Legal Aid Payment Higher Crime
MINISTRY OF JUSTICE,LEGAL AID AGENCY,03/08/2016,Higher Crime,LEGAL AID FUND,ASHMANS SOLICITORS,1029831:144887101," 60,988.53 ",Legal Aid Payment Higher Crime
MINISTRY OF JUSTICE,LEGAL AID AGENCY,31/08/2016,Legal Help,LEGAL AID FUND,ASYLUM AID,1048772:145131067," 27,522.00 ",Legal Aid Payment Legal Help
MINISTRY OF JUSTICE,LEGAL AID AGENCY,03/08/2016,Higher Crime,LEGAL AID FUND,ATLEE CHUNG & CO,1031665:144914615," 42,264.14 ",Legal Aid Payment Higher Crime
Ministry of Justice,LAA,24/08/2016,265000-IT & Telecommunications,VA501-Centralised Costs,ATOS IT SERVICES UK LTD,2006489," 35,741.00 ",IT Costs
MINISTRY OF JUSTICE,LEGAL AID AGENCY,31/08/2016,Lower Crime,LEGAL AID FUND,BAL DHALIWAL SOLICITORS,1048769:145132195," 25,937.00 ",Legal Aid Payment Lower Crime
MINISTRY OF JUSTICE,LEGAL AID AGENCY,03/08/2016,Civil Representation,LEGAL AID FUND,BANNER JONES LTD,1029016:144805322," 26,879.72 ",Legal Aid Payment Civil Representation
MINISTRY OF JUSTICE,LEGAL AID AGENCY,31/08/2016,Civil Representation,LEGAL AID FUND,BANSA SINGH HAYER,1047106:145112504," 25,046.28 ",Legal Aid Payment Civil Representation
MINISTRY OF JUSTICE,LEGAL AID AGENCY,18/08/2016,Higher Crime,LEGAL AID FUND,BARK & CO,1040077:145039722," 105,857.75 ",Legal Aid Payment Higher Crime
MINISTRY OF JUSTICE,LEGAL AID AGENCY,31/08/2016,Higher Crime,LEGAL AID FUND,BARK & CO,1049480:145125584," 47,381.02 ",Legal Aid Payment Higher Crime
MINISTRY OF JUSTICE,LEGAL AID AGENCY,31/08/2016,Legal Help,LEGAL AID FUND,BARNES HARRILD & DYER,1049622:145130803," 34,421.00 ",Legal Aid Payment Legal Help
MINISTRY OF JUSTICE,LEGAL AID AGENCY,31/08/2016,Lower Crime,LEGAL AID FUND,BARRETT & NELLIGAN SOLICITORS LTD,1049441:145131590," 27,000.00 ",Legal Aid Payment Lower Crime
MINISTRY OF JUSTICE,LEGAL AID AGENCY,18/08/2016,Higher Crime,LEGAL AID FUND,BARTHOLOMEW R S CASELLA,1038354:145010607," 35,559.65 ",Legal Aid Payment Higher Crime
MINISTRY OF JUSTICE,LEGAL AID AGENCY,24/08/2016,Higher Crime,LEGAL AID FUND,BAXTER BROWN MCARTHUR SOLICITORS,1043688:145069864," 78,696.99 ",Legal Aid Payment Higher Crime
MINISTRY OF JUSTICE,LEGAL AID AGENCY,31/08/2016,Lower Crime,LEGAL AID FUND,BELMORES SOLICITORS LTD,1048361:145132162," 38,556.00 ",Legal Aid Payment Lower Crime
MINISTRY OF JUSTICE,LEGAL AID AGENCY,03/08/2016,Civil Representation,LEGAL AID FUND,BEN HOARE BELL LLP,1029242:3000000277050014," 25,361.41 ",Legal Aid Payment Civil Representation
MINISTRY OF JUSTICE,LEGAL AID AGENCY,03/08/2016,Higher Crime,LEGAL AID FUND,BEN HOARE BELL LLP,1028822:144916506," 29,989.66 ",Legal Aid Payment Higher Crime
MINISTRY OF JUSTICE,LEGAL AID AGENCY,03/08/2016,Civil Representation,LEGAL AID FUND,BENDLES,1027636:300000025941DCL816," 34,335.04 ",Legal Aid Payment Civil Representation
MINISTRY OF JUSTICE,LEGAL AID AGENCY,18/08/2016,Higher Crime,LEGAL AID FUND,BERNARD G TETLOW QC,1038909:145000168," 25,114.67 ",Legal Aid Payment Higher Crime
MINISTRY OF JUSTICE,LEGAL AID AGENCY,03/08/2016,Higher Crime,LEGAL AID FUND,BESWICKS SOLICITORS LLP,1031758:144876149," 43,825.44 ",Legal Aid Payment Higher Crime
MINISTRY OF JUSTICE,LEGAL AID AGENCY,31/08/2016,Lower Crime,LEGAL AID FUND,BESWICKS SOLICITORS LLP,1049733:145132654," 35,895.00 ",Legal Aid Payment Lower Crime
MINISTRY OF JUSTICE,LEGAL AID AGENCY,03/08/2016,Civil Representation,LEGAL AID FUND,BG SOLICITORS LLP,1030184:3000000278850024," 31,908.12 ",Legal Aid Payment Civil Representation
MINISTRY OF JUSTICE,LEGAL AID AGENCY,31/08/2016,Lower Crime,LEGAL AID FUND,BHATIA BEST LTD,1049200:145131499," 35,200.00 ",Legal Aid Payment Lower Crime
MINISTRY OF JUSTICE,LEGAL AID AGENCY,31/08/2016,Lower Crime,LEGAL AID FUND,BHATIA BEST LTD,1049166:145131453," 67,000.00 ",Legal Aid Payment Lower Crime
MINISTRY OF JUSTICE,LEGAL AID AGENCY,18/08/2016,Civil Representation,LEGAL AID FUND,BHATT MURPHY SOLICITORS,1040497:144722833,"-30,214.60 ",Legal Aid Payment Civil Representation
MINISTRY OF JUSTICE,LEGAL AID AGENCY,18/08/2016,Civil Representation,LEGAL AID FUND,BHATT MURPHY SOLICITORS,1040497:144994440,"-29,251.58 ",Legal Aid Payment Civil Representation
MINISTRY OF JUSTICE,LEGAL AID AGENCY,18/08/2016,Legal Help,LEGAL AID FUND,BHATT MURPHY SOLICITORS,1040497:144585538," 25,626.00 ",Legal Aid Payment Legal Help
MINISTRY OF JUSTICE,LEGAL AID AGENCY,18/08/2016,Civil Representation,LEGAL AID FUND,BHATT MURPHY SOLICITORS,1040497:144804095," 29,251.58 ",Legal Aid Payment Civil Representation
MINISTRY OF JUSTICE,LEGAL AID AGENCY,18/08/2016,Civil Representation,LEGAL AID FUND,BHATT MURPHY SOLICITORS,1040497:144994438," 29,913.46 ",Legal Aid Payment Civil Representation
MINISTRY OF JUSTICE,LEGAL AID AGENCY,31/08/2016,Legal Help,LEGAL AID FUND,BINDMANS LLP,1048754:145130401," 43,800.00 ",Legal Aid Payment Legal Help
MINISTRY OF JUSTICE,LEGAL AID AGENCY,31/08/2016,Higher Crime,LEGAL AID FUND,BINDMANS LLP,1048754:145120658," 57,029.14 ",Legal Aid Payment Higher Crime
MINISTRY OF JUSTICE,LEGAL AID AGENCY,18/08/2016,Higher Crime,LEGAL AID FUND,BIRD & CO SOLICITORS LLP,1039751:145039495," 61,986.61 ",Legal Aid Payment Higher Crime
MINISTRY OF JUSTICE,LEGAL AID AGENCY,31/08/2016,Lower Crime,LEGAL AID FUND,BIRDS SOLICITORS LTD,1048384:145131461," 54,000.00 ",Legal Aid Payment Lower Crime
Ministry of Justice,LAA,23/08/2016,610400-Debtors <1 year - Prepayments & Accrued Income,VA396-Property Costs,BIRMINGHAM CITY COUNCIL,2006469," 8,796.90 ",Property Costs
MINISTRY OF JUSTICE,LEGAL AID AGENCY,03/08/2016,Higher Crime,LEGAL AID FUND,BIRNBERG PEIRCE LTD,1030022:144914778," 41,870.09 ",Legal Aid Payment Higher Crime
MINISTRY OF JUSTICE,LEGAL AID AGENCY,24/08/2016,Higher Crime,LEGAL AID FUND,BIRNBERG PEIRCE LTD,1043871:145098779," 65,703.98 ",Legal Aid Payment Higher Crime
MINISTRY OF JUSTICE,LEGAL AID AGENCY,24/08/2016,Higher Crime,LEGAL AID FUND,BIRNBERG PEIRCE LTD,1043871:145070087," 81,347.36 ",Legal Aid Payment Higher Crime
MINISTRY OF JUSTICE,LEGAL AID AGENCY,31/08/2016,Higher Crime,LEGAL AID FUND,BIRNBERG PEIRCE LTD,1048797:145134387," 65,378.40 ",Legal Aid Payment Higher Crime
MINISTRY OF JUSTICE,LEGAL AID AGENCY,31/08/2016,Legal Help,LEGAL AID FUND,BISON SOLICITORS LTD,1045400:145131422," 98,302.00 ",Legal Aid Payment Legal Help
MINISTRY OF JUSTICE,LEGAL AID AGENCY,03/08/2016,Higher Crime,LEGAL AID FUND,BLACKFORDS LLP,1031887:144886214," 97,258.75 ",Legal Aid Payment Higher Crime
MINISTRY OF JUSTICE,LEGAL AID AGENCY,31/08/2016,Lower Crime,LEGAL AID FUND,BLACKFORDS LLP,1050058:145132224," 40,741.00 ",Legal Aid Payment Lower Crime
MINISTRY OF JUSTICE,LEGAL AID AGENCY,03/08/2016,Civil Representation,LEGAL AID FUND,BLACKHURST BUDD LTD,1030258:3000000836990009," 27,238.31 ",Legal Aid Payment Civil Representation
MINISTRY OF JUSTICE,LEGAL AID AGENCY,31/08/2016,Lower Crime,LEGAL AID FUND,BLACKWELLS,1048527:145131759," 43,800.00 ",Legal Aid Payment Lower Crime
MINISTRY OF JUSTICE,LEGAL AID AGENCY,10/08/2016,Higher Crime,LEGAL AID FUND,BLASER MILLS LLP,1036220:144926640," 29,122.64 ",Legal Aid Payment Higher Crime
MINISTRY OF JUSTICE,LEGAL AID AGENCY,18/08/2016,Higher Crime,LEGAL AID FUND,BMV SOLICITORS LTD,1039253:145000720," 48,275.78 ",Legal Aid Payment Higher Crime
MINISTRY OF JUSTICE,LEGAL AID AGENCY,31/08/2016,Lower Crime,LEGAL AID FUND,BOBBETTS MACKAN,1049817:145131473," 42,000.00 ",Legal Aid Payment Lower Crime
MINISTRY OF JUSTICE,LEGAL AID AGENCY,31/08/2016,Lower Crime,LEGAL AID FUND,BOND JOSEPH,1048633:145132532," 26,947.00 ",Legal Aid Payment Lower Crime
MINISTRY OF JUSTICE,LEGAL AID AGENCY,18/08/2016,Higher Crime,LEGAL AID FUND,BOOTS STARKE GOACHER SOLICITORS,1039553:144990137," 37,685.03 ",Legal Aid Payment Higher Crime
MINISTRY OF JUSTICE,LEGAL AID AGENCY,31/08/2016,Lower Crime,LEGAL AID FUND,BOOTS STARKE GOACHER SOLICITORS,1048833:145132545," 28,752.00 ",Legal Aid Payment Lower Crime
MINISTRY OF JUSTICE,LEGAL AID AGENCY,03/08/2016,Civil Representation,LEGAL AID FUND,BORNEO MARTELL TURNER COULSTON LLP,1031584:144869837," 25,013.10 ",Legal Aid Payment Civil Representation
MINISTRY OF JUSTICE,LEGAL AID AGENCY,10/08/2016,Higher Crime,LEGAL AID FUND,BRADY EASTWOOD PIERCE & STEWART,1034094:144949189," 79,892.26 ",Legal Aid Payment Higher Crime
MINISTRY OF JUSTICE,LEGAL AID AGENCY,31/08/2016,Lower Crime,LEGAL AID FUND,BRADY EASTWOOD PIERCE & STEWART,1049893:145132272," 33,635.00 ",Legal Aid Payment Lower Crime
MINISTRY OF JUSTICE,LEGAL AID AGENCY,24/08/2016,Civil Representation,LEGAL AID FUND,BRAIDWOOD LAW PRACTICE SOLICITORS,1043522:145101691," 25,607.36 ",Legal Aid Payment Civil Representation
MINISTRY OF JUSTICE,LEGAL AID AGENCY,24/08/2016,Civil Representation,LEGAL AID FUND,BRENDAN FLEMING SOLICITORS,1044603:3000000738890020," 25,090.31 ",Legal Aid Payment Civil Representation
MINISTRY OF JUSTICE,LEGAL AID AGENCY,10/08/2016,Civil Representation,LEGAL AID FUND,BRETHERTONS LLP,1033986:144975738,"-33,600.96 ",Legal Aid Payment Civil Representation
MINISTRY OF JUSTICE,LEGAL AID AGENCY,10/08/2016,Civil Representation,LEGAL AID FUND,BRETHERTONS LLP,1033986:144975737," 34,472.26 ",Legal Aid Payment Civil Representation
MINISTRY OF JUSTICE,LEGAL AID AGENCY,31/08/2016,Lower Crime,LEGAL AID FUND,BREYDONS SOLICITORS LTD,1045416:145132783," 27,429.00 ",Legal Aid Payment Lower Crime
MINISTRY OF JUSTICE,LEGAL AID AGENCY,03/08/2016,Higher Crime,LEGAL AID FUND,BRIGHOUSE WOLFF,1028932:144914730," 81,347.36 ",Legal Aid Payment Higher Crime
Ministry of Justice,LAA,23/08/2016,610400-Debtors <1 year - Prepayments & Accrued Income,VA396-Property Costs,BRIGHTON & HOVE CITY COUNCIL,2006470," 14,040.25 ",Property Costs
MINISTRY OF JUSTICE,LEGAL AID AGENCY,31/08/2016,Legal Help,LEGAL AID FUND,BRIGHTON HOUSING TRUST,1047728:145131125," 39,447.00 ",Legal Aid Payment Legal Help
Ministry of Justice,LAA,23/08/2016,610400-Debtors <1 year - Prepayments & Accrued Income,VA396-Property Costs,BRISTOL CITY COUNCIL,2006471," 13,170.50 ",Property Costs
MINISTRY OF JUSTICE,LEGAL AID AGENCY,24/08/2016,Higher Crime,LEGAL AID FUND,BROOKLYN SOLICITORS LTD,1043756:145079095," 107,970.13 ",Legal Aid Payment Higher Crime
MINISTRY OF JUSTICE,LEGAL AID AGENCY,03/08/2016,Higher Crime,LEGAL AID FUND,BRUCE I STUART,1029423:144881477," 74,960.00 ",Legal Aid Payment Higher Crime
Ministry of Justice,LAA,24/08/2016,265000-IT & Telecommunications,VA092-Communications,BT PLC,2006493," 26,466.97 ",Telephony Costs
MINISTRY OF JUSTICE,LEGAL AID AGENCY,31/08/2016,Lower Crime,LEGAL AID FUND,BULLIVANT LAW LTD,1048184:145131630," 41,000.00 ",Legal Aid Payment Lower Crime
MINISTRY OF JUSTICE,LEGAL AID AGENCY,31/08/2016,Legal Help,LEGAL AID FUND,BURKE NIAZI  LTD,1049512:145141168," 120,000.00 ",Legal Aid Payment Legal Help
MINISTRY OF JUSTICE,LEGAL AID AGENCY,18/08/2016,Higher Crime,LEGAL AID FUND,BURTON COPELAND LLP,1039656:145039089," 37,791.76 ",Legal Aid Payment Higher Crime
MINISTRY OF JUSTICE,LEGAL AID AGENCY,31/08/2016,Lower Crime,LEGAL AID FUND,BURTON COPELAND LLP,1049007:145132512," 29,015.00 ",Legal Aid Payment Lower Crime
MINISTRY OF JUSTICE,LEGAL AID AGENCY,31/08/2016,Legal Help,LEGAL AID FUND,BUTLER & CO,1048271:145130291," 36,500.00 ",Legal Aid Payment Legal Help
MINISTRY OF JUSTICE,LEGAL AID AGENCY,31/08/2016,Higher Crime,LEGAL AID FUND,BYRNE & PARTNERS LLP,1048679:145146837," 26,464.44 ",Legal Aid Payment Higher Crime
MINISTRY OF JUSTICE,LEGAL AID AGENCY,31/08/2016,Higher Crime,LEGAL AID FUND,BYRNE & PARTNERS LLP,1048679:145146759," 105,857.75 ",Legal Aid Payment Higher Crime
MINISTRY OF JUSTICE,LEGAL AID AGENCY,10/08/2016,Higher Crime,LEGAL AID FUND,C GEOFFREY COX QC,1032788:144987345," 51,967.20 ",Legal Aid Payment Higher Crime
MINISTRY OF JUSTICE,LEGAL AID AGENCY,31/08/2016,Civil Representation,LEGAL AID FUND,CAMILLA DAVIES,1050217:8000000000000204," 25,458.74 ",Legal Aid Payment Civil Representation
MINISTRY OF JUSTICE,LEGAL AID AGENCY,24/08/2016,Higher Crime,LEGAL AID FUND,CANTARIS LOCKE SOLICITORS,1041016:145079059," 81,347.36 ",Legal Aid Payment Higher Crime
MINISTRY OF JUSTICE,LEGAL AID AGENCY,18/08/2016,Higher Crime,LEGAL AID FUND,CANTER LEVIN & BERG,1040135:145010059," 64,133.32 ",Legal Aid Payment Higher Crime
Ministry of Justice,LAA,23/08/2016,610400-Debtors <1 year - Prepayments & Accrued Income,VA396-Property Costs,CARDIFF COUNTY COUNCIL,2006472," 3,207.60 ",Property Costs
MINISTRY OF JUSTICE,LEGAL AID AGENCY,31/08/2016,Civil Representation,LEGAL AID FUND,CARLA FLEXMAN,1046605:3000000675280018," 25,052.76 ",Legal Aid Payment Civil Representation
MINISTRY OF JUSTICE,LEGAL AID AGENCY,31/08/2016,Civil Representation,LEGAL AID FUND,CARLA FLEXMAN,1046605:3000000903410011," 28,101.60 ",Legal Aid Payment Civil Representation
MINISTRY OF JUSTICE,LEGAL AID AGENCY,31/08/2016,Lower Crime,LEGAL AID FUND,CARRINGTONS SOLICITORS,1048179:145132127," 156,499.00 ",Legal Aid Payment Lower Crime
MINISTRY OF JUSTICE,LEGAL AID AGENCY,03/08/2016,Higher Crime,LEGAL AID FUND,CARSON KAYE SOLICITORS,1029047:144885872," 40,248.10 ",Legal Aid Payment Higher Crime
MINISTRY OF JUSTICE,LEGAL AID AGENCY,03/08/2016,Higher Crime,LEGAL AID FUND,CARSON KAYE SOLICITORS,1029047:144886394," 95,707.01 ",Legal Aid Payment Higher Crime
MINISTRY OF JUSTICE,LEGAL AID AGENCY,03/08/2016,Higher Crime,LEGAL AID FUND,CARTER MOORE SOLICITORS LTD,1029919:144914556," 35,676.30 ",Legal Aid Payment Higher Crime
MINISTRY OF JUSTICE,LEGAL AID AGENCY,31/08/2016,Higher Crime,LEGAL AID FUND,CARTER MOORE SOLICITORS LTD,1048346:145145782," 59,166.45 ",Legal Aid Payment Higher Crime
MINISTRY OF JUSTICE,LEGAL AID AGENCY,31/08/2016,Lower Crime,LEGAL AID FUND,CARTER OSBORNE LTD,1049058:145132120," 25,250.00 ",Legal Aid Payment Lower Crime
MINISTRY OF JUSTICE,LEGAL AID AGENCY,31/08/2016,Lower Crime,LEGAL AID FUND,CARTER OSBORNE LTD,1049057:145132123," 41,857.00 ",Legal Aid Payment Lower Crime
MINISTRY OF JUSTICE,LEGAL AID AGENCY,03/08/2016,Higher Crime,LEGAL AID FUND,CARTWRIGHT KING SOLICITORS,1029832:144866177," 27,441.65 ",Legal Aid Payment Higher Crime
MINISTRY OF JUSTICE,LEGAL AID AGENCY,03/08/2016,Higher Crime,LEGAL AID FUND,CARTWRIGHT KING SOLICITORS,1031501:144886161," 74,157.58 ",Legal Aid Payment Higher Crime
MINISTRY OF JUSTICE,LEGAL AID AGENCY,10/08/2016,Higher Crime,LEGAL AID FUND,CARTWRIGHT KING SOLICITORS,1033578:144958318," 36,600.32 ",Legal Aid Payment Higher Crime
MINISTRY OF JUSTICE,LEGAL AID AGENCY,10/08/2016,Higher Crime,LEGAL AID FUND,CARTWRIGHT KING SOLICITORS,1033581:144976569," 65,819.04 ",Legal Aid Payment Higher Crime
MINISTRY OF JUSTICE,LEGAL AID AGENCY,31/08/2016,Civil Representation,LEGAL AID FUND,CARTWRIGHT KING SOLICITORS,1047839:145140422,"-27,000.00 ",Legal Aid Payment Civil Representation
MINISTRY OF JUSTICE,LEGAL AID AGENCY,31/08/2016,Lower Crime,LEGAL AID FUND,CARTWRIGHT KING SOLICITORS,1045277:145131472," 28,900.00 ",Legal Aid Payment Lower Crime
MINISTRY OF JUSTICE,LEGAL AID AGENCY,31/08/2016,Lower Crime,LEGAL AID FUND,CARTWRIGHT KING SOLICITORS,1047839:145132731," 29,277.00 ",Legal Aid Payment Lower Crime
MINISTRY OF JUSTICE,LEGAL AID AGENCY,31/08/2016,Legal Help,LEGAL AID FUND,CARTWRIGHT KING SOLICITORS,1045411:145131411," 31,891.00 ",Legal Aid Payment Legal Help
MINISTRY OF JUSTICE,LEGAL AID AGENCY,31/08/2016,Higher Crime,LEGAL AID FUND,CARTWRIGHT KING SOLICITORS,1047839:145119736," 33,400.61 ",Legal Aid Payment Higher Crime
MINISTRY OF JUSTICE,LEGAL AID AGENCY,31/08/2016,Lower Crime,LEGAL AID FUND,CARTWRIGHT KING SOLICITORS,1048475:145132132," 37,330.00 ",Legal Aid Payment Lower Crime
MINISTRY OF JUSTICE,LEGAL AID AGENCY,31/08/2016,Lower Crime,LEGAL AID FUND,CARTWRIGHT KING SOLICITORS,1045275:145131544," 40,900.00 ",Legal Aid Payment Lower Crime
MINISTRY OF JUSTICE,LEGAL AID AGENCY,31/08/2016,Legal Help,LEGAL AID FUND,CARTWRIGHT KING SOLICITORS,1048475:145130969," 74,957.00 ",Legal Aid Payment Legal Help
MINISTRY OF JUSTICE,LEGAL AID AGENCY,18/08/2016,Higher Crime,LEGAL AID FUND,CATHERINE RABAIOTTI,1038030:145042911," 43,248.00 ",Legal Aid Payment Higher Crime
MINISTRY OF JUSTICE,LEGAL AID AGENCY,09/08/2016,Higher Crime,LEGAL AID FUND,CHALLINORS - IN ADMINISTRATION,1032010:2000000000001093,"-119,223.34 ",Legal Aid Payment Higher Crime
MINISTRY OF JUSTICE,LEGAL AID AGENCY,09/08/2016,Lower Crime,LEGAL AID FUND,CHALLINORS - IN ADMINISTRATION,1032010:130374659,"-46,749.10 ",Legal Aid Payment Lower Crime
MINISTRY OF JUSTICE,LEGAL AID AGENCY,09/08/2016,Lower Crime,LEGAL AID FUND,CHALLINORS - IN ADMINISTRATION,1032010:130374647,"-45,000.00 ",Legal Aid Payment Lower Crime
MINISTRY OF JUSTICE,LEGAL AID AGENCY,09/08/2016,Lower Crime,LEGAL AID FUND,CHALLINORS - IN ADMINISTRATION,1032006:130374688,"-41,194.51 ",Legal Aid Payment Lower Crime
MINISTRY OF JUSTICE,LEGAL AID AGENCY,24/08/2016,Higher Crime,LEGAL AID FUND,CHAMBERS SOLICITORS,1043575:145069470," 26,464.44 ",Legal Aid Payment Higher Crime
MINISTRY OF JUSTICE,LEGAL AID AGENCY,24/08/2016,Higher Crime,LEGAL AID FUND,CHAMBERS SOLICITORS,1043575:145069397," 100,483.43 ",Legal Aid Payment Higher Crime
MINISTRY OF JUSTICE,LEGAL AID AGENCY,24/08/2016,Higher Crime,LEGAL AID FUND,CHARLES A BOTT QC,1042150:145069267,"-27,715.59 ",Legal Aid Payment Higher Crime
MINISTRY OF JUSTICE,LEGAL AID AGENCY,24/08/2016,Higher Crime,LEGAL AID FUND,CHARLES A BOTT QC,1042150:145069280," 31,755.55 ",Legal Aid Payment Higher Crime
MINISTRY OF JUSTICE,LEGAL AID AGENCY,10/08/2016,Civil Representation,LEGAL AID FUND,CHARLES N H PURSS,1032848:144891673," 27,756.84 ",Legal Aid Payment Civil Representation
MINISTRY OF JUSTICE,LEGAL AID AGENCY,18/08/2016,Civil Representation,LEGAL AID FUND,CHIVERS WALSH FAMILY LAW,1039869:144953933," 45,645.67 ",Legal Aid Payment Civil Representation
MINISTRY OF JUSTICE,LEGAL AID AGENCY,18/08/2016,Higher Crime,LEGAL AID FUND,CHRIS SALTRESE,1039273:145038937," 28,160.36 ",Legal Aid Payment Higher Crime
MINISTRY OF JUSTICE,LEGAL AID AGENCY,01/08/2016,Legal Help,LEGAL AID FUND,CHRIS SOLICITORS,1027602:143144344,"-140,459.69 ",Legal Aid Payment Legal Help
MINISTRY OF JUSTICE,LEGAL AID AGENCY,01/08/2016,Civil Representation,LEGAL AID FUND,CHRIS SOLICITORS,1027602:2000000000001056,"-45,455.44 ",Legal Aid Payment Civil Representation
MINISTRY OF JUSTICE,LEGAL AID AGENCY,03/08/2016,Civil Representation,LEGAL AID FUND,CHRISTINE A RILEY,1029385:3000000758320004," 25,898.40 ",Legal Aid Payment Civil Representation
MINISTRY OF JUSTICE,LEGAL AID AGENCY,10/08/2016,Higher Crime,LEGAL AID FUND,CHRISTOPHER A A SAAD,1032390:144955533," 49,520.00 ",Legal Aid Payment Higher Crime
MINISTRY OF JUSTICE,LEGAL AID AGENCY,10/08/2016,Higher Crime,LEGAL AID FUND,CHRISTOPHER J AMIS,1034934:144987561," 74,960.00 ",Legal Aid Payment Higher Crime
MINISTRY OF JUSTICE,LEGAL AID AGENCY,03/08/2016,Civil Representation,LEGAL AID FUND,CHRISTOPHER MCWATTERS,1027782:144882068," 39,058.20 ",Legal Aid Payment Civil Representation
MINISTRY OF JUSTICE,LEGAL AID AGENCY,18/08/2016,Higher Crime,LEGAL AID FUND,CITY LAW,1039199:145038399," 37,627.58 ",Legal Aid Payment Higher Crime
MINISTRY OF JUSTICE,LEGAL AID AGENCY,31/08/2016,Lower Crime,LEGAL AID FUND,CJCH SOLICITORS,1049881:145132026," 27,497.00 ",Legal Aid Payment Lower Crime
MINISTRY OF JUSTICE,LEGAL AID AGENCY,31/08/2016,Legal Help,LEGAL AID FUND,CJCH SOLICITORS,1045288:145131433," 34,187.00 ",Legal Aid Payment Legal Help
MINISTRY OF JUSTICE,LEGAL AID AGENCY,18/08/2016,Higher Crime,LEGAL AID FUND,CLAIRE PICKTHALL,1038284:145000303," 30,605.64 ",Legal Aid Payment Higher Crime
MINISTRY OF JUSTICE,LEGAL AID AGENCY,10/08/2016,Civil Representation,LEGAL AID FUND,CLARE L GARNHAM,1035009:3000000562850003," 28,468.80 ",Legal Aid Payment Civil Representation
MINISTRY OF JUSTICE,LEGAL AID AGENCY,31/08/2016,Lower Crime,LEGAL AID FUND,CLARKE KIERNAN LLP,1048699:145132520," 26,022.00 ",Legal Aid Payment Lower Crime
MINISTRY OF JUSTICE,LEGAL AID AGENCY,31/08/2016,Legal Help,LEGAL AID FUND,CLIFFORD JOHNSTON & CO,1049005:145130894," 26,915.00 ",Legal Aid Payment Legal Help
MINISTRY OF JUSTICE,LEGAL AID AGENCY,03/08/2016,Higher Crime,LEGAL AID FUND,CONNOR ROSS-BROWN SOLICITORS,1029183:144885920," 77,470.69 ",Legal Aid Payment Higher Crime
MINISTRY OF JUSTICE,LEGAL AID AGENCY,31/08/2016,Lower Crime,LEGAL AID FUND,CONNOR ROSS-BROWN SOLICITORS,1046016:145163157,"-35,000.00 ",Legal Aid Payment Lower Crime
MINISTRY OF JUSTICE,LEGAL AID AGENCY,31/08/2016,Lower Crime,LEGAL AID FUND,CONNOR ROSS-BROWN SOLICITORS,1046016:145131468," 35,000.00 ",Legal Aid Payment Lower Crime
MINISTRY OF JUSTICE,LEGAL AID AGENCY,18/08/2016,Civil Representation,LEGAL AID FUND,COOPER NIMMO LIMITED,1039564:145004005," 40,145.90 ",Legal Aid Payment Civil Representation
MINISTRY OF JUSTICE,LEGAL AID AGENCY,31/08/2016,Civil Representation,LEGAL AID FUND,COOPER NIMMO LIMITED,1048751:145162775,"-40,145.90 ",Legal Aid Payment Civil Representation
MINISTRY OF JUSTICE,LEGAL AID AGENCY,31/08/2016,Civil Representation,LEGAL AID FUND,COOPER NIMMO LIMITED,1048751:145162771," 40,312.90 ",Legal Aid Payment Civil Representation
MINISTRY OF JUSTICE,LEGAL AID AGENCY,18/08/2016,Legal Help,LEGAL AID FUND,CORAM CHILDREN'S LEGAL CENTRE,1039659:145033342," 43,170.52 ",Legal Aid Payment Legal Help
MINISTRY OF JUSTICE,LEGAL AID AGENCY,18/08/2016,Higher Crime,LEGAL AID FUND,COTISENS SOLICITORS,1039405:145000424," 37,602.02 ",Legal Aid Payment Higher Crime
MINISTRY OF JUSTICE,LEGAL AID AGENCY,31/08/2016,Lower Crime,LEGAL AID FUND,COTISENS SOLICITORS,1048614:145132266," 27,344.00 ",Legal Aid Payment Lower Crime
MINISTRY OF JUSTICE,LEGAL AID AGENCY,03/08/2016,Higher Crime,LEGAL AID FUND,COURTENAY GRIFFITHS QC,1029104:144866471," 49,135.61 ",Legal Aid Payment Higher Crime
MINISTRY OF JUSTICE,LEGAL AID AGENCY,31/08/2016,Lower Crime,LEGAL AID FUND,COUSINS TYRER SOLICITORS,1049302:145132420," 25,035.00 ",Legal Aid Payment Lower Crime
MINISTRY OF JUSTICE,LEGAL AID AGENCY,10/08/2016,Civil Representation,LEGAL AID FUND,CREIGHTON & PARTNERS,1033589:144920686," 27,809.52 ",Legal Aid Payment Civil Representation
MINISTRY OF JUSTICE,LEGAL AID AGENCY,31/08/2016,Lower Crime,LEGAL AID FUND,CRIMINAL DEFENCE ASSOCIATES,1048176:145131743," 30,000.00 ",Legal Aid Payment Lower Crime
MINISTRY OF JUSTICE,LEGAL AID AGENCY,31/08/2016,Lower Crime,LEGAL AID FUND,CRIMINAL DEFENCE MILTON KEYNES LTD,1047996:145131508," 38,500.00 ",Legal Aid Payment Lower Crime
MINISTRY OF JUSTICE,LEGAL AID AGENCY,18/08/2016,Higher Crime,LEGAL AID FUND,CRIMINAL DEFENCE SOLICITORS,1039254:145000571," 64,197.26 ",Legal Aid Payment Higher Crime
MINISTRY OF JUSTICE,LEGAL AID AGENCY,31/08/2016,Higher Crime,LEGAL AID FUND,CRIMINAL DEFENCE SOLICITORS,1048293:145146657," 28,628.57 ",Legal Aid Payment Higher Crime
MINISTRY OF JUSTICE,LEGAL AID AGENCY,31/08/2016,Lower Crime,LEGAL AID FUND,CRIMINAL DEFENCE SOLICITORS,1048293:145131476," 31,900.00 ",Legal Aid Payment Lower Crime
MINISTRY OF JUSTICE,LEGAL AID AGENCY,31/08/2016,Lower Crime,LEGAL AID FUND,CROWE HUMBLE WESENCRAFT,1048567:145131474," 34,200.00 ",Legal Aid Payment Lower Crime
MINISTRY OF JUSTICE,LEGAL AID AGENCY,31/08/2016,Legal Help,LEGAL AID FUND,CROWN HOUSE SOLICITORS,1045402:145131421," 35,717.00 ",Legal Aid Payment Legal Help
MINISTRY OF JUSTICE,LEGAL AID AGENCY,01/08/2016,Legal Help,LEGAL AID FUND,CRYSTAL PARTNERS SOLICITORS,1027606:133896378,"-84,138.99 ",Legal Aid Payment Legal Help
MINISTRY OF JUSTICE,LEGAL AID AGENCY,24/08/2016,Higher Crime,LEGAL AID FUND,CUNNINGHAMS LYTHGOE CAPLIN LTD,1043931:145060108," 78,731.29 ",Legal Aid Payment Higher Crime
MINISTRY OF JUSTICE,LEGAL AID AGENCY,31/08/2016,Higher Crime,LEGAL AID FUND,CUNNINGHAMS LYTHGOE CAPLIN LTD,1048892:145109057," 74,503.03 ",Legal Aid Payment Higher Crime
MINISTRY OF JUSTICE,LEGAL AID AGENCY,10/08/2016,Higher Crime,LEGAL AID FUND,CUTTLE & CO,1035765:144949095," 33,380.21 ",Legal Aid Payment Higher Crime
MINISTRY OF JUSTICE,LEGAL AID AGENCY,18/08/2016,Higher Crime,LEGAL AID FUND,CUTTLE & CO,1039653:145000438," 29,964.22 ",Legal Aid Payment Higher Crime
MINISTRY OF JUSTICE,LEGAL AID AGENCY,31/08/2016,Lower Crime,LEGAL AID FUND,DALTON HOLMES GRAY,1048909:145132285," 43,882.00 ",Legal Aid Payment Lower Crime
MINISTRY OF JUSTICE,LEGAL AID AGENCY,03/08/2016,Higher Crime,LEGAL AID FUND,DANIEL J LISTER,1027924:144910600," 49,520.00 ",Legal Aid Payment Higher Crime
MINISTRY OF JUSTICE,LEGAL AID AGENCY,18/08/2016,Civil Representation,LEGAL AID FUND,DANIEL S FRIEDMAN,1037905:145004331,"-30,693.60 ",Legal Aid Payment Civil Representation
MINISTRY OF JUSTICE,LEGAL AID AGENCY,18/08/2016,Civil Representation,LEGAL AID FUND,DANIEL S FRIEDMAN,1037905:145004330," 33,843.79 ",Legal Aid Payment Civil Representation
MINISTRY OF JUSTICE,LEGAL AID AGENCY,31/08/2016,Lower Crime,LEGAL AID FUND,DARRYL INGRAM & CO,1048441:145131628," 27,600.00 ",Legal Aid Payment Lower Crime
MINISTRY OF JUSTICE,LEGAL AID AGENCY,10/08/2016,Higher Crime,LEGAL AID FUND,DASS SOLICITORS,1033555:144987422," 31,272.46 ",Legal Aid Payment Higher Crime
MINISTRY OF JUSTICE,LEGAL AID AGENCY,31/08/2016,Lower Crime,LEGAL AID FUND,DAVID AKE & CO,1049303:145132419," 28,141.00 ",Legal Aid Payment Lower Crime
MINISTRY OF JUSTICE,LEGAL AID AGENCY,03/08/2016,Higher Crime,LEGAL AID FUND,DAVID ELLIOT POJUR,1029728:144881575," 25,080.00 ",Legal Aid Payment Higher Crime
MINISTRY OF JUSTICE,LEGAL AID AGENCY,31/08/2016,Lower Crime,LEGAL AID FUND,DAVID GRAY LLP,1048500:145131516," 27,000.00 ",Legal Aid Payment Lower Crime
MINISTRY OF JUSTICE,LEGAL AID AGENCY,31/08/2016,Legal Help,LEGAL AID FUND,DAVID GRAY LLP,1048500:145130935," 34,088.00 ",Legal Aid Payment Legal Help
MINISTRY OF JUSTICE,LEGAL AID AGENCY,18/08/2016,Higher Crime,LEGAL AID FUND,DAVID H EMANUEL,1036955:145000285," 32,177.30 ",Legal Aid Payment Higher Crime
MINISTRY OF JUSTICE,LEGAL AID AGENCY,03/08/2016,Higher Crime,LEGAL AID FUND,DAVID H T JEREMY QC,1027807:144886445," 27,007.19 ",Legal Aid Payment Higher Crime
MINISTRY OF JUSTICE,LEGAL AID AGENCY,18/08/2016,Civil Representation,LEGAL AID FUND,DAVID PLAYFORD & CO,1040231:3000000399910002," 27,982.00 ",Legal Aid Payment Civil Representation
MINISTRY OF JUSTICE,LEGAL AID AGENCY,24/08/2016,Lower Crime,LEGAL AID FUND,DAVID RHODES,1042098:145065178," 30,537.00 ",Legal Aid Payment Lower Crime
MINISTRY OF JUSTICE,LEGAL AID AGENCY,19/08/2016,Civil Representation,LEGAL AID FUND,DAVID SHINE & KHARBANDA,1040597:144931684,"-26,456.25 ",Legal Aid Payment Civil Representation
MINISTRY OF JUSTICE,LEGAL AID AGENCY,31/08/2016,Higher Crime,LEGAL AID FUND,DAVID WOOD,1047681:145120505," 32,500.82 ",Legal Aid Payment Higher Crime
MINISTRY OF JUSTICE,LEGAL AID AGENCY,10/08/2016,Higher Crime,LEGAL AID FUND,DAVIES & JONES SOLICITORS,1036126:144932968," 117,974.45 ",Legal Aid Payment Higher Crime
MINISTRY OF JUSTICE,LEGAL AID AGENCY,03/08/2016,Civil Representation,LEGAL AID FUND,DAVIS & SIMMONDS & DONAGHEY,1029998:144842558," 37,149.58 ",Legal Aid Payment Civil Representation
MINISTRY OF JUSTICE,LEGAL AID AGENCY,31/08/2016,Civil Representation,LEGAL AID FUND,DAVIS & SIMMONDS & DONAGHEY,1048205:145162600,"-37,149.58 ",Legal Aid Payment Civil Representation
MINISTRY OF JUSTICE,LEGAL AID AGENCY,31/08/2016,Civil Representation,LEGAL AID FUND,DAVIS & SIMMONDS & DONAGHEY,1048205:145162598," 37,329.57 ",Legal Aid Payment Civil Representation
MINISTRY OF JUSTICE,LEGAL AID AGENCY,10/08/2016,Civil Representation,LEGAL AID FUND,DAWSON CORNWELL,1036146:144951746," 27,330.43 ",Legal Aid Payment Civil Representation
MINISTRY OF JUSTICE,LEGAL AID AGENCY,18/08/2016,Higher Crime,LEGAL AID FUND,DE MAIDS SOLICITORS & ADVOCATES,1040129:144990923,"-26,516.24 ",Legal Aid Payment Higher Crime
MINISTRY OF JUSTICE,LEGAL AID AGENCY,18/08/2016,Higher Crime,LEGAL AID FUND,DE MAIDS SOLICITORS & ADVOCATES,1040129:144990933," 26,992.54 ",Legal Aid Payment Higher Crime
MINISTRY OF JUSTICE,LEGAL AID AGENCY,31/08/2016,Legal Help,LEGAL AID FUND,DEIGHTON PIERCE GLYNN LTD,1046001:145131223," 33,295.00 ",Legal Aid Payment Legal Help
MINISTRY OF JUSTICE,LEGAL AID AGENCY,03/08/2016,Civil Representation,LEGAL AID FUND,DEIRDRE FOTTRELL QC,1031924:144907710,"-30,174.26 ",Legal Aid Payment Civil Representation
MINISTRY OF JUSTICE,LEGAL AID AGENCY,03/08/2016,Civil Representation,LEGAL AID FUND,DEIRDRE FOTTRELL QC,1031924:144907712,"-27,429.30 ",Legal Aid Payment Civil Representation
MINISTRY OF JUSTICE,LEGAL AID AGENCY,24/08/2016,Civil Representation,LEGAL AID FUND,DEIRDRE FOTTRELL QC,1040667:300000082243IK01," 48,459.60 ",Legal Aid Payment Civil Representation
MINISTRY OF JUSTICE,LEGAL AID AGENCY,03/08/2016,Civil Representation,LEGAL AID FUND,DENBY & CO SOLICITOR LTD,1028928:3000000646170027," 27,945.82 ",Legal Aid Payment Civil Representation
MINISTRY OF JUSTICE,LEGAL AID AGENCY,24/08/2016,Civil Representation,LEGAL AID FUND,DENBY & CO SOLICITOR LTD,1044585:145072477," 42,583.87 ",Legal Aid Payment Civil Representation
MINISTRY OF JUSTICE,LEGAL AID AGENCY,31/08/2016,Higher Crime,LEGAL AID FUND,DENNINGS SOLICITORS LTD,1048090:145119602," 60,664.78 ",Legal Aid Payment Higher Crime
MINISTRY OF JUSTICE,LEGAL AID AGENCY,31/08/2016,Lower Crime,LEGAL AID FUND,DEVAS KEOGH JAMES SOLICITORS LTD,1049491:145132187," 25,935.00 ",Legal Aid Payment Lower Crime
MINISTRY OF JUSTICE,LEGAL AID AGENCY,11/08/2016,Legal Help,LEGAL AID FUND,DEVONSHIRES RE: SCUDAMORES SOLICITORS,1036315:135174694,"-30,210.27 ",Legal Aid Payment Legal Help
MINISTRY OF JUSTICE,LEGAL AID AGENCY,24/08/2016,Higher Crime,LEGAL AID FUND,DI MIDDLETON,1043319:145048549," 26,311.27 ",Legal Aid Payment Higher Crime
MINISTRY OF JUSTICE,LEGAL AID AGENCY,24/08/2016,Higher Crime,LEGAL AID FUND,DI MIDDLETON,1043319:145049327," 34,473.68 ",Legal Aid Payment Higher Crime
MINISTRY OF JUSTICE,LEGAL AID AGENCY,18/08/2016,Legal Help,LEGAL AID FUND,DIRECT HELP & ADVICE LTD,1039382:145032473," 35,462.56 ",Legal Aid Payment Legal Help
MINISTRY OF JUSTICE,LEGAL AID AGENCY,31/08/2016,Lower Crime,LEGAL AID FUND,DJMS SOLICITORS LTD,1045997:145132905," 27,719.00 ",Legal Aid Payment Lower Crime
MINISTRY OF JUSTICE,LEGAL AID AGENCY,31/08/2016,Lower Crime,LEGAL AID FUND,DJMS SOLICITORS LTD,1048022:145132342," 35,869.00 ",Legal Aid Payment Lower Crime
MINISTRY OF JUSTICE,LEGAL AID AGENCY,24/08/2016,Higher Crime,LEGAL AID FUND,DOBSONS,1044883:145049721," 49,729.07 ",Legal Aid Payment Higher Crime
MINISTRY OF JUSTICE,LEGAL AID AGENCY,11/08/2016,Civil Representation,LEGAL AID FUND,DOVES SOLICITORS LLP,1036316:2000000000001099,"-87,699.03 ",Legal Aid Payment Civil Representation
MINISTRY OF JUSTICE,LEGAL AID AGENCY,11/08/2016,Legal Help,LEGAL AID FUND,DOVES SOLICITORS LLP,1036316:128248836,"-68,414.01 ",Legal Aid Payment Legal Help
MINISTRY OF JUSTICE,LEGAL AID AGENCY,11/08/2016,Lower Crime,LEGAL AID FUND,DOVES SOLICITORS LLP,1036316:128248922,"-48,000.00 ",Legal Aid Payment Lower Crime
MINISTRY OF JUSTICE,LEGAL AID AGENCY,11/08/2016,Lower Crime,LEGAL AID FUND,DOVES SOLICITORS LLP,1036316:128248920,"-45,000.00 ",Legal Aid Payment Lower Crime
MINISTRY OF JUSTICE,LEGAL AID AGENCY,11/08/2016,Lower Crime,LEGAL AID FUND,DOVES SOLICITORS LLP,1036316:128248923,"-40,000.00 ",Legal Aid Payment Lower Crime
MINISTRY OF JUSTICE,LEGAL AID AGENCY,11/08/2016,Lower Crime,LEGAL AID FUND,DOVES SOLICITORS LLP,1036316:128248928,"-28,770.57 ",Legal Aid Payment Lower Crime
MINISTRY OF JUSTICE,LEGAL AID AGENCY,03/08/2016,Higher Crime,LEGAL AID FUND,DPA LAW LLP,1030425:144876107," 33,741.85 ",Legal Aid Payment Higher Crime
MINISTRY OF JUSTICE,LEGAL AID AGENCY,24/08/2016,Higher Crime,LEGAL AID FUND,DPA LAW LLP,1044754:145068475," 47,605.51 ",Legal Aid Payment Higher Crime
MINISTRY OF JUSTICE,LEGAL AID AGENCY,03/08/2016,Higher Crime,LEGAL AID FUND,DPP LAW LTD,1031492:144876021," 29,696.44 ",Legal Aid Payment Higher Crime
MINISTRY OF JUSTICE,LEGAL AID AGENCY,03/08/2016,Higher Crime,LEGAL AID FUND,DPP LAW LTD,1031492:144866734," 31,795.84 ",Legal Aid Payment Higher Crime
MINISTRY OF JUSTICE,LEGAL AID AGENCY,18/08/2016,Higher Crime,LEGAL AID FUND,DPP LAW LTD,1039044:145020015," 29,884.85 ",Legal Aid Payment Higher Crime
MINISTRY OF JUSTICE,LEGAL AID AGENCY,18/08/2016,Higher Crime,LEGAL AID FUND,DPP LAW LTD,1039467:145038397," 97,616.83 ",Legal Aid Payment Higher Crime
MINISTRY OF JUSTICE,LEGAL AID AGENCY,31/08/2016,Lower Crime,LEGAL AID FUND,DPP LAW LTD,1048710:145131753," 27,800.00 ",Legal Aid Payment Lower Crime
MINISTRY OF JUSTICE,LEGAL AID AGENCY,31/08/2016,Lower Crime,LEGAL AID FUND,DPP LAW LTD,1048708:145131485," 28,400.00 ",Legal Aid Payment Lower Crime
MINISTRY OF JUSTICE,LEGAL AID AGENCY,31/08/2016,Higher Crime,LEGAL AID FUND,DPP LAW LTD,1048708:145121186," 41,987.63 ",Legal Aid Payment Higher Crime
MINISTRY OF JUSTICE,LEGAL AID AGENCY,24/08/2016,Higher Crime,LEGAL AID FUND,DRISCOLL YOUNG SOLICITORS LIMITED,1043869:145068850," 33,164.76 ",Legal Aid Payment Higher Crime
MINISTRY OF JUSTICE,LEGAL AID AGENCY,31/08/2016,Lower Crime,LEGAL AID FUND,DRISCOLL YOUNG SOLICITORS LIMITED,1048671:145132048," 28,426.00 ",Legal Aid Payment Lower Crime
MINISTRY OF JUSTICE,LEGAL AID AGENCY,18/08/2016,Civil Representation,LEGAL AID FUND,DUNCAN LEWIS,1039518:3000000540540028," 25,937.77 ",Legal Aid Payment Civil Representation
MINISTRY OF JUSTICE,LEGAL AID AGENCY,18/08/2016,Higher Crime,LEGAL AID FUND,DUNCAN LEWIS,1039518:145038247," 38,882.32 ",Legal Aid Payment Higher Crime
MINISTRY OF JUSTICE,LEGAL AID AGENCY,18/08/2016,Civil Representation,LEGAL AID FUND,DUNCAN LEWIS,1039518:145024782," 49,128.75 ",Legal Aid Payment Civil Representation
MINISTRY OF JUSTICE,LEGAL AID AGENCY,31/08/2016,Legal Help,LEGAL AID FUND,DUNCAN LEWIS,1045955:145131386," 28,618.00 ",Legal Aid Payment Legal Help
MINISTRY OF JUSTICE,LEGAL AID AGENCY,31/08/2016,Legal Help,LEGAL AID FUND,DUNCAN LEWIS,1048142:145131022," 51,745.00 ",Legal Aid Payment Legal Help
MINISTRY OF JUSTICE,LEGAL AID AGENCY,31/08/2016,Lower Crime,LEGAL AID FUND,DUNCAN LEWIS,1048650:145132258," 54,045.00 ",Legal Aid Payment Lower Crime
MINISTRY OF JUSTICE,LEGAL AID AGENCY,31/08/2016,Legal Help,LEGAL AID FUND,DUNCAN LEWIS,1045526:145130542," 59,300.00 ",Legal Aid Payment Legal Help
MINISTRY OF JUSTICE,LEGAL AID AGENCY,31/08/2016,Lower Crime,LEGAL AID FUND,DUNCAN LEWIS,1048649:145131452," 127,200.00 ",Legal Aid Payment Lower Crime
MINISTRY OF JUSTICE,LEGAL AID AGENCY,31/08/2016,Legal Help,LEGAL AID FUND,DUNCAN LEWIS,1048649:145141165," 268,400.00 ",Legal Aid Payment Legal Help
MINISTRY OF JUSTICE,LEGAL AID AGENCY,31/08/2016,Legal Help,LEGAL AID FUND,DUNCAN LEWIS,1048650:145141149," 400,000.00 ",Legal Aid Payment Legal Help
MINISTRY OF JUSTICE,LEGAL AID AGENCY,03/08/2016,Civil Representation,LEGAL AID FUND,E J MOYLE,1031625:144879406," 35,924.36 ",Legal Aid Payment Civil Representation
MINISTRY OF JUSTICE,LEGAL AID AGENCY,03/08/2016,Higher Crime,LEGAL AID FUND,EBR ATTRIDGE LLP,1031398:144914534," 43,156.86 ",Legal Aid Payment Higher Crime
MINISTRY OF JUSTICE,LEGAL AID AGENCY,31/08/2016,Lower Crime,LEGAL AID FUND,EBR ATTRIDGE LLP,1048331:145131497," 34,200.00 ",Legal Aid Payment Lower Crime
MINISTRY OF JUSTICE,LEGAL AID AGENCY,31/08/2016,Lower Crime,LEGAL AID FUND,EBR ATTRIDGE LLP,1048333:145131480," 38,400.00 ",Legal Aid Payment Lower Crime
MINISTRY OF JUSTICE,LEGAL AID AGENCY,31/08/2016,Lower Crime,LEGAL AID FUND,EDWARD FAIL BRADSHAW & WATERSON,1050092:145132302," 37,236.00 ",Legal Aid Payment Lower Crime
MINISTRY OF JUSTICE,LEGAL AID AGENCY,24/08/2016,Lower Crime,LEGAL AID FUND,EDWARD H FITZGERALD,1042201:145052498,"-38,736.72 ",Legal Aid Payment Lower Crime
MINISTRY OF JUSTICE,LEGAL AID AGENCY,24/08/2016,Lower Crime,LEGAL AID FUND,EDWARD H FITZGERALD,1042201:145052499," 61,398.00 ",Legal Aid Payment Lower Crime
MINISTRY OF JUSTICE,LEGAL AID AGENCY,18/08/2016,Civil Representation,LEGAL AID FUND,EDWARD OLIVER & BELLIS,1040381:3000000515810010," 40,206.14 ",Legal Aid Payment Civil Representation
MINISTRY OF JUSTICE,LEGAL AID AGENCY,03/08/2016,Civil Representation,LEGAL AID FUND,EDWARDS DUTHIE,1030369:144889085," 32,927.98 ",Legal Aid Payment Civil Representation
MINISTRY OF JUSTICE,LEGAL AID AGENCY,03/08/2016,Higher Crime,LEGAL AID FUND,EDWARDS DUTHIE,1030369:144876398," 43,467.82 ",Legal Aid Payment Higher Crime
MINISTRY OF JUSTICE,LEGAL AID AGENCY,31/08/2016,Lower Crime,LEGAL AID FUND,EDWARDS DUTHIE,1049895:145132930," 39,576.00 ",Legal Aid Payment Lower Crime
MINISTRY OF JUSTICE,LEGAL AID AGENCY,03/08/2016,Higher Crime,LEGAL AID FUND,EDWARDS VAZIRANEY,1029983:144876841," 127,029.30 ",Legal Aid Payment Higher Crime
MINISTRY OF JUSTICE,LEGAL AID AGENCY,03/08/2016,Civil Representation,LEGAL AID FUND,EIFION W WILLIAMS,1028240:3000000840090011," 32,745.60 ",Legal Aid Payment Civil Representation
MINISTRY OF JUSTICE,LEGAL AID AGENCY,31/08/2016,Legal Help,LEGAL AID FUND,ELDER RAHIMI LIMITED,1048975:145130862," 30,204.00 ",Legal Aid Payment Legal Help
MINISTRY OF JUSTICE,LEGAL AID AGENCY,24/08/2016,Higher Crime,LEGAL AID FUND,ELLIOTT STERN SOLICITORS,1043874:145060153," 79,246.82 ",Legal Aid Payment Higher Crime
MINISTRY OF JUSTICE,LEGAL AID AGENCY,18/08/2016,Higher Crime,LEGAL AID FUND,EMERY HALIL & BROWN SOLICITORS-ADVOCATE,1037094:145019443," 31,815.00 ",Legal Aid Payment Higher Crime
MINISTRY OF JUSTICE,LEGAL AID AGENCY,18/08/2016,Civil Representation,LEGAL AID FUND,EMMA C V HUDSON,1038369:144907066," 42,465.60 ",Legal Aid Payment Civil Representation
MINISTRY OF JUSTICE,LEGAL AID AGENCY,18/08/2016,Higher Crime,LEGAL AID FUND,EMMA GOODALL,1037719:145020007," 26,886.55 ",Legal Aid Payment Higher Crime
MINISTRY OF JUSTICE,LEGAL AID AGENCY,03/08/2016,Higher Crime,LEGAL AID FUND,EVANS BISSETT SOLICITORS,1031540:144886100," 38,468.79 ",Legal Aid Payment Higher Crime
MINISTRY OF JUSTICE,LEGAL AID AGENCY,31/08/2016,Lower Crime,LEGAL AID FUND,EWINGS & CO,1049802:145131979," 27,100.00 ",Legal Aid Payment Lower Crime
MINISTRY OF JUSTICE,LEGAL AID AGENCY,31/08/2016,Higher Crime,LEGAL AID FUND,EWINGS & CO,1049802:145134728," 39,263.80 ",Legal Aid Payment Higher Crime
MINISTRY OF JUSTICE,LEGAL AID AGENCY,31/08/2016,Legal Help,LEGAL AID FUND,FADIGA & CO LTD,1049557:145130797," 31,946.00 ",Legal Aid Payment Legal Help
MINISTRY OF JUSTICE,LEGAL AID AGENCY,10/08/2016,Higher Crime,LEGAL AID FUND,FARADAYS SOLICITORS LTD,1033732:144938338," 34,715.74 ",Legal Aid Payment Higher Crime
MINISTRY OF JUSTICE,LEGAL AID AGENCY,18/08/2016,Higher Crime,LEGAL AID FUND,FARADAYS SOLICITORS LTD,1039611:145000651," 45,993.94 ",Legal Aid Payment Higher Crime
MINISTRY OF JUSTICE,LEGAL AID AGENCY,03/08/2016,Higher Crime,LEGAL AID FUND,FARLEYS SOLICITORS LLP,1030264:144886103," 29,255.28 ",Legal Aid Payment Higher Crime
MINISTRY OF JUSTICE,LEGAL AID AGENCY,31/08/2016,Lower Crime,LEGAL AID FUND,FARLEYS SOLICITORS LLP,1049425:145131805," 29,900.00 ",Legal Aid Payment Lower Crime
MINISTRY OF JUSTICE,LEGAL AID AGENCY,31/08/2016,Higher Crime,LEGAL AID FUND,FARLEYS SOLICITORS LLP,1049425:145133867," 81,347.36 ",Legal Aid Payment Higher Crime
MINISTRY OF JUSTICE,LEGAL AID AGENCY,31/08/2016,Lower Crime,LEGAL AID FUND,FIELDINGS PORTER SOLICITORS,1049453:145132437," 27,774.00 ",Legal Aid Payment Lower Crime
MINISTRY OF JUSTICE,LEGAL AID AGENCY,31/08/2016,Lower Crime,LEGAL AID FUND,FISHER COWE,1048133:145132167," 33,363.00 ",Legal Aid Payment Lower Crime
MINISTRY OF JUSTICE,LEGAL AID AGENCY,18/08/2016,Civil Representation,LEGAL AID FUND,FLG LTD,1039149:145042216," 33,227.51 ",Legal Aid Payment Civil Representation
MINISTRY OF JUSTICE,LEGAL AID AGENCY,31/08/2016,Civil Representation,LEGAL AID FUND,FLG LTD,1048083:145123741," 35,907.40 ",Legal Aid Payment Civil Representation
MINISTRY OF JUSTICE,LEGAL AID AGENCY,31/08/2016,Lower Crime,LEGAL AID FUND,FMW LAW LTD,1049749:145131563," 69,300.00 ",Legal Aid Payment Lower Crime
MINISTRY OF JUSTICE,LEGAL AID AGENCY,31/08/2016,Lower Crime,LEGAL AID FUND,FORBES SOLICITORS,1048766:145131496," 33,100.00 ",Legal Aid Payment Lower Crime
MINISTRY OF JUSTICE,LEGAL AID AGENCY,10/08/2016,Higher Crime,LEGAL AID FUND,FORRESTERS SOLICITORS LIMITED,1036031:144949317," 81,347.36 ",Legal Aid Payment Higher Crime
MINISTRY OF JUSTICE,LEGAL AID AGENCY,03/08/2016,Civil Representation,LEGAL AID FUND,FORT & CO SOLICITORS,1030398:144843492," 34,470.60 ",Legal Aid Payment Civil Representation
MINISTRY OF JUSTICE,LEGAL AID AGENCY,31/08/2016,Civil Representation,LEGAL AID FUND,FORT & CO SOLICITORS,1045942:145123611," 36,033.65 ",Legal Aid Payment Civil Representation
MINISTRY OF JUSTICE,LEGAL AID AGENCY,31/08/2016,Legal Help,LEGAL AID FUND,FOUNTAIN SOLICITORS LTD,1048211:145130258," 36,000.00 ",Legal Aid Payment Legal Help
MINISTRY OF JUSTICE,LEGAL AID AGENCY,24/08/2016,Higher Crime,LEGAL AID FUND,FOXES SOLICITORS,1043442:145069296," 37,888.93 ",Legal Aid Payment Higher Crime
MINISTRY OF JUSTICE,LEGAL AID AGENCY,24/08/2016,Civil Representation,LEGAL AID FUND,FRANCES J JUDD,1042511:145091383,"-27,064.13 ",Legal Aid Payment Civil Representation
MINISTRY OF JUSTICE,LEGAL AID AGENCY,24/08/2016,Civil Representation,LEGAL AID FUND,FRANCES J JUDD,1042511:145091165," 26,565.00 ",Legal Aid Payment Civil Representation
MINISTRY OF JUSTICE,LEGAL AID AGENCY,24/08/2016,Civil Representation,LEGAL AID FUND,FRANCES J JUDD,1042511:3000000572540022," 46,226.88 ",Legal Aid Payment Civil Representation
MINISTRY OF JUSTICE,LEGAL AID AGENCY,10/08/2016,Civil Representation,LEGAL AID FUND,FRANCES M HEATON,1033055:3000000698180004," 29,095.20 ",Legal Aid Payment Civil Representation
MINISTRY OF JUSTICE,LEGAL AID AGENCY,31/08/2016,Lower Crime,LEGAL AID FUND,FRANK ROE SOLICITORS,1049601:145132315," 33,055.00 ",Legal Aid Payment Lower Crime
MINISTRY OF JUSTICE,LEGAL AID AGENCY,18/08/2016,Lower Crime,LEGAL AID FUND,FRASER DAWBARNS LLP,1039693:143664984,"-30,500.00 ",Legal Aid Payment Lower Crime
MINISTRY OF JUSTICE,LEGAL AID AGENCY,24/08/2016,Civil Representation,LEGAL AID FUND,FREEMANS SOLICITORS.,1044862:145035435," 25,182.90 ",Legal Aid Payment Civil Representation
MINISTRY OF JUSTICE,LEGAL AID AGENCY,31/08/2016,Lower Crime,LEGAL AID FUND,FREEMANS SOLICITORS.,1050045:145131798," 27,900.00 ",Legal Aid Payment Lower Crime
MINISTRY OF JUSTICE,LEGAL AID AGENCY,18/08/2016,Civil Representation,LEGAL AID FUND,FRENCH & CO,1039747:144994107,"-31,815.68 ",Legal Aid Payment Civil Representation
MINISTRY OF JUSTICE,LEGAL AID AGENCY,18/08/2016,Civil Representation,LEGAL AID FUND,FRENCH & CO,1039747:144994106," 32,779.11 ",Legal Aid Payment Civil Representation
MINISTRY OF JUSTICE,LEGAL AID AGENCY,03/08/2016,Higher Crime,LEGAL AID FUND,FRISBY SOLICITORS LTD,1028672:144885896," 74,569.04 ",Legal Aid Payment Higher Crime
MINISTRY OF JUSTICE,LEGAL AID AGENCY,31/08/2016,Legal Help,LEGAL AID FUND,G T STEWART SOLICITORS,1048343:145131434," 31,773.00 ",Legal Aid Payment Legal Help
MINISTRY OF JUSTICE,LEGAL AID AGENCY,31/08/2016,Lower Crime,LEGAL AID FUND,G T STEWART SOLICITORS,1048048:145132769," 34,594.00 ",Legal Aid Payment Lower Crime
MINISTRY OF JUSTICE,LEGAL AID AGENCY,31/08/2016,Lower Crime,LEGAL AID FUND,G T STEWART SOLICITORS,1048049:145132768," 41,097.00 ",Legal Aid Payment Lower Crime
MINISTRY OF JUSTICE,LEGAL AID AGENCY,31/08/2016,Lower Crime,LEGAL AID FUND,G T STEWART SOLICITORS,1048044:145132773," 61,212.00 ",Legal Aid Payment Lower Crime
MINISTRY OF JUSTICE,LEGAL AID AGENCY,31/08/2016,Lower Crime,LEGAL AID FUND,G T STEWART SOLICITORS,1048343:145132293," 76,764.00 ",Legal Aid Payment Lower Crime
MINISTRY OF JUSTICE,LEGAL AID AGENCY,03/08/2016,Higher Crime,LEGAL AID FUND,"GAMMON,PIERCY & GAIGER",1030448:144896227," 29,664.55 ",Legal Aid Payment Higher Crime
MINISTRY OF JUSTICE,LEGAL AID AGENCY,31/08/2016,Lower Crime,LEGAL AID FUND,"GAMMON,PIERCY & GAIGER",1050069:145132553," 25,355.00 ",Legal Aid Payment Lower Crime
MINISTRY OF JUSTICE,LEGAL AID AGENCY,24/08/2016,Civil Representation,LEGAL AID FUND,GARDNER CHAMPION SOLICITORS LTD,1043904:145054149,"-39,850.95 ",Legal Aid Payment Civil Representation
MINISTRY OF JUSTICE,LEGAL AID AGENCY,24/08/2016,Civil Representation,LEGAL AID FUND,GARDNER CHAMPION SOLICITORS LTD,1043904:145054148," 40,175.03 ",Legal Aid Payment Civil Representation
MINISTRY OF JUSTICE,LEGAL AID AGENCY,31/08/2016,Higher Crime,LEGAL AID FUND,GARETH A UNDERHILL,1046387:145134510," 33,031.22 ",Legal Aid Payment Higher Crime
MINISTRY OF JUSTICE,LEGAL AID AGENCY,24/08/2016,Higher Crime,LEGAL AID FUND,GARRATTS,1044025:145058869," 27,189.92 ",Legal Aid Payment Higher Crime
MINISTRY OF JUSTICE,LEGAL AID AGENCY,31/08/2016,Civil Representation,LEGAL AID FUND,GARY JACOBS & CO LTD,1048958:145164428," 40,909.69 ",Legal Aid Payment Civil Representation
MINISTRY OF JUSTICE,LEGAL AID AGENCY,10/08/2016,Higher Crime,LEGAL AID FUND,GARY T BELL QC,1032896:144958949," 27,879.52 ",Legal Aid Payment Higher Crime
MINISTRY OF JUSTICE,LEGAL AID AGENCY,03/08/2016,Civil Representation,LEGAL AID FUND,GC SOLICITORS,1028640:144881989," 39,386.79 ",Legal Aid Payment Civil Representation
MINISTRY OF JUSTICE,LEGAL AID AGENCY,18/08/2016,Civil Representation,LEGAL AID FUND,GC SOLICITORS,1039293:145044457,"-39,386.79 ",Legal Aid Payment Civil Representation
MINISTRY OF JUSTICE,LEGAL AID AGENCY,18/08/2016,Civil Representation,LEGAL AID FUND,GC SOLICITORS,1039293:145044456," 39,776.04 ",Legal Aid Payment Civil Representation
MINISTRY OF JUSTICE,LEGAL AID AGENCY,31/08/2016,Lower Crime,LEGAL AID FUND,GEOFFREY FORRESTER & CO,1049398:145131715," 35,100.00 ",Legal Aid Payment Lower Crime
MINISTRY OF JUSTICE,LEGAL AID AGENCY,26/08/2016,Civil Representation,LEGAL AID FUND,GEOFFREY PARKER & BOURNE,1045108:133776358,"-36,045.71 ",Legal Aid Payment Civil Representation
MINISTRY OF JUSTICE,LEGAL AID AGENCY,03/08/2016,Higher Crime,LEGAL AID FUND,GEORGE A CARTER-STEPHENSON QC,1028415:144895638," 25,240.87 ",Legal Aid Payment Higher Crime
MINISTRY OF JUSTICE,LEGAL AID AGENCY,31/08/2016,Lower Crime,LEGAL AID FUND,GGP LAW LTD,1048080:145132102," 29,001.00 ",Legal Aid Payment Lower Crime
MINISTRY OF JUSTICE,LEGAL AID AGENCY,31/08/2016,Lower Crime,LEGAL AID FUND,GHP LEGAL,1048815:145131580," 34,300.00 ",Legal Aid Payment Lower Crime
MINISTRY OF JUSTICE,LEGAL AID AGENCY,31/08/2016,Higher Crime,LEGAL AID FUND,GILES F COCKINGS,1047166:145146199," 27,166.06 ",Legal Aid Payment Higher Crime
MINISTRY OF JUSTICE,LEGAL AID AGENCY,03/08/2016,Higher Crime,LEGAL AID FUND,GILES NEWELL,1031316:144866485," 41,786.30 ",Legal Aid Payment Higher Crime
MINISTRY OF JUSTICE,LEGAL AID AGENCY,31/08/2016,Civil Representation,LEGAL AID FUND,GILLIAN IRVING QC,1046580:145092962,"-45,356.28 ",Legal Aid Payment Civil Representation
MINISTRY OF JUSTICE,LEGAL AID AGENCY,31/08/2016,Civil Representation,LEGAL AID FUND,GILLIAN IRVING QC,1046580:3000001001270004," 27,218.74 ",Legal Aid Payment Civil Representation
MINISTRY OF JUSTICE,LEGAL AID AGENCY,31/08/2016,Civil Representation,LEGAL AID FUND,GILLIAN IRVING QC,1046580:145072559," 63,180.00 ",Legal Aid Payment Civil Representation
MINISTRY OF JUSTICE,LEGAL AID AGENCY,31/08/2016,Legal Help,LEGAL AID FUND,GLEDHILL SOLICITORS,1049916:145130602," 40,172.00 ",Legal Aid Payment Legal Help
MINISTRY OF JUSTICE,LEGAL AID AGENCY,03/08/2016,Higher Crime,LEGAL AID FUND,GLENN P HARRIS,1030811:144876667," 42,605.64 ",Legal Aid Payment Higher Crime
MINISTRY OF JUSTICE,LEGAL AID AGENCY,10/08/2016,Civil Representation,LEGAL AID FUND,GLP SOLICITORS-(PENDLEBURY),1035493:144984135," 28,678.84 ",Legal Aid Payment Civil Representation
MINISTRY OF JUSTICE,LEGAL AID AGENCY,31/08/2016,Higher Crime,LEGAL AID FUND,GOLDEN SOLICITORS,1048423:145119656," 52,523.26 ",Legal Aid Payment Higher Crime
MINISTRY OF JUSTICE,LEGAL AID AGENCY,18/08/2016,Higher Crime,LEGAL AID FUND,GOLDKORNS,1038959:144991172," 74,712.72 ",Legal Aid Payment Higher Crime
MINISTRY OF JUSTICE,LEGAL AID AGENCY,18/08/2016,Higher Crime,LEGAL AID FUND,GOLDSTONES SOLICITORS LTD,1040248:145019992," 46,781.22 ",Legal Aid Payment Higher Crime
MINISTRY OF JUSTICE,LEGAL AID AGENCY,02/08/2016,Lower Crime,LEGAL AID FUND,GORDONS LLP RE: ATTEYS LTD,1027621:126595098,"-45,913.76 ",Legal Aid Payment Lower Crime
MINISTRY OF JUSTICE,LEGAL AID AGENCY,02/08/2016,Civil Representation,LEGAL AID FUND,GORDONS LLP RE: ATTEYS LTD,1027621:132532301,"-34,894.62 ",Legal Aid Payment Civil Representation
MINISTRY OF JUSTICE,LEGAL AID AGENCY,03/08/2016,Higher Crime,LEGAL AID FUND,GQS SOLICITORS,1031379:144896592," 101,006.94 ",Legal Aid Payment Higher Crime
MINISTRY OF JUSTICE,LEGAL AID AGENCY,10/08/2016,Higher Crime,LEGAL AID FUND,GQS SOLICITORS,1033464:144949191," 81,347.36 ",Legal Aid Payment Higher Crime
MINISTRY OF JUSTICE,LEGAL AID AGENCY,10/08/2016,Civil Representation,LEGAL AID FUND,GRAHAM E KEAN,1036248:144943367,"-45,835.20 ",Legal Aid Payment Civil Representation
MINISTRY OF JUSTICE,LEGAL AID AGENCY,31/08/2016,Lower Crime,LEGAL AID FUND,GRAHAM EVANS & PARTNERS LLP,1049739:145131551," 31,900.00 ",Legal Aid Payment Lower Crime
MINISTRY OF JUSTICE,LEGAL AID AGENCY,31/08/2016,Lower Crime,LEGAL AID FUND,GRAHAME STOWE BATESON,1045417:145132421," 33,735.00 ",Legal Aid Payment Lower Crime
MINISTRY OF JUSTICE,LEGAL AID AGENCY,31/08/2016,Legal Help,LEGAL AID FUND,GRAHAME STOWE BATESON,1048593:145130761," 35,020.00 ",Legal Aid Payment Legal Help
MINISTRY OF JUSTICE,LEGAL AID AGENCY,18/08/2016,Civil Representation,LEGAL AID FUND,GRANT KEYES,1038890:145005021," 28,853.28 ",Legal Aid Payment Civil Representation
MINISTRY OF JUSTICE,LEGAL AID AGENCY,31/08/2016,Lower Crime,LEGAL AID FUND,GRECH GOODEN SOLICITORS LTD,1048166:145132081," 36,323.00 ",Legal Aid Payment Lower Crime
MINISTRY OF JUSTICE,LEGAL AID AGENCY,31/08/2016,Legal Help,LEGAL AID FUND,GUILE NICHOLAS-INC DONALD GALBRAITH & CO,1048214:145130394," 73,400.00 ",Legal Aid Payment Legal Help
MINISTRY OF JUSTICE,LEGAL AID AGENCY,31/08/2016,Higher Crime,LEGAL AID FUND,GUNEY CLARK & RYAN LTD CO,1048352:145146871,"-105,857.75 ",Legal Aid Payment Higher Crime
MINISTRY OF JUSTICE,LEGAL AID AGENCY,31/08/2016,Lower Crime,LEGAL AID FUND,GUNEY CLARK & RYAN LTD CO,1048352:145132264," 28,908.00 ",Legal Aid Payment Lower Crime
MINISTRY OF JUSTICE,LEGAL AID AGENCY,31/08/2016,Higher Crime,LEGAL AID FUND,GUNEY CLARK & RYAN LTD CO,1048352:145146869," 105,857.75 ",Legal Aid Payment Higher Crime
MINISTRY OF JUSTICE,LEGAL AID AGENCY,31/08/2016,Lower Crime,LEGAL AID FUND,GURNEY HARDEN SOLICITORS,1047998:145132526," 34,932.00 ",Legal Aid Payment Lower Crime
MINISTRY OF JUSTICE,LEGAL AID AGENCY,03/08/2016,Higher Crime,LEGAL AID FUND,GWB HARTHILLS LLP,1028611:144866368," 35,744.34 ",Legal Aid Payment Higher Crime
MINISTRY OF JUSTICE,LEGAL AID AGENCY,31/08/2016,Lower Crime,LEGAL AID FUND,H P GOWER SOLICITORS,1047913:145132821," 44,828.00 ",Legal Aid Payment Lower Crime
MINISTRY OF JUSTICE,LEGAL AID AGENCY,31/08/2016,Legal Help,LEGAL AID FUND,HALLIDAY REEVES LAW FIRM,1047846:145131117," 25,198.00 ",Legal Aid Payment Legal Help
MINISTRY OF JUSTICE,LEGAL AID AGENCY,03/08/2016,Higher Crime,LEGAL AID FUND,HANNE & CO,1030332:144885933," 105,857.75 ",Legal Aid Payment Higher Crime
MINISTRY OF JUSTICE,LEGAL AID AGENCY,18/08/2016,Higher Crime,LEGAL AID FUND,HARENDRA A D DE SILVA,1038432:145009734," 61,595.71 ",Legal Aid Payment Higher Crime
MINISTRY OF JUSTICE,LEGAL AID AGENCY,10/08/2016,Higher Crime,LEGAL AID FUND,HARRINGTONS LEGAL LLP,1033771:144938117," 40,229.82 ",Legal Aid Payment Higher Crime
MINISTRY OF JUSTICE,LEGAL AID AGENCY,18/08/2016,Higher Crime,LEGAL AID FUND,HARRINGTONS LEGAL LLP,1039772:145039476," 29,398.89 ",Legal Aid Payment Higher Crime
MINISTRY OF JUSTICE,LEGAL AID AGENCY,24/08/2016,Higher Crime,LEGAL AID FUND,HARRINGTONS SOLICITORS LTD,1043799:145079080," 89,975.11 ",Legal Aid Payment Higher Crime
MINISTRY OF JUSTICE,LEGAL AID AGENCY,18/08/2016,Higher Crime,LEGAL AID FUND,HARRIS CUFFARO & NICHOLS,1040017:145039365," 76,058.30 ",Legal Aid Payment Higher Crime
MINISTRY OF JUSTICE,LEGAL AID AGENCY,24/08/2016,Higher Crime,LEGAL AID FUND,HARRIS CUFFARO & NICHOLS,1044474:145059200," 33,655.47 ",Legal Aid Payment Higher Crime
MINISTRY OF JUSTICE,LEGAL AID AGENCY,31/08/2016,Lower Crime,LEGAL AID FUND,HARRIS CUFFARO & NICHOLS,1049493:145131498," 48,200.00 ",Legal Aid Payment Lower Crime
MINISTRY OF JUSTICE,LEGAL AID AGENCY,24/08/2016,Higher Crime,LEGAL AID FUND,HARRIS PALEY SCHONE LTD,1043999:145070099," 81,347.36 ",Legal Aid Payment Higher Crime
MINISTRY OF JUSTICE,LEGAL AID AGENCY,03/08/2016,Higher Crime,LEGAL AID FUND,HARRIS SOLICITORS,1028585:144886175," 38,989.51 ",Legal Aid Payment Higher Crime
MINISTRY OF JUSTICE,LEGAL AID AGENCY,03/08/2016,Higher Crime,LEGAL AID FUND,HARRIS SOLICITORS,1028585:144866328," 58,754.90 ",Legal Aid Payment Higher Crime
MINISTRY OF JUSTICE,LEGAL AID AGENCY,03/08/2016,Higher Crime,LEGAL AID FUND,HARRIS SOLICITORS,1028585:144886075," 105,857.75 ",Legal Aid Payment Higher Crime
MINISTRY OF JUSTICE,LEGAL AID AGENCY,31/08/2016,Higher Crime,LEGAL AID FUND,HARRIS SOLICITORS,1047927:145146870," 26,820.01 ",Legal Aid Payment Higher Crime
MINISTRY OF JUSTICE,LEGAL AID AGENCY,31/08/2016,Lower Crime,LEGAL AID FUND,HARRIS SOLICITORS,1047927:145132796," 32,291.00 ",Legal Aid Payment Lower Crime
MINISTRY OF JUSTICE,LEGAL AID AGENCY,31/08/2016,Higher Crime,LEGAL AID FUND,HARRIS SOLICITORS,1047927:145133946," 78,889.03 ",Legal Aid Payment Higher Crime
MINISTRY OF JUSTICE,LEGAL AID AGENCY,31/08/2016,Lower Crime,LEGAL AID FUND,HASKELL & CO,1048236:145132524," 40,334.00 ",Legal Aid Payment Lower Crime
MINISTRY OF JUSTICE,LEGAL AID AGENCY,31/08/2016,Lower Crime,LEGAL AID FUND,HAYES LAW SOLICITORS AND ADVOCATES LLP,1046084:145132931," 30,685.00 ",Legal Aid Payment Lower Crime
MINISTRY OF JUSTICE,LEGAL AID AGENCY,03/08/2016,Civil Representation,LEGAL AID FUND,HAYGARTH JONES,1030259:144822657," 29,567.33 ",Legal Aid Payment Civil Representation
MINISTRY OF JUSTICE,LEGAL AID AGENCY,31/08/2016,Lower Crime,LEGAL AID FUND,HDH LAW,1047918:145131600," 25,000.00 ",Legal Aid Payment Lower Crime
MINISTRY OF JUSTICE,LEGAL AID AGENCY,31/08/2016,Lower Crime,LEGAL AID FUND,HEALEY COLBON,1048115:145131529," 27,300.00 ",Legal Aid Payment Lower Crime
MINISTRY OF JUSTICE,LEGAL AID AGENCY,18/08/2016,Civil Representation,LEGAL AID FUND,HEANEY WATSON LTD,1039084:3000000849610010," 28,339.97 ",Legal Aid Payment Civil Representation
MINISTRY OF JUSTICE,LEGAL AID AGENCY,18/08/2016,Higher Crime,LEGAL AID FUND,HEDLEY SOLICITORS,1038970:145039095," 26,624.08 ",Legal Aid Payment Higher Crime
MINISTRY OF JUSTICE,LEGAL AID AGENCY,18/08/2016,Higher Crime,LEGAL AID FUND,HENNESSY & HAMMUDI,1039222:145010637," 35,282.66 ",Legal Aid Payment Higher Crime
MINISTRY OF JUSTICE,LEGAL AID AGENCY,31/08/2016,Lower Crime,LEGAL AID FUND,HENNESSY & HAMMUDI,1048094:145131503," 50,000.00 ",Legal Aid Payment Lower Crime
MINISTRY OF JUSTICE,LEGAL AID AGENCY,10/08/2016,Higher Crime,LEGAL AID FUND,HENRY'S SOLICITORS LTD,1033587:144981645," 28,588.02 ",Legal Aid Payment Higher Crime
MINISTRY OF JUSTICE,LEGAL AID AGENCY,31/08/2016,Lower Crime,LEGAL AID FUND,HENRY'S SOLICITORS LTD,1048605:145131479," 73,900.00 ",Legal Aid Payment Lower Crime
MINISTRY OF JUSTICE,LEGAL AID AGENCY,18/08/2016,Higher Crime,LEGAL AID FUND,HILL TWINE,1036648:145010188," 26,819.86 ",Legal Aid Payment Higher Crime
MINISTRY OF JUSTICE,LEGAL AID AGENCY,31/08/2016,Lower Crime,LEGAL AID FUND,HILL TWINE,1045542:145132920," 28,570.00 ",Legal Aid Payment Lower Crime
MINISTRY OF JUSTICE,LEGAL AID AGENCY,31/08/2016,Lower Crime,LEGAL AID FUND,HINE SOLICITORS,1047952:145132776," 29,388.00 ",Legal Aid Payment Lower Crime
MINISTRY OF JUSTICE,LEGAL AID AGENCY,31/08/2016,Lower Crime,LEGAL AID FUND,HINE SOLICITORS,1048021:145132778," 29,583.00 ",Legal Aid Payment Lower Crime
MINISTRY OF JUSTICE,LEGAL AID AGENCY,31/08/2016,Lower Crime,LEGAL AID FUND,HINE SOLICITORS,1047951:145132777," 31,067.00 ",Legal Aid Payment Lower Crime
MINISTRY OF JUSTICE,LEGAL AID AGENCY,31/08/2016,Lower Crime,LEGAL AID FUND,HINE SOLICITORS,1048020:145132779," 31,963.00 ",Legal Aid Payment Lower Crime
MINISTRY OF JUSTICE,LEGAL AID AGENCY,31/08/2016,Lower Crime,LEGAL AID FUND,HINE SOLICITORS,1048018:145132781," 37,888.00 ",Legal Aid Payment Lower Crime
MINISTRY OF JUSTICE,LEGAL AID AGENCY,31/08/2016,Lower Crime,LEGAL AID FUND,HINE SOLICITORS,1047954:145132775," 44,828.00 ",Legal Aid Payment Lower Crime
MINISTRY OF JUSTICE,LEGAL AID AGENCY,31/08/2016,Lower Crime,LEGAL AID FUND,HINE SOLICITORS,1048019:145132780," 60,835.00 ",Legal Aid Payment Lower Crime
MINISTRY OF JUSTICE,LEGAL AID AGENCY,31/08/2016,Higher Crime,LEGAL AID FUND,HINE SOLICITORS,1047951:145146075," 76,050.97 ",Legal Aid Payment Higher Crime
MINISTRY OF JUSTICE,LEGAL AID AGENCY,24/08/2016,Higher Crime,LEGAL AID FUND,HINE SOLICITORS-ADVOCATE,1041701:145069313," 27,851.45 ",Legal Aid Payment Higher Crime
MINISTRY OF JUSTICE,LEGAL AID AGENCY,31/08/2016,Lower Crime,LEGAL AID FUND,HODGE JONES & ALLEN LLP,1049716:145132277," 93,854.00 ",Legal Aid Payment Lower Crime
MINISTRY OF JUSTICE,LEGAL AID AGENCY,10/08/2016,Civil Representation,LEGAL AID FUND,HOPKINS LAW LTD,1033478:144977676,"-33,370.54 ",Legal Aid Payment Civil Representation
MINISTRY OF JUSTICE,LEGAL AID AGENCY,10/08/2016,Civil Representation,LEGAL AID FUND,HOPKINS LAW LTD,1033478:144977673," 33,632.53 ",Legal Aid Payment Civil Representation
MINISTRY OF JUSTICE,LEGAL AID AGENCY,22/08/2016,Legal Help,LEGAL AID FUND,HORN OF AFRICA WOMEN & CHILDREN ASSOCIATION,1040620:136357544,"-69,935.17 ",Legal Aid Payment Legal Help
MINISTRY OF JUSTICE,LEGAL AID AGENCY,31/08/2016,Lower Crime,LEGAL AID FUND,HORSMAN SOLICITORS LTD,1049475:145132528," 28,319.00 ",Legal Aid Payment Lower Crime
MINISTRY OF JUSTICE,LEGAL AID AGENCY,31/08/2016,Lower Crime,LEGAL AID FUND,HOWARD & BYRNE SOLICITORS,1048381:145131510," 43,000.00 ",Legal Aid Payment Lower Crime
MINISTRY OF JUSTICE,LEGAL AID AGENCY,31/08/2016,Legal Help,LEGAL AID FUND,HOWE & CO,1048526:145130856," 59,525.00 ",Legal Aid Payment Legal Help
MINISTRY OF JUSTICE,LEGAL AID AGENCY,18/08/2016,Legal Help,LEGAL AID FUND,HOWELLS LLP,1039855:145032543," 27,679.00 ",Legal Aid Payment Legal Help
MINISTRY OF JUSTICE,LEGAL AID AGENCY,31/08/2016,Legal Help,LEGAL AID FUND,HOWELLS LLP,1049296:145130344," 49,700.00 ",Legal Aid Payment Legal Help
MINISTRY OF JUSTICE,LEGAL AID AGENCY,31/08/2016,Lower Crime,LEGAL AID FUND,HOWELLS LLP,1049296:145131463," 52,900.00 ",Legal Aid Payment Lower Crime
MINISTRY OF JUSTICE,LEGAL AID AGENCY,31/08/2016,Civil Representation,LEGAL AID FUND,HRS FAMILY LAW SOLICITORS LTD,1045725:145111936," 59,564.58 ",Legal Aid Payment Civil Representation
MINISTRY OF JUSTICE,LEGAL AID AGENCY,31/08/2016,Civil Representation,LEGAL AID FUND,HUGH JAMES,1049793:145124711,"-89,719.47 ",Legal Aid Payment Civil Representation
MINISTRY OF JUSTICE,LEGAL AID AGENCY,31/08/2016,Civil Representation,LEGAL AID FUND,HUGH JAMES,1049793:145124709,"-58,949.00 ",Legal Aid Payment Civil Representation
MINISTRY OF JUSTICE,LEGAL AID AGENCY,31/08/2016,Civil Representation,LEGAL AID FUND,HUGH JAMES,1049793:145124695," 269,395.87 ",Legal Aid Payment Civil Representation
MINISTRY OF JUSTICE,LEGAL AID AGENCY,10/08/2016,Higher Crime,LEGAL AID FUND,HUGHMANS,1036142:144949131," 26,464.44 ",Legal Aid Payment Higher Crime
MINISTRY OF JUSTICE,LEGAL AID AGENCY,18/08/2016,Higher Crime,LEGAL AID FUND,HUGHMANS,1040427:145009917," 32,151.55 ",Legal Aid Payment Higher Crime
MINISTRY OF JUSTICE,LEGAL AID AGENCY,18/08/2016,Higher Crime,LEGAL AID FUND,HUGHMANS,1040427:145010222," 51,843.43 ",Legal Aid Payment Higher Crime
MINISTRY OF JUSTICE,LEGAL AID AGENCY,03/08/2016,Higher Crime,LEGAL AID FUND,HUNT & COOMBS LLP,1030157:144876638," 26,820.01 ",Legal Aid Payment Higher Crime
MINISTRY OF JUSTICE,LEGAL AID AGENCY,31/08/2016,Legal Help,LEGAL AID FUND,HUNT & COOMBS LLP,1049046:145130320," 32,200.00 ",Legal Aid Payment Legal Help
MINISTRY OF JUSTICE,LEGAL AID AGENCY,24/08/2016,Higher Crime,LEGAL AID FUND,HUSSAIN SOLICITORS LTD,1043798:145079116," 62,554.01 ",Legal Aid Payment Higher Crime
MINISTRY OF JUSTICE,LEGAL AID AGENCY,31/08/2016,Lower Crime,LEGAL AID FUND,I B B SOLICITORS,1048439:145131455," 98,100.00 ",Legal Aid Payment Lower Crime
MINISTRY OF JUSTICE,LEGAL AID AGENCY,10/08/2016,Higher Crime,LEGAL AID FUND,IAIN R O SUGGETT,1033252:144926519," 31,679.50 ",Legal Aid Payment Higher Crime
MINISTRY OF JUSTICE,LEGAL AID AGENCY,03/08/2016,Higher Crime,LEGAL AID FUND,IAN M METCALFE,1029615:144886606," 40,461.00 ",Legal Aid Payment Higher Crime
MINISTRY OF JUSTICE,LEGAL AID AGENCY,10/08/2016,Higher Crime,LEGAL AID FUND,ICAH D E PEART QC,1034442:144938906," 66,180.37 ",Legal Aid Payment Higher Crime
MINISTRY OF JUSTICE,LEGAL AID AGENCY,03/08/2016,Higher Crime,LEGAL AID FUND,IMRAN KHAN & PARTNERS,1030358:144915707," 37,259.63 ",Legal Aid Payment Higher Crime
MINISTRY OF JUSTICE,LEGAL AID AGENCY,24/08/2016,Higher Crime,LEGAL AID FUND,IN YOUR DEFENCE LTD,1044326:145059925," 39,073.26 ",Legal Aid Payment Higher Crime
MINISTRY OF JUSTICE,LEGAL AID AGENCY,03/08/2016,Higher Crime,LEGAL AID FUND,IRVINE THANVI NATAS SOLICITORS,1031517:144914587," 41,870.09 ",Legal Aid Payment Higher Crime
MINISTRY OF JUSTICE,LEGAL AID AGENCY,18/08/2016,Higher Crime,LEGAL AID FUND,IRVINE THANVI NATAS SOLICITORS,1039403:145039214," 66,343.64 ",Legal Aid Payment Higher Crime
MINISTRY OF JUSTICE,LEGAL AID AGENCY,31/08/2016,Lower Crime,LEGAL AID FUND,IRVINE THANVI NATAS SOLICITORS,1048612:145131556," 50,000.00 ",Legal Aid Payment Lower Crime
MINISTRY OF JUSTICE,LEGAL AID AGENCY,31/08/2016,Higher Crime,LEGAL AID FUND,IRVINE THANVI NATAS SOLICITORS,1048612:145133888," 65,703.98 ",Legal Aid Payment Higher Crime
MINISTRY OF JUSTICE,LEGAL AID AGENCY,22/08/2016,Civil Representation,LEGAL AID FUND,IRWIN MITCHELL LLP,1040638:144713639,"-26,713.53 ",Legal Aid Payment Civil Representation
MINISTRY OF JUSTICE,LEGAL AID AGENCY,31/08/2016,Higher Crime,LEGAL AID FUND,ISABELLA L FORSHALL QC,1046737:145120532," 36,080.96 ",Legal Aid Payment Higher Crime
MINISTRY OF JUSTICE,LEGAL AID AGENCY,31/08/2016,Higher Crime,LEGAL AID FUND,ISABELLA L FORSHALL QC,1046737:145119965," 39,216.65 ",Legal Aid Payment Higher Crime
MINISTRY OF JUSTICE,LEGAL AID AGENCY,31/08/2016,Lower Crime,LEGAL AID FUND,ISON HARRISON LTD,1048546:145131964," 26,200.00 ",Legal Aid Payment Lower Crime
MINISTRY OF JUSTICE,LEGAL AID AGENCY,31/08/2016,Legal Help,LEGAL AID FUND,ISON HARRISON LTD,1048547:145130758," 33,729.00 ",Legal Aid Payment Legal Help
MINISTRY OF JUSTICE,LEGAL AID AGENCY,10/08/2016,Higher Crime,LEGAL AID FUND,J D SOLICITORS,1033427:144949242," 89,975.11 ",Legal Aid Payment Higher Crime
MINISTRY OF JUSTICE,LEGAL AID AGENCY,31/08/2016,Lower Crime,LEGAL AID FUND,J D SOLICITORS,1048282:145132679," 33,636.00 ",Legal Aid Payment Lower Crime
MINISTRY OF JUSTICE,LEGAL AID AGENCY,31/08/2016,Lower Crime,LEGAL AID FUND,J D SOLICITORS,1047965:145132747," 55,265.00 ",Legal Aid Payment Lower Crime
MINISTRY OF JUSTICE,LEGAL AID AGENCY,03/08/2016,Higher Crime,LEGAL AID FUND,J D SPICER ZEB,1031784:144886603," 48,268.98 ",Legal Aid Payment Higher Crime
MINISTRY OF JUSTICE,LEGAL AID AGENCY,18/08/2016,Higher Crime,LEGAL AID FUND,J D SPICER ZEB,1039011:145038280," 81,347.36 ",Legal Aid Payment Higher Crime
MINISTRY OF JUSTICE,LEGAL AID AGENCY,31/08/2016,Lower Crime,LEGAL AID FUND,J D SPICER ZEB,1049719:145132238," 107,953.00 ",Legal Aid Payment Lower Crime
MINISTRY OF JUSTICE,LEGAL AID AGENCY,31/08/2016,Civil Representation,LEGAL AID FUND,J L LAW LIMITED,1048599:145112475," 29,234.68 ",Legal Aid Payment Civil Representation
MINISTRY OF JUSTICE,LEGAL AID AGENCY,10/08/2016,Higher Crime,LEGAL AID FUND,JACQUELINE CAREY,1032734:144934391," 43,248.00 ",Legal Aid Payment Higher Crime
MINISTRY OF JUSTICE,LEGAL AID AGENCY,18/08/2016,Higher Crime,LEGAL AID FUND,JAMES A D WOOD QC,1037758:145010674," 52,714.00 ",Legal Aid Payment Higher Crime
MINISTRY OF JUSTICE,LEGAL AID AGENCY,31/08/2016,Higher Crime,LEGAL AID FUND,JAMES FLETCHER,1047470:145164113," 43,248.00 ",Legal Aid Payment Higher Crime
MINISTRY OF JUSTICE,LEGAL AID AGENCY,24/08/2016,Higher Crime,LEGAL AID FUND,JAMES M MULHOLLAND QC,1041763:145098035," 71,329.04 ",Legal Aid Payment Higher Crime
MINISTRY OF JUSTICE,LEGAL AID AGENCY,31/08/2016,Lower Crime,LEGAL AID FUND,JAMES MURRAY SOLICITORS,1048750:145132322," 27,940.00 ",Legal Aid Payment Lower Crime
MINISTRY OF JUSTICE,LEGAL AID AGENCY,03/08/2016,Higher Crime,LEGAL AID FUND,JANES SOLICITORS,1030298:144885929," 65,740.82 ",Legal Aid Payment Higher Crime
MINISTRY OF JUSTICE,LEGAL AID AGENCY,10/08/2016,Higher Crime,LEGAL AID FUND,JANES SOLICITORS,1036001:144954804," 207,414.00 ",Legal Aid Payment Higher Crime
MINISTRY OF JUSTICE,LEGAL AID AGENCY,24/08/2016,Higher Crime,LEGAL AID FUND,JANES SOLICITORS,1044423:145079055," 116,008.49 ",Legal Aid Payment Higher Crime
MINISTRY OF JUSTICE,LEGAL AID AGENCY,31/08/2016,Higher Crime,LEGAL AID FUND,JANES SOLICITORS,1049567:145140332," 50,857.29 ",Legal Aid Payment Higher Crime
MINISTRY OF JUSTICE,LEGAL AID AGENCY,10/08/2016,Civil Representation,LEGAL AID FUND,JANET C BAZLEY QC,1035198:144907840," 144,059.45 ",Legal Aid Payment Civil Representation
MINISTRY OF JUSTICE,LEGAL AID AGENCY,24/08/2016,Higher Crime,LEGAL AID FUND,JASON K PITTER,1041862:145054934," 61,720.00 ",Legal Aid Payment Higher Crime
MINISTRY OF JUSTICE,LEGAL AID AGENCY,24/08/2016,Higher Crime,LEGAL AID FUND,JDS SOLICITORS,1043423:145049744," 32,702.72 ",Legal Aid Payment Higher Crime
MINISTRY OF JUSTICE,LEGAL AID AGENCY,24/08/2016,Higher Crime,LEGAL AID FUND,JEREMY P WAINWRIGHT,1043143:145098624," 38,153.16 ",Legal Aid Payment Higher Crime
MINISTRY OF JUSTICE,LEGAL AID AGENCY,03/08/2016,Civil Representation,LEGAL AID FUND,JEREMY P WESTON,1031274:3000000991870010," 47,530.80 ",Legal Aid Payment Civil Representation
MINISTRY OF JUSTICE,LEGAL AID AGENCY,10/08/2016,Higher Crime,LEGAL AID FUND,JEREMY S DEIN QC,1033302:144937855," 26,162.17 ",Legal Aid Payment Higher Crime
MINISTRY OF JUSTICE,LEGAL AID AGENCY,31/08/2016,Lower Crime,LEGAL AID FUND,JERMAN SAMUELS & PEARSON LLP,1048696:145131559," 37,600.00 ",Legal Aid Payment Lower Crime
MINISTRY OF JUSTICE,LEGAL AID AGENCY,31/08/2016,Legal Help,LEGAL AID FUND,JESSE DOUGLAS & AASKELLS SOLICITORS,1049986:145130815," 37,880.00 ",Legal Aid Payment Legal Help
MINISTRY OF JUSTICE,LEGAL AID AGENCY,18/08/2016,Civil Representation,LEGAL AID FUND,JOANNE ASTBURY,1038051:144995928," 35,316.00 ",Legal Aid Payment Civil Representation
MINISTRY OF JUSTICE,LEGAL AID AGENCY,31/08/2016,Higher Crime,LEGAL AID FUND,JOAO ARSENIO,1046699:145119683," 31,084.44 ",Legal Aid Payment Higher Crime
MINISTRY OF JUSTICE,LEGAL AID AGENCY,24/08/2016,Higher Crime,LEGAL AID FUND,JOHN DELANEY & CO SOLICITORS,1043794:145060083," 28,080.47 ",Legal Aid Payment Higher Crime
MINISTRY OF JUSTICE,LEGAL AID AGENCY,31/08/2016,Lower Crime,LEGAL AID FUND,JOHN DELANEY & CO SOLICITORS,1048483:145131582," 30,000.00 ",Legal Aid Payment Lower Crime
MINISTRY OF JUSTICE,LEGAL AID AGENCY,18/08/2016,Higher Crime,LEGAL AID FUND,JOHN FULLER & PARTNERS,1039048:145019030," 56,860.18 ",Legal Aid Payment Higher Crime
MINISTRY OF JUSTICE,LEGAL AID AGENCY,31/08/2016,Lower Crime,LEGAL AID FUND,JOHN FULLER & PARTNERS,1048106:145132149," 27,868.00 ",Legal Aid Payment Lower Crime
MINISTRY OF JUSTICE,LEGAL AID AGENCY,10/08/2016,Civil Representation,LEGAL AID FUND,JOHN KER-REID,1032721:144952428," 48,377.28 ",Legal Aid Payment Civil Representation
MINISTRY OF JUSTICE,LEGAL AID AGENCY,31/08/2016,Lower Crime,LEGAL AID FUND,JOHN ONIONS SOLICITORS,1049648:145132636," 76,361.00 ",Legal Aid Payment Lower Crime
MINISTRY OF JUSTICE,LEGAL AID AGENCY,18/08/2016,Higher Crime,LEGAL AID FUND,JOHN RYDER QC,1038403:145045600," 87,408.00 ",Legal Aid Payment Higher Crime
MINISTRY OF JUSTICE,LEGAL AID AGENCY,31/08/2016,Civil Representation,LEGAL AID FUND,JOHN WHITTLE ROBINSON,1048738:3000001046570003," 25,423.56 ",Legal Aid Payment Civil Representation
MINISTRY OF JUSTICE,LEGAL AID AGENCY,10/08/2016,Higher Crime,LEGAL AID FUND,JOHNATHAN CHALLINOR,1035027:144981097," 27,748.90 ",Legal Aid Payment Higher Crime
MINISTRY OF JUSTICE,LEGAL AID AGENCY,18/08/2016,Higher Crime,LEGAL AID FUND,JOHNSON ASTILLS,1039682:145009394," 46,507.82 ",Legal Aid Payment Higher Crime
MINISTRY OF JUSTICE,LEGAL AID AGENCY,18/08/2016,Higher Crime,LEGAL AID FUND,JOHNSON ASTILLS-ADVOCATE,1037267:145010712," 29,164.03 ",Legal Aid Payment Higher Crime
MINISTRY OF JUSTICE,LEGAL AID AGENCY,31/08/2016,Lower Crime,LEGAL AID FUND,JONAS ROY BLOOM,1048368:145131939," 34,900.00 ",Legal Aid Payment Lower Crime
MINISTRY OF JUSTICE,LEGAL AID AGENCY,10/08/2016,Higher Crime,LEGAL AID FUND,JONATHAN A C HIGGS QC,1035003:144948923," 27,955.02 ",Legal Aid Payment Higher Crime
MINISTRY OF JUSTICE,LEGAL AID AGENCY,10/08/2016,Higher Crime,LEGAL AID FUND,JONATHAN J ANDERS,1034412:144948908," 26,820.77 ",Legal Aid Payment Higher Crime
MINISTRY OF JUSTICE,LEGAL AID AGENCY,03/08/2016,Higher Crime,LEGAL AID FUND,JOSEPH HILL & CO,1028870:144885973," 98,602.86 ",Legal Aid Payment Higher Crime
MINISTRY OF JUSTICE,LEGAL AID AGENCY,10/08/2016,Higher Crime,LEGAL AID FUND,JOSEPH HILL & CO,1035951:144959261," 36,393.22 ",Legal Aid Payment Higher Crime
MINISTRY OF JUSTICE,LEGAL AID AGENCY,31/08/2016,Lower Crime,LEGAL AID FUND,JOSEPH HILL & CO,1049272:145140859,"-42,000.00 ",Legal Aid Payment Lower Crime
MINISTRY OF JUSTICE,LEGAL AID AGENCY,31/08/2016,Lower Crime,LEGAL AID FUND,JOSEPH HILL & CO,1049272:145131684," 42,000.00 ",Legal Aid Payment Lower Crime
MINISTRY OF JUSTICE,LEGAL AID AGENCY,31/08/2016,Higher Crime,LEGAL AID FUND,JSP LAW LTD,1047895:145120249," 32,063.28 ",Legal Aid Payment Higher Crime
MINISTRY OF JUSTICE,LEGAL AID AGENCY,31/08/2016,Lower Crime,LEGAL AID FUND,JSP LAW LTD,1047895:145132820," 57,364.00 ",Legal Aid Payment Lower Crime
MINISTRY OF JUSTICE,LEGAL AID AGENCY,18/08/2016,Civil Representation,LEGAL AID FUND,JUDI EVANS,1038858:144812056,"-27,853.33 ",Legal Aid Payment Civil Representation
MINISTRY OF JUSTICE,LEGAL AID AGENCY,03/08/2016,Civil Representation,LEGAL AID FUND,JULIE P FORSYTH,1031022:144822730," 27,869.40 ",Legal Aid Payment Civil Representation
MINISTRY OF JUSTICE,LEGAL AID AGENCY,18/08/2016,Civil Representation,LEGAL AID FUND,JUSTINE A LATTIMER,1038875:145005763,"-35,947.80 ",Legal Aid Payment Civil Representation
MINISTRY OF JUSTICE,LEGAL AID AGENCY,18/08/2016,Civil Representation,LEGAL AID FUND,JUSTINE A LATTIMER,1038875:145005739," 34,716.60 ",Legal Aid Payment Civil Representation
MINISTRY OF JUSTICE,LEGAL AID AGENCY,03/08/2016,Higher Crime,LEGAL AID FUND,K A SOLICITORS,1029851:144914563," 60,864.84 ",Legal Aid Payment Higher Crime
MINISTRY OF JUSTICE,LEGAL AID AGENCY,31/08/2016,Lower Crime,LEGAL AID FUND,K LEGAL SOLICITORS,1047870:145132844," 41,399.00 ",Legal Aid Payment Lower Crime
MINISTRY OF JUSTICE,LEGAL AID AGENCY,31/08/2016,Lower Crime,LEGAL AID FUND,KAIM TODNER SOLICITORS LIMITED,1050052:145132219," 37,163.00 ",Legal Aid Payment Lower Crime
MINISTRY OF JUSTICE,LEGAL AID AGENCY,31/08/2016,Lower Crime,LEGAL AID FUND,KAIM TODNER SOLICITORS LIMITED,1050053:145132218," 41,539.00 ",Legal Aid Payment Lower Crime
MINISTRY OF JUSTICE,LEGAL AID AGENCY,24/08/2016,Higher Crime,LEGAL AID FUND,KANGS SOLICITORS,1044657:145079281," 37,293.66 ",Legal Aid Payment Higher Crime
MINISTRY OF JUSTICE,LEGAL AID AGENCY,24/08/2016,Civil Representation,LEGAL AID FUND,KAREN LENNON,1043080:145006101,"-51,321.60 ",Legal Aid Payment Civil Representation
MINISTRY OF JUSTICE,LEGAL AID AGENCY,24/08/2016,Civil Representation,LEGAL AID FUND,KAREN LENNON,1043080:144952947," 57,024.00 ",Legal Aid Payment Civil Representation
MINISTRY OF JUSTICE,LEGAL AID AGENCY,31/08/2016,Higher Crime,LEGAL AID FUND,KAREN T WALTON,1046743:145109539," 33,551.04 ",Legal Aid Payment Higher Crime
MINISTRY OF JUSTICE,LEGAL AID AGENCY,10/08/2016,Higher Crime,LEGAL AID FUND,KARIM & CO SOLICITORS,1033654:144959108," 48,497.34 ",Legal Aid Payment Higher Crime
MINISTRY OF JUSTICE,LEGAL AID AGENCY,10/08/2016,Higher Crime,LEGAL AID FUND,KARIM S KHALIL QC,1033154:144937961," 48,085.21 ",Legal Aid Payment Higher Crime
MINISTRY OF JUSTICE,LEGAL AID AGENCY,31/08/2016,Higher Crime,LEGAL AID FUND,KARL J MASI,1045606:145164114," 43,248.00 ",Legal Aid Payment Higher Crime
MINISTRY OF JUSTICE,LEGAL AID AGENCY,18/08/2016,Civil Representation,LEGAL AID FUND,KARL J ROWLEY,1038695:3000000601820011," 54,270.00 ",Legal Aid Payment Civil Representation
MINISTRY OF JUSTICE,LEGAL AID AGENCY,03/08/2016,Civil Representation,LEGAL AID FUND,KATE M GRIEVE,1028268:143612436,"-36,073.00 ",Legal Aid Payment Civil Representation
MINISTRY OF JUSTICE,LEGAL AID AGENCY,31/08/2016,Higher Crime,LEGAL AID FUND,KATE O'RAGHALLAIGH,1045994:145108815," 31,193.74 ",Legal Aid Payment Higher Crime
MINISTRY OF JUSTICE,LEGAL AID AGENCY,03/08/2016,Civil Representation,LEGAL AID FUND,KATHERINE DUNSEATH,1030970:3000000754500016," 33,121.00 ",Legal Aid Payment Civil Representation
MINISTRY OF JUSTICE,LEGAL AID AGENCY,31/08/2016,Civil Representation,LEGAL AID FUND,KATIE PHILLIPS,1047063:145114605," 42,338.87 ",Legal Aid Payment Civil Representation
MINISTRY OF JUSTICE,LEGAL AID AGENCY,24/08/2016,Civil Representation,LEGAL AID FUND,KATY S RENSTEN,1042733:145034346," 33,372.00 ",Legal Aid Payment Civil Representation
MINISTRY OF JUSTICE,LEGAL AID AGENCY,24/08/2016,Higher Crime,LEGAL AID FUND,KAULDHAR & CO,1043598:145049653," 40,229.82 ",Legal Aid Payment Higher Crime
MINISTRY OF JUSTICE,LEGAL AID AGENCY,03/08/2016,Civil Representation,LEGAL AID FUND,KAYLEIGH M SIMMONS,1027841:3000001070160004," 27,086.40 ",Legal Aid Payment Civil Representation
MINISTRY OF JUSTICE,LEGAL AID AGENCY,03/08/2016,Higher Crime,LEGAL AID FUND,KEANEY & CO SOLICITORS,1029041:144886696," 26,820.01 ",Legal Aid Payment Higher Crime
MINISTRY OF JUSTICE,LEGAL AID AGENCY,31/08/2016,Lower Crime,LEGAL AID FUND,KEANEY WHITEHEAD PARTNERSHIP,1048107:145132330," 35,297.00 ",Legal Aid Payment Lower Crime
MINISTRY OF JUSTICE,LEGAL AID AGENCY,03/08/2016,Higher Crime,LEGAL AID FUND,KELCEY & HALL SOLICITORS,1030115:144886248," 91,096.68 ",Legal Aid Payment Higher Crime
MINISTRY OF JUSTICE,LEGAL AID AGENCY,18/08/2016,Higher Crime,LEGAL AID FUND,KELCEY & HALL SOLICITORS,1039721:145000506," 40,248.10 ",Legal Aid Payment Higher Crime
MINISTRY OF JUSTICE,LEGAL AID AGENCY,31/08/2016,Lower Crime,LEGAL AID FUND,KEMPS,1049496:145132450," 25,866.00 ",Legal Aid Payment Lower Crime
MINISTRY OF JUSTICE,LEGAL AID AGENCY,31/08/2016,Lower Crime,LEGAL AID FUND,KEMPS,1049497:145132446," 28,254.00 ",Legal Aid Payment Lower Crime
MINISTRY OF JUSTICE,LEGAL AID AGENCY,24/08/2016,Higher Crime,LEGAL AID FUND,KENNETH M BARROW & CO,1044447:145049192," 46,581.21 ",Legal Aid Payment Higher Crime
MINISTRY OF JUSTICE,LEGAL AID AGENCY,31/08/2016,Lower Crime,LEGAL AID FUND,KENT DEFENCE,1048069:145131539," 27,000.00 ",Legal Aid Payment Lower Crime
MINISTRY OF JUSTICE,LEGAL AID AGENCY,31/08/2016,Lower Crime,LEGAL AID FUND,KESAR & CO SOLICITORS,1047863:145132846," 26,248.00 ",Legal Aid Payment Lower Crime
MINISTRY OF JUSTICE,LEGAL AID AGENCY,03/08/2016,Higher Crime,LEGAL AID FUND,KHAN'S LAW FIRM LTD TA KK & CO,1028584:144885908," 69,271.38 ",Legal Aid Payment Higher Crime
MINISTRY OF JUSTICE,LEGAL AID AGENCY,18/08/2016,Higher Crime,LEGAL AID FUND,KHAN'S LAW FIRM LTD TA KK & CO,1039005:145010155," 54,464.00 ",Legal Aid Payment Higher Crime
MINISTRY OF JUSTICE,LEGAL AID AGENCY,24/08/2016,Higher Crime,LEGAL AID FUND,KHAN'S LAW FIRM LTD TA KK & CO,1043350:145049819," 33,720.40 ",Legal Aid Payment Higher Crime
MINISTRY OF JUSTICE,LEGAL AID AGENCY,24/08/2016,Higher Crime,LEGAL AID FUND,KIERAN P VAUGHAN,1041228:145097862," 29,337.11 ",Legal Aid Payment Higher Crime
MINISTRY OF JUSTICE,LEGAL AID AGENCY,25/08/2016,Civil Representation,LEGAL AID FUND,KNIGHTS SOLICITORS,1045099:2000000000001184,"-202,257.31 ",Legal Aid Payment Civil Representation
MINISTRY OF JUSTICE,LEGAL AID AGENCY,25/08/2016,Legal Help,LEGAL AID FUND,KNIGHTS SOLICITORS,1045099:128646252,"-98,528.02 ",Legal Aid Payment Legal Help
MINISTRY OF JUSTICE,LEGAL AID AGENCY,25/08/2016,Legal Help,LEGAL AID FUND,KNIGHTS SOLICITORS,1045099:128646248,"-90,000.00 ",Legal Aid Payment Legal Help
MINISTRY OF JUSTICE,LEGAL AID AGENCY,31/08/2016,Civil Representation,LEGAL AID FUND,KNOWLES BENNING LLP,1049022:145114505," 44,199.16 ",Legal Aid Payment Civil Representation
MINISTRY OF JUSTICE,LEGAL AID AGENCY,03/08/2016,Higher Crime,LEGAL AID FUND,KRISTINA HARRISON SOLICITORS,1028900:144886110," 89,975.11 ",Legal Aid Payment Higher Crime
MINISTRY OF JUSTICE,LEGAL AID AGENCY,31/08/2016,Lower Crime,LEGAL AID FUND,KSP SOLICITORS,1047972:145132828," 26,238.00 ",Legal Aid Payment Lower Crime
MINISTRY OF JUSTICE,LEGAL AID AGENCY,18/08/2016,Higher Crime,LEGAL AID FUND,LAM & MEERABUX SOLICITORS,1039018:145009763," 40,851.00 ",Legal Aid Payment Higher Crime
MINISTRY OF JUSTICE,LEGAL AID AGENCY,31/08/2016,Lower Crime,LEGAL AID FUND,LANSBURY WORTHINGTON,1049489:145131457," 54,900.00 ",Legal Aid Payment Lower Crime
MINISTRY OF JUSTICE,LEGAL AID AGENCY,31/08/2016,Higher Crime,LEGAL AID FUND,LANYON BOWDLER LLP,1049637:145120180," 31,947.96 ",Legal Aid Payment Higher Crime
MINISTRY OF JUSTICE,LEGAL AID AGENCY,31/08/2016,Higher Crime,LEGAL AID FUND,LANYON BOWDLER LLP,1049637:145120147," 46,264.86 ",Legal Aid Payment Higher Crime
MINISTRY OF JUSTICE,LEGAL AID AGENCY,03/08/2016,Civil Representation,LEGAL AID FUND,LARCOMES LLP,1031860:144880962," 39,038.64 ",Legal Aid Payment Civil Representation
MINISTRY OF JUSTICE,LEGAL AID AGENCY,31/08/2016,Legal Help,LEGAL AID FUND,LAWANA & CO,1048078:145130377," 79,000.00 ",Legal Aid Payment Legal Help
MINISTRY OF JUSTICE,LEGAL AID AGENCY,31/08/2016,Lower Crime,LEGAL AID FUND,LAWRENCE & CO,1049273:145131506," 35,000.00 ",Legal Aid Payment Lower Crime
MINISTRY OF JUSTICE,LEGAL AID AGENCY,31/08/2016,Legal Help,LEGAL AID FUND,LAWRENCE LUPIN SOLICITORS LTD,1048658:145141172," 118,265.00 ",Legal Aid Payment Legal Help
MINISTRY OF JUSTICE,LEGAL AID AGENCY,31/08/2016,Lower Crime,LEGAL AID FUND,LAWTONS SOLICITORS LTD,1048403:145131484," 25,000.00 ",Legal Aid Payment Lower Crime
MINISTRY OF JUSTICE,LEGAL AID AGENCY,31/08/2016,Lower Crime,LEGAL AID FUND,LAWTONS SOLICITORS LTD,1047921:145131464," 85,000.00 ",Legal Aid Payment Lower Crime
Ministry of Justice,LAA,23/08/2016,610400-Debtors <1 year - Prepayments & Accrued Income,VA396-Property Costs,LEEDS CITY COUNCIL,2006476," 11,281.90 ",Property Costs
MINISTRY OF JUSTICE,LEGAL AID AGENCY,31/08/2016,Legal Help,LEGAL AID FUND,LEGAL JUSTICE SOLICITORS,1045467:145131307," 28,800.00 ",Legal Aid Payment Legal Help
MINISTRY OF JUSTICE,LEGAL AID AGENCY,31/08/2016,Legal Help,LEGAL AID FUND,LEI DAT BAIG SOLICITORS LIMITED,1047742:145131148," 46,865.00 ",Legal Aid Payment Legal Help
MINISTRY OF JUSTICE,LEGAL AID AGENCY,10/08/2016,Higher Crime,LEGAL AID FUND,LEONARD SMITH QC,1034844:144981548," 74,677.04 ",Legal Aid Payment Higher Crime
MINISTRY OF JUSTICE,LEGAL AID AGENCY,31/08/2016,Lower Crime,LEGAL AID FUND,LESLIE FRANKS SOLICITORS,1048185:145132280," 77,588.00 ",Legal Aid Payment Lower Crime
MINISTRY OF JUSTICE,LEGAL AID AGENCY,31/08/2016,Lower Crime,LEGAL AID FUND,LEVY & CO SOLICITORS LLP,1048169:145131533," 42,100.00 ",Legal Aid Payment Lower Crime
MINISTRY OF JUSTICE,LEGAL AID AGENCY,18/08/2016,Higher Crime,LEGAL AID FUND,LEWIS NEDAS & CO,1040323:145038272," 34,934.50 ",Legal Aid Payment Higher Crime
MINISTRY OF JUSTICE,LEGAL AID AGENCY,31/08/2016,Legal Help,LEGAL AID FUND,LISA MARIE MCNULTY SOLICITOR,1048898:145130890," 28,498.00 ",Legal Aid Payment Legal Help
MINISTRY OF JUSTICE,LEGAL AID AGENCY,31/08/2016,Lower Crime,LEGAL AID FUND,LLM SOLICITORS (LONDON) LTD,1047919:145132833," 36,247.00 ",Legal Aid Payment Lower Crime
MINISTRY OF JUSTICE,LEGAL AID AGENCY,31/08/2016,Higher Crime,LEGAL AID FUND,LLM SOLICITORS (LONDON) LTD,1047919:145120314," 49,729.07 ",Legal Aid Payment Higher Crime
MINISTRY OF JUSTICE,LEGAL AID AGENCY,31/08/2016,Lower Crime,LEGAL AID FUND,LLOYD & ROWE,1049946:145131638," 30,600.00 ",Legal Aid Payment Lower Crime
MINISTRY OF JUSTICE,LEGAL AID AGENCY,03/08/2016,Higher Crime,LEGAL AID FUND,LLOYDS PR SOLICITORS,1031408:144914545," 25,953.94 ",Legal Aid Payment Higher Crime
MINISTRY OF JUSTICE,LEGAL AID AGENCY,03/08/2016,Higher Crime,LEGAL AID FUND,LLOYDS PR SOLICITORS,1031408:144914770," 26,698.10 ",Legal Aid Payment Higher Crime
MINISTRY OF JUSTICE,LEGAL AID AGENCY,03/08/2016,Higher Crime,LEGAL AID FUND,LLOYDS PR SOLICITORS,1031408:144914815," 57,392.95 ",Legal Aid Payment Higher Crime
MINISTRY OF JUSTICE,LEGAL AID AGENCY,10/08/2016,Higher Crime,LEGAL AID FUND,LLOYDS PR SOLICITORS,1035534:144949256," 105,857.75 ",Legal Aid Payment Higher Crime
MINISTRY OF JUSTICE,LEGAL AID AGENCY,31/08/2016,Civil Representation,LEGAL AID FUND,LOUISE MCCALLUM,1046950:3000000911860008," 28,015.20 ",Legal Aid Payment Civil Representation
MINISTRY OF JUSTICE,LEGAL AID AGENCY,10/08/2016,Higher Crime,LEGAL AID FUND,LOUND MULRENAN SOLICITORS,1035928:144954233," 72,884.31 ",Legal Aid Payment Higher Crime
MINISTRY OF JUSTICE,LEGAL AID AGENCY,10/08/2016,Civil Representation,LEGAL AID FUND,LOVELL CHOHAN SOLICITORS LTD,1034023:144891576," 30,157.43 ",Legal Aid Payment Civil Representation
MINISTRY OF JUSTICE,LEGAL AID AGENCY,18/08/2016,Civil Representation,LEGAL AID FUND,LUCY HENDRY,1036965:3000000367990037," 33,350.40 ",Legal Aid Payment Civil Representation
MINISTRY OF JUSTICE,LEGAL AID AGENCY,31/08/2016,Lower Crime,LEGAL AID FUND,LUMB & MACGILL,1048502:145131640," 35,000.00 ",Legal Aid Payment Lower Crime
MINISTRY OF JUSTICE,LEGAL AID AGENCY,31/08/2016,Legal Help,LEGAL AID FUND,LUQMANI THOMPSON & PARTNERS,1048703:145130781," 29,746.00 ",Legal Aid Payment Legal Help
MINISTRY OF JUSTICE,LEGAL AID AGENCY,18/08/2016,Higher Crime,LEGAL AID FUND,M & N SOLICITORS,1039485:145019394," 26,820.01 ",Legal Aid Payment Higher Crime
MINISTRY OF JUSTICE,LEGAL AID AGENCY,10/08/2016,Higher Crime,LEGAL AID FUND,M B LAW LTD,1033477:144949181," 116,693.51 ",Legal Aid Payment Higher Crime
MINISTRY OF JUSTICE,LEGAL AID AGENCY,31/08/2016,Lower Crime,LEGAL AID FUND,M B LAW LTD,1048248:145132233," 26,964.00 ",Legal Aid Payment Lower Crime
MINISTRY OF JUSTICE,LEGAL AID AGENCY,24/08/2016,Higher Crime,LEGAL AID FUND,M B LAW LTD-ADVOCATE,1040984:145098210," 30,151.88 ",Legal Aid Payment Higher Crime
MINISTRY OF JUSTICE,LEGAL AID AGENCY,31/08/2016,Legal Help,LEGAL AID FUND,M H LEGAL,1048396:145130951," 31,295.00 ",Legal Aid Payment Legal Help
MINISTRY OF JUSTICE,LEGAL AID AGENCY,03/08/2016,Higher Crime,LEGAL AID FUND,M K LAW SOLICITORS LTD,1029858:144886106," 26,685.74 ",Legal Aid Payment Higher Crime
MINISTRY OF JUSTICE,LEGAL AID AGENCY,31/08/2016,Lower Crime,LEGAL AID FUND,M K LAW SOLICITORS LTD,1047813:145132785," 56,941.00 ",Legal Aid Payment Lower Crime
MINISTRY OF JUSTICE,LEGAL AID AGENCY,10/08/2016,Higher Crime,LEGAL AID FUND,M.H.SOLICITORS,1035670:144959019," 25,415.15 ",Legal Aid Payment Higher Crime
MINISTRY OF JUSTICE,LEGAL AID AGENCY,26/08/2016,Lower Crime,LEGAL AID FUND,MACKESYS SOLICITORS,1045114:143284071,"-274,928.60 ",Legal Aid Payment Lower Crime
MINISTRY OF JUSTICE,LEGAL AID AGENCY,26/08/2016,Higher Crime,LEGAL AID FUND,MACKESYS SOLICITORS,1045114:2000000000001203,"-97,658.16 ",Legal Aid Payment Higher Crime
MINISTRY OF JUSTICE,LEGAL AID AGENCY,26/08/2016,Higher Crime,LEGAL AID FUND,MACKESYS SOLICITORS,1045112:138514453,"-65,397.12 ",Legal Aid Payment Higher Crime
MINISTRY OF JUSTICE,LEGAL AID AGENCY,26/08/2016,Lower Crime,LEGAL AID FUND,MACKESYS SOLICITORS,1045114:139757618,"-49,000.00 ",Legal Aid Payment Lower Crime
MINISTRY OF JUSTICE,LEGAL AID AGENCY,26/08/2016,Lower Crime,LEGAL AID FUND,MACKESYS SOLICITORS,1045114:139757573,"-48,000.00 ",Legal Aid Payment Lower Crime
MINISTRY OF JUSTICE,LEGAL AID AGENCY,26/08/2016,Lower Crime,LEGAL AID FUND,MACKESYS SOLICITORS,1045114:139757567,"-47,000.00 ",Legal Aid Payment Lower Crime
MINISTRY OF JUSTICE,LEGAL AID AGENCY,26/08/2016,Lower Crime,LEGAL AID FUND,MACKESYS SOLICITORS,1045114:139757565,"-46,000.00 ",Legal Aid Payment Lower Crime
MINISTRY OF JUSTICE,LEGAL AID AGENCY,26/08/2016,Lower Crime,LEGAL AID FUND,MACKESYS SOLICITORS,1045114:139757562,"-45,000.00 ",Legal Aid Payment Lower Crime
MINISTRY OF JUSTICE,LEGAL AID AGENCY,26/08/2016,Lower Crime,LEGAL AID FUND,MACKESYS SOLICITORS,1045113:129194406,"-44,734.00 ",Legal Aid Payment Lower Crime
MINISTRY OF JUSTICE,LEGAL AID AGENCY,26/08/2016,Lower Crime,LEGAL AID FUND,MACKESYS SOLICITORS,1045114:139757644,"-39,928.00 ",Legal Aid Payment Lower Crime
MINISTRY OF JUSTICE,LEGAL AID AGENCY,26/08/2016,Lower Crime,LEGAL AID FUND,MACKESYS SOLICITORS,1045113:129194408,"-39,736.00 ",Legal Aid Payment Lower Crime
Ministry of Justice,LAA,23/08/2016,223000-Other Expenditure,VA094-Head of Legal,MACKINTOSH LAW,2006481," 32,698.45 ",Legal Costs
MINISTRY OF JUSTICE,LEGAL AID AGENCY,03/08/2016,Higher Crime,LEGAL AID FUND,MAIDMENTS LTD,1028902:144886087," 81,347.36 ",Legal Aid Payment Higher Crime
MINISTRY OF JUSTICE,LEGAL AID AGENCY,31/08/2016,Civil Representation,LEGAL AID FUND,MAKIN DIXON SOLICITORS LTD,1045630:3000000665310006," 26,819.09 ",Legal Aid Payment Civil Representation
MINISTRY OF JUSTICE,LEGAL AID AGENCY,10/08/2016,Higher Crime,LEGAL AID FUND,MANN & CO SOLICITORS,1035734:144949315," 81,347.36 ",Legal Aid Payment Higher Crime
MINISTRY OF JUSTICE,LEGAL AID AGENCY,10/08/2016,Higher Crime,LEGAL AID FUND,MANN & CO SOLICITORS,1035734:144949286," 97,616.83 ",Legal Aid Payment Higher Crime
MINISTRY OF JUSTICE,LEGAL AID AGENCY,18/08/2016,Higher Crime,LEGAL AID FUND,MANN & CO SOLICITORS,1039431:145019509," 54,527.35 ",Legal Aid Payment Higher Crime
MINISTRY OF JUSTICE,LEGAL AID AGENCY,31/08/2016,Higher Crime,LEGAL AID FUND,MANN & CO SOLICITORS,1048667:145121212," 26,820.01 ",Legal Aid Payment Higher Crime
MINISTRY OF JUSTICE,LEGAL AID AGENCY,31/08/2016,Lower Crime,LEGAL AID FUND,MANN & CO SOLICITORS,1048667:145131545," 27,600.00 ",Legal Aid Payment Lower Crime
MINISTRY OF JUSTICE,LEGAL AID AGENCY,18/08/2016,Higher Crime,LEGAL AID FUND,MARION SMULLEN,1036970:145010367," 27,507.20 ",Legal Aid Payment Higher Crime
MINISTRY OF JUSTICE,LEGAL AID AGENCY,10/08/2016,Higher Crime,LEGAL AID FUND,MARK D KNOWLES,1033111:144958817," 27,977.38 ",Legal Aid Payment Higher Crime
MINISTRY OF JUSTICE,LEGAL AID AGENCY,10/08/2016,Higher Crime,LEGAL AID FUND,MARK JACKSON,1035371:144925956," 38,906.76 ",Legal Aid Payment Higher Crime
MINISTRY OF JUSTICE,LEGAL AID AGENCY,10/08/2016,Higher Crime,LEGAL AID FUND,MARK JONES & PARTNERS,1035705:144981283," 35,447.96 ",Legal Aid Payment Higher Crime
MINISTRY OF JUSTICE,LEGAL AID AGENCY,03/08/2016,Higher Crime,LEGAL AID FUND,MARK N BRYANT-HERON,1031308:144909339," 65,840.00 ",Legal Aid Payment Higher Crime
MINISTRY OF JUSTICE,LEGAL AID AGENCY,18/08/2016,Higher Crime,LEGAL AID FUND,MARK R TRAFFORD,1038293:145044794," 70,960.00 ",Legal Aid Payment Higher Crime
MINISTRY OF JUSTICE,LEGAL AID AGENCY,03/08/2016,Higher Crime,LEGAL AID FUND,MARTIN J TAYLOR,1029537:144895505," 29,864.08 ",Legal Aid Payment Higher Crime
MINISTRY OF JUSTICE,LEGAL AID AGENCY,31/08/2016,Lower Crime,LEGAL AID FUND,MARTIN MURRAY & ASSOCIATES,1050001:145132566," 27,414.00 ",Legal Aid Payment Lower Crime
MINISTRY OF JUSTICE,LEGAL AID AGENCY,31/08/2016,Lower Crime,LEGAL AID FUND,MARTIN MURRAY & ASSOCIATES,1050002:145132229," 70,347.00 ",Legal Aid Payment Lower Crime
MINISTRY OF JUSTICE,LEGAL AID AGENCY,31/08/2016,Lower Crime,LEGAL AID FUND,MARTYN HEWETT,1050101:145131643," 33,900.00 ",Legal Aid Payment Lower Crime
MINISTRY OF JUSTICE,LEGAL AID AGENCY,24/08/2016,Higher Crime,LEGAL AID FUND,MARY MONSON SOLICITORS,1043463:145079077," 94,436.39 ",Legal Aid Payment Higher Crime
MINISTRY OF JUSTICE,LEGAL AID AGENCY,18/08/2016,Higher Crime,LEGAL AID FUND,MARY PRIOR,1038296:144999838," 27,644.86 ",Legal Aid Payment Higher Crime
MINISTRY OF JUSTICE,LEGAL AID AGENCY,24/08/2016,Higher Crime,LEGAL AID FUND,MATHEW J SHERRATT,1042151:145059911," 25,900.97 ",Legal Aid Payment Higher Crime
MINISTRY OF JUSTICE,LEGAL AID AGENCY,10/08/2016,Civil Representation,LEGAL AID FUND,MATTHEW A HEYWOOD,1033363:142524191,"-25,620.19 ",Legal Aid Payment Civil Representation
MINISTRY OF JUSTICE,LEGAL AID AGENCY,10/08/2016,Higher Crime,LEGAL AID FUND,MATTHEW C LAWSON,1034873:144938126," 28,896.77 ",Legal Aid Payment Higher Crime
MINISTRY OF JUSTICE,LEGAL AID AGENCY,03/08/2016,Civil Representation,LEGAL AID FUND,MATTHEW D MAYNARD,1031285:3000000991870011," 26,026.64 ",Legal Aid Payment Civil Representation
MINISTRY OF JUSTICE,LEGAL AID AGENCY,24/08/2016,Civil Representation,LEGAL AID FUND,MATWALA VYAS LLP,1043971:145076073," 27,660.05 ",Legal Aid Payment Civil Representation
MINISTRY OF JUSTICE,LEGAL AID AGENCY,31/08/2016,Lower Crime,LEGAL AID FUND,MCCORMACKS LAW,1047892:145132761," 31,086.00 ",Legal Aid Payment Lower Crime
MINISTRY OF JUSTICE,LEGAL AID AGENCY,31/08/2016,Lower Crime,LEGAL AID FUND,MCGANNS LAW LTD,1048417:145132124," 65,328.00 ",Legal Aid Payment Lower Crime
MINISTRY OF JUSTICE,LEGAL AID AGENCY,31/08/2016,Lower Crime,LEGAL AID FUND,MCGRATH & CO SOLICITORS,1048370:145131752," 30,000.00 ",Legal Aid Payment Lower Crime
MINISTRY OF JUSTICE,LEGAL AID AGENCY,24/08/2016,Civil Representation,LEGAL AID FUND,MCGUINNESS LEGAL,1041296:145073868," 28,245.08 ",Legal Aid Payment Civil Representation
MINISTRY OF JUSTICE,LEGAL AID AGENCY,03/08/2016,Civil Representation,LEGAL AID FUND,MCMILLAN WILLIAMS SOLICITORS LTD,1028920:144922807,"-72,000.00 ",Legal Aid Payment Civil Representation
MINISTRY OF JUSTICE,LEGAL AID AGENCY,03/08/2016,Civil Representation,LEGAL AID FUND,MCMILLAN WILLIAMS SOLICITORS LTD,1028920:144893017," 72,000.00 ",Legal Aid Payment Civil Representation
MINISTRY OF JUSTICE,LEGAL AID AGENCY,03/08/2016,Civil Representation,LEGAL AID FUND,MCMILLAN WILLIAMS SOLICITORS LTD,1028920:144922806," 96,000.00 ",Legal Aid Payment Civil Representation
MINISTRY OF JUSTICE,LEGAL AID AGENCY,31/08/2016,Lower Crime,LEGAL AID FUND,MCMILLAN WILLIAMS SOLICITORS LTD,1049625:145131719," 62,200.00 ",Legal Aid Payment Lower Crime
MINISTRY OF JUSTICE,LEGAL AID AGENCY,31/08/2016,Higher Crime,LEGAL AID FUND,MCMILLAN WILLIAMS SOLICITORS LTD,1049748:145133932," 97,258.75 ",Legal Aid Payment Higher Crime
MINISTRY OF JUSTICE,LEGAL AID AGENCY,10/08/2016,Civil Representation,LEGAL AID FUND,MCMILLEN HAMILTON MCCARTHY,1036187:144953282,"-36,484.69 ",Legal Aid Payment Civil Representation
MINISTRY OF JUSTICE,LEGAL AID AGENCY,10/08/2016,Civil Representation,LEGAL AID FUND,MCMILLEN HAMILTON MCCARTHY,1036187:144953277," 38,579.69 ",Legal Aid Payment Civil Representation
MINISTRY OF JUSTICE,LEGAL AID AGENCY,10/08/2016,Higher Crime,LEGAL AID FUND,MCSORLEY LEWIS LAW LTD,1036122:144938340," 27,086.10 ",Legal Aid Payment Higher Crime
MINISTRY OF JUSTICE,LEGAL AID AGENCY,31/08/2016,Lower Crime,LEGAL AID FUND,MCSORLEY LEWIS LAW LTD,1049819:145132071," 29,286.00 ",Legal Aid Payment Lower Crime
MINISTRY OF JUSTICE,LEGAL AID AGENCY,31/08/2016,Civil Representation,LEGAL AID FUND,MEDIATION NOW,1047987:145133039," 34,900.00 ",Legal Aid Payment Civil Representation
MINISTRY OF JUSTICE,LEGAL AID AGENCY,18/08/2016,Higher Crime,LEGAL AID FUND,MESSRS WATERFORDS SOLICITORS,1040232:145000784," 57,486.95 ",Legal Aid Payment Higher Crime
MINISTRY OF JUSTICE,LEGAL AID AGENCY,24/08/2016,Higher Crime,LEGAL AID FUND,MESSRS WATERFORDS SOLICITORS,1044598:145098573," 32,610.76 ",Legal Aid Payment Higher Crime
MINISTRY OF JUSTICE,LEGAL AID AGENCY,24/08/2016,Higher Crime,LEGAL AID FUND,MESSRS WATERFORDS SOLICITORS,1044598:145070083," 95,707.01 ",Legal Aid Payment Higher Crime
MINISTRY OF JUSTICE,LEGAL AID AGENCY,10/08/2016,Civil Representation,LEGAL AID FUND,METAMORPH LAW LTD,1032401:3000000672300006," 31,087.71 ",Legal Aid Payment Civil Representation
MINISTRY OF JUSTICE,LEGAL AID AGENCY,31/08/2016,Lower Crime,LEGAL AID FUND,MICHAEL CULSHAW & CO,1048183:145132417," 26,080.00 ",Legal Aid Payment Lower Crime
MINISTRY OF JUSTICE,LEGAL AID AGENCY,24/08/2016,Higher Crime,LEGAL AID FUND,MICHAEL F A BORELLI QC,1042264:145049919," 43,746.47 ",Legal Aid Payment Higher Crime
MINISTRY OF JUSTICE,LEGAL AID AGENCY,24/08/2016,Higher Crime,LEGAL AID FUND,MICHAEL J IVERS,1041285:145048619," 25,595.94 ",Legal Aid Payment Higher Crime
MINISTRY OF JUSTICE,LEGAL AID AGENCY,31/08/2016,Lower Crime,LEGAL AID FUND,MICHAEL PURDON,1049339:145132357," 30,713.00 ",Legal Aid Payment Lower Crime
MINISTRY OF JUSTICE,LEGAL AID AGENCY,18/08/2016,Higher Crime,LEGAL AID FUND,MICHAEL TURNER QC,1036825:145001084," 62,519.56 ",Legal Aid Payment Higher Crime
Ministry of Justice,LAA,26/08/2016,222002-Other Property Costs,VA116-Commissioning Mgmt,MIGRANT HELPLINE,2006551," 13,387.87 ",Referral Fees
Ministry of Justice,LAA,26/08/2016,222002-Other Property Costs,VA116-Commissioning Mgmt,MIGRANT HELPLINE,2006551," 15,494.21 ",Referral Fees
MINISTRY OF JUSTICE,LEGAL AID AGENCY,31/08/2016,Legal Help,LEGAL AID FUND,MIGRANT LEGAL PROJECT,1045593:145131329," 67,731.00 ",Legal Aid Payment Legal Help
MINISTRY OF JUSTICE,LEGAL AID AGENCY,03/08/2016,Civil Representation,LEGAL AID FUND,MILES & PARTNERS LLP,1028825:144881667," 33,996.92 ",Legal Aid Payment Civil Representation
MINISTRY OF JUSTICE,LEGAL AID AGENCY,24/08/2016,Civil Representation,LEGAL AID FUND,MILES & PARTNERS LLP,1044391:145075548," 25,705.35 ",Legal Aid Payment Civil Representation
MINISTRY OF JUSTICE,LEGAL AID AGENCY,24/08/2016,Civil Representation,LEGAL AID FUND,MILES & PARTNERS LLP,1044391:145072236," 30,098.98 ",Legal Aid Payment Civil Representation
MINISTRY OF JUSTICE,LEGAL AID AGENCY,18/08/2016,Higher Crime,LEGAL AID FUND,MOHAMMED & CO,1039499:145019947," 46,711.86 ",Legal Aid Payment Higher Crime
MINISTRY OF JUSTICE,LEGAL AID AGENCY,24/08/2016,Higher Crime,LEGAL AID FUND,MOHAMMED & CO,1043844:145079788," 81,347.36 ",Legal Aid Payment Higher Crime
MINISTRY OF JUSTICE,LEGAL AID AGENCY,19/08/2016,Lower Crime,LEGAL AID FUND,MORGAN CULLEN & BALL LTD,1040605:127315752,"-25,676.54 ",Legal Aid Payment Lower Crime
MINISTRY OF JUSTICE,LEGAL AID AGENCY,31/08/2016,Lower Crime,LEGAL AID FUND,MORGAN CULLEN & BALL LTD,1046025:145132895," 29,026.00 ",Legal Aid Payment Lower Crime
MINISTRY OF JUSTICE,LEGAL AID AGENCY,03/08/2016,Higher Crime,LEGAL AID FUND,MPR SOLICITORS LLP,1031632:144886108," 67,674.26 ",Legal Aid Payment Higher Crime
MINISTRY OF JUSTICE,LEGAL AID AGENCY,24/08/2016,Higher Crime,LEGAL AID FUND,MPR SOLICITORS LLP,1044059:145059679," 34,311.85 ",Legal Aid Payment Higher Crime
MINISTRY OF JUSTICE,LEGAL AID AGENCY,31/08/2016,Higher Crime,LEGAL AID FUND,MPR SOLICITORS LLP,1049015:145108451," 25,354.56 ",Legal Aid Payment Higher Crime
MINISTRY OF JUSTICE,LEGAL AID AGENCY,18/08/2016,Higher Crime,LEGAL AID FUND,MPR SOLICITORS LLP-ADVOCATE,1037292:145019053," 27,826.20 ",Legal Aid Payment Higher Crime
MINISTRY OF JUSTICE,LEGAL AID AGENCY,31/08/2016,Legal Help,LEGAL AID FUND,MTG SOLICITORS,1048468:145130390," 32,000.00 ",Legal Aid Payment Legal Help
MINISTRY OF JUSTICE,LEGAL AID AGENCY,31/08/2016,Lower Crime,LEGAL AID FUND,MURRAY BRANKIN,1046058:145131515," 25,000.00 ",Legal Aid Payment Lower Crime
MINISTRY OF JUSTICE,LEGAL AID AGENCY,31/08/2016,Lower Crime,LEGAL AID FUND,MURRAYS SOLICITORS LTD,1048309:145132411," 28,721.00 ",Legal Aid Payment Lower Crime
MINISTRY OF JUSTICE,LEGAL AID AGENCY,31/08/2016,Higher Crime,LEGAL AID FUND,MURRAYS SOLICITORS LTD,1048309:145108931," 38,391.19 ",Legal Aid Payment Higher Crime
MINISTRY OF JUSTICE,LEGAL AID AGENCY,03/08/2016,Higher Crime,LEGAL AID FUND,NAEEM MIAN,1031277:144886571," 27,445.54 ",Legal Aid Payment Higher Crime
MINISTRY OF JUSTICE,LEGAL AID AGENCY,10/08/2016,Higher Crime,LEGAL AID FUND,NARINDER S SEKHON,1035376:144981133," 26,979.36 ",Legal Aid Payment Higher Crime
MINISTRY OF JUSTICE,LEGAL AID AGENCY,24/08/2016,Civil Representation,LEGAL AID FUND,NATALIA W PERRETT,1042926:3000000700110019," 30,758.40 ",Legal Aid Payment Civil Representation
MINISTRY OF JUSTICE,LEGAL AID AGENCY,18/08/2016,Higher Crime,LEGAL AID FUND,NATHANIEL D RUDOLF,1038839:145038524," 45,372.84 ",Legal Aid Payment Higher Crime
MINISTRY OF JUSTICE,LEGAL AID AGENCY,31/08/2016,Civil Representation,LEGAL AID FUND,NATIONAL FAMILY MEDIATION,1047785:145133165," 34,560.00 ",Legal Aid Payment Civil Representation
MINISTRY OF JUSTICE,LEGAL AID AGENCY,03/08/2016,Higher Crime,LEGAL AID FUND,NAVJOT SIDHU,1028435:144866489," 44,831.23 ",Legal Aid Payment Higher Crime
MINISTRY OF JUSTICE,LEGAL AID AGENCY,31/08/2016,Lower Crime,LEGAL AID FUND,NEEDHAM POULIER LTD,1048701:145132306," 26,584.00 ",Legal Aid Payment Lower Crime
MINISTRY OF JUSTICE,LEGAL AID AGENCY,31/08/2016,Lower Crime,LEGAL AID FUND,NELSON GUEST & PARTNERS,1050105:145131500," 26,900.00 ",Legal Aid Payment Lower Crime
MINISTRY OF JUSTICE,LEGAL AID AGENCY,02/08/2016,Civil Representation,LEGAL AID FUND,NELSONS SOLICITORS LTD,1027625:144524217,"-65,974.50 ",Legal Aid Payment Civil Representation
MINISTRY OF JUSTICE,LEGAL AID AGENCY,18/08/2016,Higher Crime,LEGAL AID FUND,NEUMANS LLP,1039274:145000450," 49,490.99 ",Legal Aid Payment Higher Crime
MINISTRY OF JUSTICE,LEGAL AID AGENCY,24/08/2016,Higher Crime,LEGAL AID FUND,NEUMANS LLP,1043700:145068480," 63,906.90 ",Legal Aid Payment Higher Crime
MINISTRY OF JUSTICE,LEGAL AID AGENCY,18/08/2016,Higher Crime,LEGAL AID FUND,NEWTON LAW PRACTICE,1039229:145010703," 26,820.01 ",Legal Aid Payment Higher Crime
MINISTRY OF JUSTICE,LEGAL AID AGENCY,03/08/2016,Higher Crime,LEGAL AID FUND,NIGEL J POWER QC,1028199:144916661," 37,112.98 ",Legal Aid Payment Higher Crime
MINISTRY OF JUSTICE,LEGAL AID AGENCY,18/08/2016,Higher Crime,LEGAL AID FUND,NIGEL SOPPITT,1040512:144999850," 28,485.00 ",Legal Aid Payment Higher Crime
MINISTRY OF JUSTICE,LEGAL AID AGENCY,03/08/2016,Civil Representation,LEGAL AID FUND,NOBLE SOLICITORS,1028769:144921738," 27,941.23 ",Legal Aid Payment Civil Representation
MINISTRY OF JUSTICE,LEGAL AID AGENCY,31/08/2016,Lower Crime,LEGAL AID FUND,NOBLE SOLICITORS,1047934:145132722," 31,609.00 ",Legal Aid Payment Lower Crime
MINISTRY OF JUSTICE,LEGAL AID AGENCY,31/08/2016,Lower Crime,LEGAL AID FUND,NOBLE SOLICITORS,1048868:145132153," 46,053.00 ",Legal Aid Payment Lower Crime
MINISTRY OF JUSTICE,LEGAL AID AGENCY,31/08/2016,Lower Crime,LEGAL AID FUND,NOBLE SOLICITORS,1048128:145132156," 47,507.00 ",Legal Aid Payment Lower Crime
Ministry of Justice,LAA,23/08/2016,610400-Debtors <1 year - Prepayments & Accrued Income,VA396-Property Costs,NOTTINGHAM CITY COUNCIL,2006477," 6,013.70 ",Property Costs
MINISTRY OF JUSTICE,LEGAL AID AGENCY,18/08/2016,Higher Crime,LEGAL AID FUND,NUMBER ONE LAW LLP,1039076:145019283," 25,761.66 ",Legal Aid Payment Higher Crime
MINISTRY OF JUSTICE,LEGAL AID AGENCY,31/08/2016,Lower Crime,LEGAL AID FUND,NUMBER ONE LAW LLP,1048074:145132694," 29,052.00 ",Legal Aid Payment Lower Crime
MINISTRY OF JUSTICE,LEGAL AID AGENCY,31/08/2016,Lower Crime,LEGAL AID FUND,OBW PERERA LTD,1048454:145131514," 29,000.00 ",Legal Aid Payment Lower Crime
MINISTRY OF JUSTICE,LEGAL AID AGENCY,31/08/2016,Lower Crime,LEGAL AID FUND,O'GARRA'S SOLICITORS,1048799:145131494," 28,000.00 ",Legal Aid Payment Lower Crime
MINISTRY OF JUSTICE,LEGAL AID AGENCY,31/08/2016,Lower Crime,LEGAL AID FUND,O'KEEFFE SOLICITORS,1050081:145132282," 84,191.00 ",Legal Aid Payment Lower Crime
MINISTRY OF JUSTICE,LEGAL AID AGENCY,03/08/2016,Higher Crime,LEGAL AID FUND,OLAJIDE A LANLEHIN,1030837:144875619," 42,604.20 ",Legal Aid Payment Higher Crime
MINISTRY OF JUSTICE,LEGAL AID AGENCY,31/08/2016,Lower Crime,LEGAL AID FUND,OLIVER D'SA SOLICITORS,1049587:145132112," 29,233.00 ",Legal Aid Payment Lower Crime
MINISTRY OF JUSTICE,LEGAL AID AGENCY,24/08/2016,Higher Crime,LEGAL AID FUND,OLLIERS,1044006:145074030," 28,197.92 ",Legal Aid Payment Higher Crime
MINISTRY OF JUSTICE,LEGAL AID AGENCY,03/08/2016,Higher Crime,LEGAL AID FUND,O'NEILL SOLICITORS NEWCASTLE LTD,1031730:144914868," 41,233.54 ",Legal Aid Payment Higher Crime
MINISTRY OF JUSTICE,LEGAL AID AGENCY,10/08/2016,Higher Crime,LEGAL AID FUND,O'NEILL SOLICITORS NEWCASTLE LTD-ADVOCATE,1032476:144938275," 34,105.61 ",Legal Aid Payment Higher Crime
MINISTRY OF JUSTICE,LEGAL AID AGENCY,31/08/2016,Lower Crime,LEGAL AID FUND,"O'NEILL, WRIGHT & NASH",1047928:145132707," 41,428.00 ",Legal Aid Payment Lower Crime
MINISTRY OF JUSTICE,LEGAL AID AGENCY,31/08/2016,Lower Crime,LEGAL AID FUND,ONUMA & CO LLP,1045269:145132998," 27,895.00 ",Legal Aid Payment Lower Crime
MINISTRY OF JUSTICE,LEGAL AID AGENCY,31/08/2016,Lower Crime,LEGAL AID FUND,ORACLE SOLICITORS,1048725:145132287," 45,045.00 ",Legal Aid Payment Lower Crime
MINISTRY OF JUSTICE,LEGAL AID AGENCY,31/08/2016,Lower Crime,LEGAL AID FUND,OSLERS SOLICITORS,1048005:145131540," 29,700.00 ",Legal Aid Payment Lower Crime
MINISTRY OF JUSTICE,LEGAL AID AGENCY,31/08/2016,Legal Help,LEGAL AID FUND,OTTEN PENNA LTD,1048890:145130430," 29,000.00 ",Legal Aid Payment Legal Help
MINISTRY OF JUSTICE,LEGAL AID AGENCY,31/08/2016,Lower Crime,LEGAL AID FUND,OWEN NASH & CO,1049704:145131541," 40,000.00 ",Legal Aid Payment Lower Crime
MINISTRY OF JUSTICE,LEGAL AID AGENCY,31/08/2016,Lower Crime,LEGAL AID FUND,PALMERS CRIMINAL DEFENCE SOLICITORS,1048182:145131796," 30,000.00 ",Legal Aid Payment Lower Crime
MINISTRY OF JUSTICE,LEGAL AID AGENCY,31/08/2016,Legal Help,LEGAL AID FUND,PARAGON LAW LTD,1048394:145130499," 57,700.00 ",Legal Aid Payment Legal Help
MINISTRY OF JUSTICE,LEGAL AID AGENCY,31/08/2016,Lower Crime,LEGAL AID FUND,PARKER BIRD WHITELEY,1048196:145132409," 27,031.00 ",Legal Aid Payment Lower Crime
MINISTRY OF JUSTICE,LEGAL AID AGENCY,03/08/2016,Higher Crime,LEGAL AID FUND,PATRICK C HILL,1030761:144871951," 64,400.00 ",Legal Aid Payment Higher Crime
MINISTRY OF JUSTICE,LEGAL AID AGENCY,18/08/2016,Higher Crime,LEGAL AID FUND,PATRICK D HARTE,1036715:145009641," 32,441.76 ",Legal Aid Payment Higher Crime
MINISTRY OF JUSTICE,LEGAL AID AGENCY,31/08/2016,Higher Crime,LEGAL AID FUND,PATRICK M J O'CONNOR QC,1046724:145108980,"-61,775.87 ",Legal Aid Payment Higher Crime
MINISTRY OF JUSTICE,LEGAL AID AGENCY,31/08/2016,Higher Crime,LEGAL AID FUND,PATRICK M J O'CONNOR QC,1046724:145108934," 61,775.87 ",Legal Aid Payment Higher Crime
MINISTRY OF JUSTICE,LEGAL AID AGENCY,31/08/2016,Higher Crime,LEGAL AID FUND,PATRICK M J O'CONNOR QC,1046724:145109012," 61,775.87 ",Legal Aid Payment Higher Crime
MINISTRY OF JUSTICE,LEGAL AID AGENCY,03/08/2016,Higher Crime,LEGAL AID FUND,PAUL R HYNES QC,1028434:144866588," 40,818.01 ",Legal Aid Payment Higher Crime
MINISTRY OF JUSTICE,LEGAL AID AGENCY,31/08/2016,Lower Crime,LEGAL AID FUND,PENFOLD & MCPHERSON,1049642:145132568," 25,974.00 ",Legal Aid Payment Lower Crime
MINISTRY OF JUSTICE,LEGAL AID AGENCY,31/08/2016,Higher Crime,LEGAL AID FUND,PETER CARTER QC,1046967:145108690," 61,438.91 ",Legal Aid Payment Higher Crime
MINISTRY OF JUSTICE,LEGAL AID AGENCY,31/08/2016,Legal Help,LEGAL AID FUND,PETER EDWARDS LAW LTD,1048737:145130371," 59,200.00 ",Legal Aid Payment Legal Help
MINISTRY OF JUSTICE,LEGAL AID AGENCY,31/08/2016,Civil Representation,LEGAL AID FUND,PETER ROTHERY,1047126:145005917,"-32,254.20 ",Legal Aid Payment Civil Representation
MINISTRY OF JUSTICE,LEGAL AID AGENCY,31/08/2016,Civil Representation,LEGAL AID FUND,PETER ROTHERY,1047126:145004078," 29,791.80 ",Legal Aid Payment Civil Representation
MINISTRY OF JUSTICE,LEGAL AID AGENCY,03/08/2016,Higher Crime,LEGAL AID FUND,PETHERBRIDGE BASSRA SOLICITORS LTD,1028624:144876113," 25,390.34 ",Legal Aid Payment Higher Crime
MINISTRY OF JUSTICE,LEGAL AID AGENCY,31/08/2016,Lower Crime,LEGAL AID FUND,PETHERBRIDGE BASSRA SOLICITORS LTD,1048504:145132403," 34,143.00 ",Legal Aid Payment Lower Crime
MINISTRY OF JUSTICE,LEGAL AID AGENCY,31/08/2016,Higher Crime,LEGAL AID FUND,PHILIP MISNER,1046443:145109333," 50,988.36 ",Legal Aid Payment Higher Crime
MINISTRY OF JUSTICE,LEGAL AID AGENCY,19/08/2016,Civil Representation,LEGAL AID FUND,PHILLIPS GREEN & MURPHY,1040601:134838463,"-30,616.42 ",Legal Aid Payment Civil Representation
MINISTRY OF JUSTICE,LEGAL AID AGENCY,31/08/2016,Civil Representation,LEGAL AID FUND,PLATT HALPERN,1048855:145165965,"-29,202.36 ",Legal Aid Payment Civil Representation
MINISTRY OF JUSTICE,LEGAL AID AGENCY,31/08/2016,Lower Crime,LEGAL AID FUND,POOLE ALCOCK LLP,1048966:145131475," 28,500.00 ",Legal Aid Payment Lower Crime
MINISTRY OF JUSTICE,LEGAL AID AGENCY,24/08/2016,Civil Representation,LEGAL AID FUND,PORTER DODSON,1044725:145091254," 29,703.24 ",Legal Aid Payment Civil Representation
MINISTRY OF JUSTICE,LEGAL AID AGENCY,31/08/2016,Lower Crime,LEGAL AID FUND,POWELL SPENCER AND PARTNERS,1049720:145131487," 42,600.00 ",Legal Aid Payment Lower Crime
MINISTRY OF JUSTICE,LEGAL AID AGENCY,31/08/2016,Lower Crime,LEGAL AID FUND,PURCELL PARKER LTD,1048934:145131486," 85,000.00 ",Legal Aid Payment Lower Crime
MINISTRY OF JUSTICE,LEGAL AID AGENCY,03/08/2016,Higher Crime,LEGAL AID FUND,PUSHPANJALI GOHIL,1028169:144895467," 25,396.90 ",Legal Aid Payment Higher Crime
MINISTRY OF JUSTICE,LEGAL AID AGENCY,31/08/2016,Legal Help,LEGAL AID FUND,QS JACKSON CANTER LTD,1049530:145130773," 42,661.00 ",Legal Aid Payment Legal Help
MINISTRY OF JUSTICE,LEGAL AID AGENCY,31/08/2016,Legal Help,LEGAL AID FUND,QS JACKSON CANTER LTD,1046181:145131378," 71,000.00 ",Legal Aid Payment Legal Help
MINISTRY OF JUSTICE,LEGAL AID AGENCY,31/08/2016,Lower Crime,LEGAL AID FUND,QS JACKSON CANTER LTD,1046181:145132897," 82,191.00 ",Legal Aid Payment Lower Crime
MINISTRY OF JUSTICE,LEGAL AID AGENCY,31/08/2016,Legal Help,LEGAL AID FUND,QUALITY SOLICITORS CMHT,1049725:145130571," 45,678.00 ",Legal Aid Payment Legal Help
MINISTRY OF JUSTICE,LEGAL AID AGENCY,18/08/2016,Civil Representation,LEGAL AID FUND,QUALITYSOLICITORS HPJV,1040216:145015128,"-29,455.40 ",Legal Aid Payment Civil Representation
MINISTRY OF JUSTICE,LEGAL AID AGENCY,18/08/2016,Civil Representation,LEGAL AID FUND,QUALITYSOLICITORS HPJV,1040216:145015126," 29,962.86 ",Legal Aid Payment Civil Representation
MINISTRY OF JUSTICE,LEGAL AID AGENCY,31/08/2016,Lower Crime,LEGAL AID FUND,QUALITYSOLICITORS HPJV,1049737:145132047," 26,949.00 ",Legal Aid Payment Lower Crime
MINISTRY OF JUSTICE,LEGAL AID AGENCY,31/08/2016,Lower Crime,LEGAL AID FUND,QUALITYSOLICITORS JONES ROBERTSON,1048714:145132433," 26,819.00 ",Legal Aid Payment Lower Crime
MINISTRY OF JUSTICE,LEGAL AID AGENCY,03/08/2016,Higher Crime,LEGAL AID FUND,QUINN MELVILLE,1031490:144886097," 107,970.13 ",Legal Aid Payment Higher Crime
MINISTRY OF JUSTICE,LEGAL AID AGENCY,24/08/2016,Higher Crime,LEGAL AID FUND,QUINN MELVILLE,1043895:145049831," 31,487.35 ",Legal Aid Payment Higher Crime
MINISTRY OF JUSTICE,LEGAL AID AGENCY,18/08/2016,Civil Representation,LEGAL AID FUND,R AELRED HOOKWAY,1038164:3000000703040009," 27,572.40 ",Legal Aid Payment Civil Representation
MINISTRY OF JUSTICE,LEGAL AID AGENCY,03/08/2016,Higher Crime,LEGAL AID FUND,RAHMAN RAVELLI SOLICTORS LTD,1028753:144896024," 36,254.51 ",Legal Aid Payment Higher Crime
MINISTRY OF JUSTICE,LEGAL AID AGENCY,18/08/2016,Higher Crime,LEGAL AID FUND,RAHMAN RAVELLI SOLICTORS LTD,1039596:145010828," 105,857.75 ",Legal Aid Payment Higher Crime
MINISTRY OF JUSTICE,LEGAL AID AGENCY,24/08/2016,Higher Crime,LEGAL AID FUND,RAHMAN RAVELLI SOLICTORS LTD,1043943:145070084," 105,857.75 ",Legal Aid Payment Higher Crime
MINISTRY OF JUSTICE,LEGAL AID AGENCY,24/08/2016,Civil Representation,LEGAL AID FUND,RAMSDENS SOLICITORS LLP,1041055:145054433," 26,787.20 ",Legal Aid Payment Civil Representation
MINISTRY OF JUSTICE,LEGAL AID AGENCY,10/08/2016,Higher Crime,LEGAL AID FUND,RANJIT S LALLIE,1032706:144987687," 47,466.66 ",Legal Aid Payment Higher Crime
MINISTRY OF JUSTICE,LEGAL AID AGENCY,03/08/2016,Civil Representation,LEGAL AID FUND,REBECCA FOULKES,1027826:3000000875220010," 27,388.80 ",Legal Aid Payment Civil Representation
Ministry of Justice,LAA,03/08/2016,265000-IT & Telecommunications,VA294-ISD,REDCENTRIC SOLUTIONS LTD,2006294," 69,736.60 ",IT Costs
Ministry of Justice,LAA,03/08/2016,224000-Staff travel and other,VA293-Finance Directorate,REDFERN TRAVEL LTD,2006295," 36,469.41 ",Travel Costs
MINISTRY OF JUSTICE,LEGAL AID AGENCY,18/08/2016,Higher Crime,LEGAL AID FUND,REEDS SOLICITORS LTD,1036730:144989911," 66,243.66 ",Legal Aid Payment Higher Crime
MINISTRY OF JUSTICE,LEGAL AID AGENCY,31/08/2016,Lower Crime,LEGAL AID FUND,REEDS SOLICITORS LTD,1045129:145133008," 26,126.00 ",Legal Aid Payment Lower Crime
MINISTRY OF JUSTICE,LEGAL AID AGENCY,31/08/2016,Lower Crime,LEGAL AID FUND,REEDS SOLICITORS LTD,1045439:145132935," 26,369.00 ",Legal Aid Payment Lower Crime
MINISTRY OF JUSTICE,LEGAL AID AGENCY,31/08/2016,Lower Crime,LEGAL AID FUND,REEDS SOLICITORS LTD,1045712:145132934," 33,550.00 ",Legal Aid Payment Lower Crime
MINISTRY OF JUSTICE,LEGAL AID AGENCY,31/08/2016,Lower Crime,LEGAL AID FUND,REEDS SOLICITORS LTD,1046191:145132896," 38,758.00 ",Legal Aid Payment Lower Crime
MINISTRY OF JUSTICE,LEGAL AID AGENCY,31/08/2016,Lower Crime,LEGAL AID FUND,REEDS SOLICITORS LTD,1048844:145132576," 74,791.00 ",Legal Aid Payment Lower Crime
MINISTRY OF JUSTICE,LEGAL AID AGENCY,31/08/2016,Lower Crime,LEGAL AID FUND,REEVES  & CO SOLICITORS,1048160:145132527," 40,201.00 ",Legal Aid Payment Lower Crime
MINISTRY OF JUSTICE,LEGAL AID AGENCY,31/08/2016,Lower Crime,LEGAL AID FUND,RENSHAW DERRICK & CO,1049978:145132586," 32,339.00 ",Legal Aid Payment Lower Crime
MINISTRY OF JUSTICE,LEGAL AID AGENCY,24/08/2016,Civil Representation,LEGAL AID FUND,RHYS M JONES,1042072:144161786,"-45,922.50 ",Legal Aid Payment Civil Representation
MINISTRY OF JUSTICE,LEGAL AID AGENCY,24/08/2016,Civil Representation,LEGAL AID FUND,RHYS M JONES,1042072:144134607," 48,675.00 ",Legal Aid Payment Civil Representation
MINISTRY OF JUSTICE,LEGAL AID AGENCY,10/08/2016,Higher Crime,LEGAL AID FUND,RIAZ SOLICITORS,1033521:144949252," 81,347.36 ",Legal Aid Payment Higher Crime
MINISTRY OF JUSTICE,LEGAL AID AGENCY,24/08/2016,Higher Crime,LEGAL AID FUND,RIAZ SOLICITORS,1043561:145049900," 81,347.36 ",Legal Aid Payment Higher Crime
MINISTRY OF JUSTICE,LEGAL AID AGENCY,31/08/2016,Higher Crime,LEGAL AID FUND,RICHARD BENTWOOD,1050155:145146046,"-35,814.53 ",Legal Aid Payment Higher Crime
MINISTRY OF JUSTICE,LEGAL AID AGENCY,31/08/2016,Lower Crime,LEGAL AID FUND,RICHARD BODY & CO,1048683:145131667," 31,400.00 ",Legal Aid Payment Lower Crime
MINISTRY OF JUSTICE,LEGAL AID AGENCY,24/08/2016,Higher Crime,LEGAL AID FUND,RICHARD C FURLONG,1043218:145097698," 37,738.85 ",Legal Aid Payment Higher Crime
MINISTRY OF JUSTICE,LEGAL AID AGENCY,31/08/2016,Lower Crime,LEGAL AID FUND,RICHARD GRIFFITHS & CO,1049171:145132622," 25,486.00 ",Legal Aid Payment Lower Crime
MINISTRY OF JUSTICE,LEGAL AID AGENCY,31/08/2016,Lower Crime,LEGAL AID FUND,RICHARD HASWELL SOLICITORS LLP,1049487:145132355," 32,066.00 ",Legal Aid Payment Lower Crime
MINISTRY OF JUSTICE,LEGAL AID AGENCY,18/08/2016,Higher Crime,LEGAL AID FUND,RICHARD J PADLEY,1036591:145042909," 43,248.00 ",Legal Aid Payment Higher Crime
MINISTRY OF JUSTICE,LEGAL AID AGENCY,03/08/2016,Higher Crime,LEGAL AID FUND,RICHARD M BARRACLOUGH QC,1030791:144877080," 26,690.23 ",Legal Aid Payment Higher Crime
MINISTRY OF JUSTICE,LEGAL AID AGENCY,24/08/2016,Civil Representation,LEGAL AID FUND,RICHARD O ALOMO,1041345:145091868," 30,607.20 ",Legal Aid Payment Civil Representation
MINISTRY OF JUSTICE,LEGAL AID AGENCY,31/08/2016,Lower Crime,LEGAL AID FUND,RICHARDSON SOLICITORS,1048910:145131527," 27,700.00 ",Legal Aid Payment Lower Crime
MINISTRY OF JUSTICE,LEGAL AID AGENCY,03/08/2016,Civil Representation,LEGAL AID FUND,RIDLEY & HALL LEGAL LTD,1028634:144920245," 34,216.97 ",Legal Aid Payment Civil Representation
MINISTRY OF JUSTICE,LEGAL AID AGENCY,18/08/2016,Civil Representation,LEGAL AID FUND,RIDLEY & HALL LEGAL LTD,1039370:3000000355430008SIRC,"-26,396.34 ",Legal Aid Payment Civil Representation
MINISTRY OF JUSTICE,LEGAL AID AGENCY,18/08/2016,Civil Representation,LEGAL AID FUND,RIDLEY & HALL LEGAL LTD,1039370:3000000355430024," 74,306.65 ",Legal Aid Payment Civil Representation
MINISTRY OF JUSTICE,LEGAL AID AGENCY,31/08/2016,Lower Crime,LEGAL AID FUND,RILEY HAYES & CO,1048935:145131570," 47,000.00 ",Legal Aid Payment Lower Crime
MINISTRY OF JUSTICE,LEGAL AID AGENCY,24/08/2016,Higher Crime,LEGAL AID FUND,RMNJ SOLICITORS ***,1044068:145059360," 27,201.59 ",Legal Aid Payment Higher Crime
MINISTRY OF JUSTICE,LEGAL AID AGENCY,31/08/2016,Lower Crime,LEGAL AID FUND,RMNJ SOLICITORS ***,1048969:145132318," 41,577.00 ",Legal Aid Payment Lower Crime
MINISTRY OF JUSTICE,LEGAL AID AGENCY,18/08/2016,Higher Crime,LEGAL AID FUND,ROBERT LAYTON & CO,1040493:145000670," 59,369.28 ",Legal Aid Payment Higher Crime
MINISTRY OF JUSTICE,LEGAL AID AGENCY,31/08/2016,Lower Crime,LEGAL AID FUND,ROBERT LIZAR,1049594:145131505," 35,000.00 ",Legal Aid Payment Lower Crime
MINISTRY OF JUSTICE,LEGAL AID AGENCY,31/08/2016,Higher Crime,LEGAL AID FUND,ROBERT LIZAR,1049594:145133876," 89,975.11 ",Legal Aid Payment Higher Crime
MINISTRY OF JUSTICE,LEGAL AID AGENCY,31/08/2016,Lower Crime,LEGAL AID FUND,ROBERTSON'S SOLICITORS,1049188:145131581," 25,900.00 ",Legal Aid Payment Lower Crime
MINISTRY OF JUSTICE,LEGAL AID AGENCY,03/08/2016,Higher Crime,LEGAL AID FUND,RODERICK S JOHNSON QC,1031103:144895783," 51,999.07 ",Legal Aid Payment Higher Crime
MINISTRY OF JUSTICE,LEGAL AID AGENCY,18/08/2016,Higher Crime,LEGAL AID FUND,RODNEY WARREN & CO LTD,1040341:144991045," 81,347.36 ",Legal Aid Payment Higher Crime
MINISTRY OF JUSTICE,LEGAL AID AGENCY,31/08/2016,Lower Crime,LEGAL AID FUND,RODNEY WARREN & CO LTD,1049955:145131657," 41,800.00 ",Legal Aid Payment Lower Crime
MINISTRY OF JUSTICE,LEGAL AID AGENCY,10/08/2016,Higher Crime,LEGAL AID FUND,RODNEY WARREN & CO LTD-ADVOCATE,1034559:144981145," 30,521.64 ",Legal Aid Payment Higher Crime
MINISTRY OF JUSTICE,LEGAL AID AGENCY,03/08/2016,Higher Crime,LEGAL AID FUND,ROGER D H SMITH,1029566:144915177," 53,834.81 ",Legal Aid Payment Higher Crime
MINISTRY OF JUSTICE,LEGAL AID AGENCY,31/08/2016,Lower Crime,LEGAL AID FUND,ROGERS & CO,1049871:145131713," 28,100.00 ",Legal Aid Payment Lower Crime
MINISTRY OF JUSTICE,LEGAL AID AGENCY,31/08/2016,Lower Crime,LEGAL AID FUND,ROSS SOLICITORS LTD,1049794:145131501," 35,000.00 ",Legal Aid Payment Lower Crime
MINISTRY OF JUSTICE,LEGAL AID AGENCY,24/08/2016,Higher Crime,LEGAL AID FUND,ROSSANO SCAMARDELLA,1042603:145104907," 38,400.00 ",Legal Aid Payment Higher Crime
Ministry of Justice,LAA,10/08/2016,223000-Other Expenditure,VA395-National Courts Team,ROSSENDALES LTD,2006363," 10,156.28 ",Debt Collection Cots
Ministry of Justice,LAA,10/08/2016,223000-Other Expenditure,VA395-National Courts Team,ROSSENDALES LTD,2006363," 24,129.00 ",Debt Enforcement Costs
Ministry of Justice,LAA,10/08/2016,223000-Other Expenditure,VA395-National Courts Team,ROSSENDALES LTD,2006363," 40,372.50 ",Debt Enforcement Costs
Ministry of Justice,LAA,10/08/2016,223000-Other Expenditure,VA395-National Courts Team,ROSSENDALES LTD,2006363," 70,195.00 ",Debt Collection Cots
MINISTRY OF JUSTICE,LEGAL AID AGENCY,31/08/2016,Lower Crime,LEGAL AID FUND,ROWE SPARKES SOLICITORS LTD,1048351:145131478," 26,000.00 ",Legal Aid Payment Lower Crime
MINISTRY OF JUSTICE,LEGAL AID AGENCY,18/08/2016,Civil Representation,LEGAL AID FUND,RUBIN LEWIS O'BRIEN LLP,1040188:145034521," 36,894.10 ",Legal Aid Payment Civil Representation
MINISTRY OF JUSTICE,LEGAL AID AGENCY,31/08/2016,Legal Help,LEGAL AID FUND,RUDLINGS & WAKELAM,1048941:145130319," 29,100.00 ",Legal Aid Payment Legal Help
MINISTRY OF JUSTICE,LEGAL AID AGENCY,03/08/2016,Higher Crime,LEGAL AID FUND,RUNDLEWALKER,1030363:144886167," 97,258.75 ",Legal Aid Payment Higher Crime
MINISTRY OF JUSTICE,LEGAL AID AGENCY,31/08/2016,Lower Crime,LEGAL AID FUND,RUSSELL & RUSSELL SOLICITORS,1049432:145132436," 29,830.00 ",Legal Aid Payment Lower Crime
MINISTRY OF JUSTICE,LEGAL AID AGENCY,10/08/2016,Higher Crime,LEGAL AID FUND,RUSTEM GUARDIAN SOLICITORS,1035579:144927140," 40,851.00 ",Legal Aid Payment Higher Crime
MINISTRY OF JUSTICE,LEGAL AID AGENCY,18/08/2016,Civil Representation,LEGAL AID FUND,RUTH S M HENKE QC,1038248:3000000840090012," 55,890.00 ",Legal Aid Payment Civil Representation
MINISTRY OF JUSTICE,LEGAL AID AGENCY,31/08/2016,Lower Crime,LEGAL AID FUND,S A LAW CHAMBERS SOLICITORS,1048584:145131481," 65,000.00 ",Legal Aid Payment Lower Crime
MINISTRY OF JUSTICE,LEGAL AID AGENCY,24/08/2016,Higher Crime,LEGAL AID FUND,SAKHI LEGAL SERVICES LTD,1043701:145079111," 98,984.14 ",Legal Aid Payment Higher Crime
MINISTRY OF JUSTICE,LEGAL AID AGENCY,31/08/2016,Lower Crime,LEGAL AID FUND,SAKHI LEGAL SERVICES LTD,1048416:145132117," 29,771.00 ",Legal Aid Payment Lower Crime
MINISTRY OF JUSTICE,LEGAL AID AGENCY,24/08/2016,Higher Crime,LEGAL AID FUND,SALHAN & CO LTD,1043752:145097936," 25,722.49 ",Legal Aid Payment Higher Crime
MINISTRY OF JUSTICE,LEGAL AID AGENCY,24/08/2016,Higher Crime,LEGAL AID FUND,SALHAN & CO LTD,1043752:145068836," 71,142.20 ",Legal Aid Payment Higher Crime
MINISTRY OF JUSTICE,LEGAL AID AGENCY,31/08/2016,Higher Crime,LEGAL AID FUND,SALHAN & CO LTD,1048624:145119954," 116,008.49 ",Legal Aid Payment Higher Crime
MINISTRY OF JUSTICE,LEGAL AID AGENCY,18/08/2016,Higher Crime,LEGAL AID FUND,SALLY M HOWES QC,1038641:145000389," 48,710.05 ",Legal Aid Payment Higher Crime
MINISTRY OF JUSTICE,LEGAL AID AGENCY,24/08/2016,Civil Representation,LEGAL AID FUND,SALLY WILCOCK & CO,1043634:145091693," 29,258.84 ",Legal Aid Payment Civil Representation
MINISTRY OF JUSTICE,LEGAL AID AGENCY,31/08/2016,Higher Crime,LEGAL AID FUND,SAM ROBINSON,1047696:145145854,"-28,063.13 ",Legal Aid Payment Higher Crime
MINISTRY OF JUSTICE,LEGAL AID AGENCY,31/08/2016,Higher Crime,LEGAL AID FUND,SAM ROBINSON,1047696:145146049," 35,658.53 ",Legal Aid Payment Higher Crime
MINISTRY OF JUSTICE,LEGAL AID AGENCY,03/08/2016,Civil Representation,LEGAL AID FUND,SAMANTHA DUNN,1027811:144869909," 33,193.80 ",Legal Aid Payment Civil Representation
MINISTRY OF JUSTICE,LEGAL AID AGENCY,31/08/2016,Lower Crime,LEGAL AID FUND,SAMUEL & CO SOLICITORS,1048446:145131811," 37,100.00 ",Legal Aid Payment Lower Crime
MINISTRY OF JUSTICE,LEGAL AID AGENCY,18/08/2016,Higher Crime,LEGAL AID FUND,SANSBURY DOUGLAS,1039126:145000348,"-47,116.56 ",Legal Aid Payment Higher Crime
MINISTRY OF JUSTICE,LEGAL AID AGENCY,18/08/2016,Higher Crime,LEGAL AID FUND,SANSBURY DOUGLAS,1039126:145000342," 59,674.88 ",Legal Aid Payment Higher Crime
MINISTRY OF JUSTICE,LEGAL AID AGENCY,31/08/2016,Lower Crime,LEGAL AID FUND,SANSBURY DOUGLAS,1048029:145131469," 50,000.00 ",Legal Aid Payment Lower Crime
MINISTRY OF JUSTICE,LEGAL AID AGENCY,31/08/2016,Civil Representation,LEGAL AID FUND,SARAH G TAITE,1046197:3000000363540012," 45,619.20 ",Legal Aid Payment Civil Representation
MINISTRY OF JUSTICE,LEGAL AID AGENCY,31/08/2016,Lower Crime,LEGAL AID FUND,SAUNDERS SOLICITORS LTD,1050014:145131523," 25,700.00 ",Legal Aid Payment Lower Crime
MINISTRY OF JUSTICE,LEGAL AID AGENCY,24/08/2016,Higher Crime,LEGAL AID FUND,SBG SOLICITORS,1043380:145098482," 105,857.75 ",Legal Aid Payment Higher Crime
MINISTRY OF JUSTICE,LEGAL AID AGENCY,18/08/2016,Civil Representation,LEGAL AID FUND,SBS SOLICITORS LTD,1039759:145014480," 38,503.23 ",Legal Aid Payment Civil Representation
MINISTRY OF JUSTICE,LEGAL AID AGENCY,31/08/2016,Lower Crime,LEGAL AID FUND,SCOTT-MONCRIEFF & ASSOCIATES LLP,1049995:145132276," 36,186.00 ",Legal Aid Payment Lower Crime
MINISTRY OF JUSTICE,LEGAL AID AGENCY,31/08/2016,Civil Representation,LEGAL AID FUND,SCOTT-MONCRIEFF & ASSOCIATES LLP,1049995:145126405," 38,160.81 ",Legal Aid Payment Civil Representation
MINISTRY OF JUSTICE,LEGAL AID AGENCY,31/08/2016,Legal Help,LEGAL AID FUND,SCOTT-MONCRIEFF & ASSOCIATES LLP,1049995:145130399," 90,300.00 ",Legal Aid Payment Legal Help
MINISTRY OF JUSTICE,LEGAL AID AGENCY,31/08/2016,Higher Crime,LEGAL AID FUND,SEAN KIVDEH,1046670:145120375," 48,575.16 ",Legal Aid Payment Higher Crime
MINISTRY OF JUSTICE,LEGAL AID AGENCY,31/08/2016,Lower Crime,LEGAL AID FUND,SEDGWICK CHUDLEIGH MCKENN SOLICITORS,1048240:145132029," 25,643.00 ",Legal Aid Payment Lower Crime
MINISTRY OF JUSTICE,LEGAL AID AGENCY,24/08/2016,Higher Crime,LEGAL AID FUND,SHAFI SOLICITORS LLP,1041380:145097871," 33,438.25 ",Legal Aid Payment Higher Crime
MINISTRY OF JUSTICE,LEGAL AID AGENCY,31/08/2016,Higher Crime,LEGAL AID FUND,SHAFI SOLICITORS LLP,1045844:145146810," 57,933.23 ",Legal Aid Payment Higher Crime
MINISTRY OF JUSTICE,LEGAL AID AGENCY,31/08/2016,Higher Crime,LEGAL AID FUND,SHAIKH AYUB SOLICITORS,1048051:145109409,"-94,448.80 ",Legal Aid Payment Higher Crime
MINISTRY OF JUSTICE,LEGAL AID AGENCY,31/08/2016,Higher Crime,LEGAL AID FUND,SHAIKH AYUB SOLICITORS,1048051:145109434," 94,448.80 ",Legal Aid Payment Higher Crime
MINISTRY OF JUSTICE,LEGAL AID AGENCY,31/08/2016,Lower Crime,LEGAL AID FUND,SHARMA LAW SOLICITORS,1047840:145132847," 30,219.00 ",Legal Aid Payment Lower Crime
MINISTRY OF JUSTICE,LEGAL AID AGENCY,24/08/2016,Civil Representation,LEGAL AID FUND,SHARRATTS SOLICITORS  LTD,1043710:145104140," 28,714.62 ",Legal Aid Payment Civil Representation
MINISTRY OF JUSTICE,LEGAL AID AGENCY,24/08/2016,Higher Crime,LEGAL AID FUND,SHAW GRAHAM KERSH,1043872:145070095," 80,680.55 ",Legal Aid Payment Higher Crime
MINISTRY OF JUSTICE,LEGAL AID AGENCY,31/08/2016,Higher Crime,LEGAL AID FUND,SHEARMAN BOWEN & CO,1048886:145133978," 31,658.09 ",Legal Aid Payment Higher Crime
MINISTRY OF JUSTICE,LEGAL AID AGENCY,24/08/2016,Legal Help,LEGAL AID FUND,SHEIKH & CO SOLICITORS LTD,1044463:145064452," 43,867.51 ",Legal Aid Payment Legal Help
MINISTRY OF JUSTICE,LEGAL AID AGENCY,18/08/2016,Legal Help,LEGAL AID FUND,SHELTER.,1039063:145033173," 43,725.47 ",Legal Aid Payment Legal Help
MINISTRY OF JUSTICE,LEGAL AID AGENCY,31/08/2016,Lower Crime,LEGAL AID FUND,SHEPHERD SOLICITORS LTD,1048114:145132513," 32,311.00 ",Legal Aid Payment Lower Crime
MINISTRY OF JUSTICE,LEGAL AID AGENCY,24/08/2016,Civil Representation,LEGAL AID FUND,SHERATTE CALEB & CO,1040687:140881154,"-28,000.00 ",Legal Aid Payment Civil Representation
MINISTRY OF JUSTICE,LEGAL AID AGENCY,03/08/2016,Higher Crime,LEGAL AID FUND,SIMON BAKER,1031102:144896231," 38,023.25 ",Legal Aid Payment Higher Crime
MINISTRY OF JUSTICE,LEGAL AID AGENCY,18/08/2016,Higher Crime,LEGAL AID FUND,SIMON CSOKA,1038514:145010084," 69,935.84 ",Legal Aid Payment Higher Crime
MINISTRY OF JUSTICE,LEGAL AID AGENCY,18/08/2016,Higher Crime,LEGAL AID FUND,SIMON R ECKERSLEY,1038204:145000838," 41,249.88 ",Legal Aid Payment Higher Crime
MINISTRY OF JUSTICE,LEGAL AID AGENCY,24/08/2016,Higher Crime,LEGAL AID FUND,SIMON RUSSELL-FLINT QC,1042761:145104909," 64,200.00 ",Legal Aid Payment Higher Crime
MINISTRY OF JUSTICE,LEGAL AID AGENCY,18/08/2016,Legal Help,LEGAL AID FUND,SIMPSON MILLAR SOLICITORS LLP,1038866:145033083," 91,670.25 ",Legal Aid Payment Legal Help
MINISTRY OF JUSTICE,LEGAL AID AGENCY,18/08/2016,Higher Crime,LEGAL AID FUND,SJ LAW SOLICITORS,1039590:145009510," 65,378.40 ",Legal Aid Payment Higher Crime
MINISTRY OF JUSTICE,LEGAL AID AGENCY,24/08/2016,Higher Crime,LEGAL AID FUND,SJ LAW SOLICITORS,1043937:145097887," 49,561.09 ",Legal Aid Payment Higher Crime
MINISTRY OF JUSTICE,LEGAL AID AGENCY,31/08/2016,Lower Crime,LEGAL AID FUND,SJ LAW SOLICITORS,1048905:145132246," 34,604.00 ",Legal Aid Payment Lower Crime
MINISTRY OF JUSTICE,LEGAL AID AGENCY,24/08/2016,Higher Crime,LEGAL AID FUND,SMITH PARTNERSHIP,1043674:145098182," 105,857.75 ",Legal Aid Payment Higher Crime
MINISTRY OF JUSTICE,LEGAL AID AGENCY,31/08/2016,Lower Crime,LEGAL AID FUND,SMITH PARTNERSHIP,1048520:145131557," 28,700.00 ",Legal Aid Payment Lower Crime
MINISTRY OF JUSTICE,LEGAL AID AGENCY,31/08/2016,Lower Crime,LEGAL AID FUND,SMITH PARTNERSHIP,1048518:145131524," 33,300.00 ",Legal Aid Payment Lower Crime
MINISTRY OF JUSTICE,LEGAL AID AGENCY,31/08/2016,Lower Crime,LEGAL AID FUND,SMITH PARTNERSHIP,1048516:145131766," 45,400.00 ",Legal Aid Payment Lower Crime
MINISTRY OF JUSTICE,LEGAL AID AGENCY,03/08/2016,Higher Crime,LEGAL AID FUND,SOHEIL KHAN,1027801:144915197," 27,666.12 ",Legal Aid Payment Higher Crime
MINISTRY OF JUSTICE,LEGAL AID AGENCY,18/08/2016,Civil Representation,LEGAL AID FUND,SOLOMON LEVY & CO,1039687:145006098," 32,383.01 ",Legal Aid Payment Civil Representation
MINISTRY OF JUSTICE,LEGAL AID AGENCY,03/08/2016,Higher Crime,LEGAL AID FUND,SONN MACMILLAN WALKER LTD,1031828:144914574," 33,720.40 ",Legal Aid Payment Higher Crime
MINISTRY OF JUSTICE,LEGAL AID AGENCY,31/08/2016,Lower Crime,LEGAL AID FUND,SONN MACMILLAN WALKER LTD,1050007:145131507," 81,100.00 ",Legal Aid Payment Lower Crime
Ministry of Justice,LAA,23/08/2016,610400-Debtors <1 year - Prepayments & Accrued Income,VA396-Property Costs,SOUTH TYNESIDE COUNCIL,2006479," 12,077.10 ",Property Costs
MINISTRY OF JUSTICE,LEGAL AID AGENCY,03/08/2016,Civil Representation,LEGAL AID FUND,SPIRE SOLICITORS LLP,1028716:144869619," 35,441.81 ",Legal Aid Payment Civil Representation
MINISTRY OF JUSTICE,LEGAL AID AGENCY,03/08/2016,Higher Crime,LEGAL AID FUND,STEEL & SHAMASH,1031787:144876053," 28,632.77 ",Legal Aid Payment Higher Crime
MINISTRY OF JUSTICE,LEGAL AID AGENCY,10/08/2016,Higher Crime,LEGAL AID FUND,STEEL & SHAMASH,1036081:144949185," 97,258.75 ",Legal Aid Payment Higher Crime
MINISTRY OF JUSTICE,LEGAL AID AGENCY,10/08/2016,Higher Crime,LEGAL AID FUND,STEPHEN BURDON SOLICITORS,1035729:144949276," 89,975.11 ",Legal Aid Payment Higher Crime
MINISTRY OF JUSTICE,LEGAL AID AGENCY,31/08/2016,Lower Crime,LEGAL AID FUND,STEPHEN BURDON SOLICITORS,1048659:145131554," 29,500.00 ",Legal Aid Payment Lower Crime
MINISTRY OF JUSTICE,LEGAL AID AGENCY,24/08/2016,Higher Crime,LEGAL AID FUND,STEPHEN C MEADOWCROFT QC,1041757:145059408," 34,722.17 ",Legal Aid Payment Higher Crime
MINISTRY OF JUSTICE,LEGAL AID AGENCY,24/08/2016,Higher Crime,LEGAL AID FUND,STEPHEN LICKRISH & ASSOCIATES LTD,1043703:145079202," 107,574.07 ",Legal Aid Payment Higher Crime
MINISTRY OF JUSTICE,LEGAL AID AGENCY,10/08/2016,Higher Crime,LEGAL AID FUND,STEPHEN MOORE,1035612:144949060," 55,809.38 ",Legal Aid Payment Higher Crime
MINISTRY OF JUSTICE,LEGAL AID AGENCY,03/08/2016,Higher Crime,LEGAL AID FUND,STEPHEN MOORE & CO-ADVOCATE,1030719:144915686," 28,038.43 ",Legal Aid Payment Higher Crime
MINISTRY OF JUSTICE,LEGAL AID AGENCY,03/08/2016,Higher Crime,LEGAL AID FUND,STEPHEN MOORE & CO-ADVOCATE,1030719:144915220," 29,460.43 ",Legal Aid Payment Higher Crime
MINISTRY OF JUSTICE,LEGAL AID AGENCY,18/08/2016,Higher Crime,LEGAL AID FUND,STEPHEN MOSES,1038343:145019883," 66,661.36 ",Legal Aid Payment Higher Crime
MINISTRY OF JUSTICE,LEGAL AID AGENCY,31/08/2016,Lower Crime,LEGAL AID FUND,STEPHEN RIMMER LLP,1048849:145131572," 34,900.00 ",Legal Aid Payment Lower Crime
MINISTRY OF JUSTICE,LEGAL AID AGENCY,18/08/2016,Legal Help,LEGAL AID FUND,STEPHENSONS SOLICITORS LLP,1040010:145033185," 29,854.32 ",Legal Aid Payment Legal Help
MINISTRY OF JUSTICE,LEGAL AID AGENCY,24/08/2016,Higher Crime,LEGAL AID FUND,STEPHENSONS SOLICITORS LLP,1044551:145069214," 48,752.72 ",Legal Aid Payment Higher Crime
MINISTRY OF JUSTICE,LEGAL AID AGENCY,31/08/2016,Lower Crime,LEGAL AID FUND,STEPHENSONS SOLICITORS LLP,1049533:145132454," 34,878.00 ",Legal Aid Payment Lower Crime
MINISTRY OF JUSTICE,LEGAL AID AGENCY,02/08/2016,Legal Help,LEGAL AID FUND,STEPHENSONS SOLICITORS LLP RE: NIEKO SOLICITORS,1027615:143667725,"-882,453.20 ",Legal Aid Payment Legal Help
MINISTRY OF JUSTICE,LEGAL AID AGENCY,02/08/2016,Legal Help,LEGAL AID FUND,STEPHENSONS SOLICITORS LLP RE: NIEKO SOLICITORS,1027615:144037127,"-90,000.00 ",Legal Aid Payment Legal Help
MINISTRY OF JUSTICE,LEGAL AID AGENCY,18/08/2016,Civil Representation,LEGAL AID FUND,STERNBERG REED SOLICITORS,1039068:145044266," 29,536.41 ",Legal Aid Payment Civil Representation
MINISTRY OF JUSTICE,LEGAL AID AGENCY,31/08/2016,Lower Crime,LEGAL AID FUND,STERNBERG REED SOLICITORS,1048358:145131471," 55,000.00 ",Legal Aid Payment Lower Crime
MINISTRY OF JUSTICE,LEGAL AID AGENCY,03/08/2016,Higher Crime,LEGAL AID FUND,STEVE S PERIAN,1030916:144866185," 25,348.42 ",Legal Aid Payment Higher Crime
MINISTRY OF JUSTICE,LEGAL AID AGENCY,18/08/2016,Higher Crime,LEGAL AID FUND,STEVEN M E COUPLAND,1038261:145000920," 41,249.88 ",Legal Aid Payment Higher Crime
MINISTRY OF JUSTICE,LEGAL AID AGENCY,31/08/2016,Lower Crime,LEGAL AID FUND,STEVEN YOUNG & CO INC ROWBIS,1048609:145132619," 38,496.00 ",Legal Aid Payment Lower Crime
MINISTRY OF JUSTICE,LEGAL AID AGENCY,31/08/2016,Lower Crime,LEGAL AID FUND,STEVENS SOLICITORS,1049571:145131466," 27,700.00 ",Legal Aid Payment Lower Crime
MINISTRY OF JUSTICE,LEGAL AID AGENCY,31/08/2016,Lower Crime,LEGAL AID FUND,STEVENS SOLICITORS,1049570:145131459," 39,700.00 ",Legal Aid Payment Lower Crime
MINISTRY OF JUSTICE,LEGAL AID AGENCY,03/08/2016,Higher Crime,LEGAL AID FUND,STOKOE PARTNERSHIP,1031865:144866726," 95,707.01 ",Legal Aid Payment Higher Crime
MINISTRY OF JUSTICE,LEGAL AID AGENCY,24/08/2016,Higher Crime,LEGAL AID FUND,STOKOE PARTNERSHIP,1044784:145069495," 89,975.11 ",Legal Aid Payment Higher Crime
MINISTRY OF JUSTICE,LEGAL AID AGENCY,10/08/2016,Civil Representation,LEGAL AID FUND,STONE KING LLP,1034069:144943370,"-39,095.72 ",Legal Aid Payment Civil Representation
MINISTRY OF JUSTICE,LEGAL AID AGENCY,10/08/2016,Civil Representation,LEGAL AID FUND,STONE KING LLP,1034069:144930920," 53,245.48 ",Legal Aid Payment Civil Representation
MINISTRY OF JUSTICE,LEGAL AID AGENCY,31/08/2016,Lower Crime,LEGAL AID FUND,STRINGFELLOW & CO,1048165:145131923," 25,000.00 ",Legal Aid Payment Lower Crime
MINISTRY OF JUSTICE,LEGAL AID AGENCY,18/08/2016,Civil Representation,LEGAL AID FUND,STUART MARTIN,1038391:144890291," 28,512.00 ",Legal Aid Payment Civil Representation
MINISTRY OF JUSTICE,LEGAL AID AGENCY,31/08/2016,Lower Crime,LEGAL AID FUND,STUART MILLER SOLICITORS LTD,1049470:145132278," 106,689.00 ",Legal Aid Payment Lower Crime
MINISTRY OF JUSTICE,LEGAL AID AGENCY,19/08/2016,Higher Crime,LEGAL AID FUND,SUKWINDER DHADDA,1040611:140163303,"-29,063.40 ",Legal Aid Payment Higher Crime
MINISTRY OF JUSTICE,LEGAL AID AGENCY,31/08/2016,Lower Crime,LEGAL AID FUND,SUSSEX DEFENCE SOLICITORS,1048092:145131589," 30,000.00 ",Legal Aid Payment Lower Crime
MINISTRY OF JUSTICE,LEGAL AID AGENCY,31/08/2016,Higher Crime,LEGAL AID FUND,SUSSEX DEFENCE SOLICITORS,1048092:145133870," 89,975.11 ",Legal Aid Payment Higher Crime
MINISTRY OF JUSTICE,LEGAL AID AGENCY,31/08/2016,Legal Help,LEGAL AID FUND,SUTOVIC & HARTIGAN,1049892:145130405," 34,300.00 ",Legal Aid Payment Legal Help
MINISTRY OF JUSTICE,LEGAL AID AGENCY,31/08/2016,Lower Crime,LEGAL AID FUND,SWAIN & CO SOLICITORS LLP,1048610:145131502," 38,300.00 ",Legal Aid Payment Lower Crime
MINISTRY OF JUSTICE,LEGAL AID AGENCY,31/08/2016,Legal Help,LEGAL AID FUND,SWAIN & CO SOLICITORS LLP,1048611:145130514," 40,000.00 ",Legal Aid Payment Legal Help
MINISTRY OF JUSTICE,LEGAL AID AGENCY,03/08/2016,Higher Crime,LEGAL AID FUND,SWEETMAN BURKE & SINKER,1030367:144887061," 25,484.35 ",Legal Aid Payment Higher Crime
MINISTRY OF JUSTICE,LEGAL AID AGENCY,31/08/2016,Higher Crime,LEGAL AID FUND,SWEETMAN BURKE & SINKER,1049804:145133879," 89,975.11 ",Legal Aid Payment Higher Crime
MINISTRY OF JUSTICE,LEGAL AID AGENCY,18/08/2016,Civil Representation,LEGAL AID FUND,SWITALSKI'S SOLICITORS LTD,1039859:145044191,"-37,724.40 ",Legal Aid Payment Civil Representation
MINISTRY OF JUSTICE,LEGAL AID AGENCY,18/08/2016,Civil Representation,LEGAL AID FUND,SWITALSKI'S SOLICITORS LTD,1039859:145013870," 86,279.36 ",Legal Aid Payment Civil Representation
MINISTRY OF JUSTICE,LEGAL AID AGENCY,31/08/2016,Lower Crime,LEGAL AID FUND,SWITALSKI'S SOLICITORS LTD,1049301:145132368," 25,739.00 ",Legal Aid Payment Lower Crime
MINISTRY OF JUSTICE,LEGAL AID AGENCY,31/08/2016,Legal Help,LEGAL AID FUND,SWITALSKI'S SOLICITORS LTD,1049301:145130744," 43,211.00 ",Legal Aid Payment Legal Help
MINISTRY OF JUSTICE,LEGAL AID AGENCY,31/08/2016,Lower Crime,LEGAL AID FUND,T S LAW LTD,1046107:145131542," 25,000.00 ",Legal Aid Payment Lower Crime
MINISTRY OF JUSTICE,LEGAL AID AGENCY,31/08/2016,Lower Crime,LEGAL AID FUND,T S LAW LTD,1048902:145131552," 25,000.00 ",Legal Aid Payment Lower Crime
MINISTRY OF JUSTICE,LEGAL AID AGENCY,03/08/2016,Civil Representation,LEGAL AID FUND,T V EDWARDS LLP,1030284:144890216," 25,351.61 ",Legal Aid Payment Civil Representation
MINISTRY OF JUSTICE,LEGAL AID AGENCY,24/08/2016,Civil Representation,LEGAL AID FUND,T V EDWARDS LLP,1044472:145101412," 29,893.44 ",Legal Aid Payment Civil Representation
MINISTRY OF JUSTICE,LEGAL AID AGENCY,31/08/2016,Higher Crime,LEGAL AID FUND,T V EDWARDS LLP,1049490:145134816," 39,263.80 ",Legal Aid Payment Higher Crime
MINISTRY OF JUSTICE,LEGAL AID AGENCY,31/08/2016,Legal Help,LEGAL AID FUND,T V EDWARDS LLP,1049490:145130380," 48,300.00 ",Legal Aid Payment Legal Help
MINISTRY OF JUSTICE,LEGAL AID AGENCY,31/08/2016,Lower Crime,LEGAL AID FUND,T V EDWARDS LLP,1049490:145131449," 58,600.00 ",Legal Aid Payment Lower Crime
MINISTRY OF JUSTICE,LEGAL AID AGENCY,18/08/2016,Legal Help,LEGAL AID FUND,T. A. LAW,1039133:145033194," 33,049.20 ",Legal Aid Payment Legal Help
MINISTRY OF JUSTICE,LEGAL AID AGENCY,03/08/2016,Civil Representation,LEGAL AID FUND,TAIT FARRIER GRAHAM,1031707:3000000103130013," 28,216.48 ",Legal Aid Payment Civil Representation
MINISTRY OF JUSTICE,LEGAL AID AGENCY,03/08/2016,Civil Representation,LEGAL AID FUND,TAIT FARRIER GRAHAM,1031706:3000000129940002," 30,574.57 ",Legal Aid Payment Civil Representation
MINISTRY OF JUSTICE,LEGAL AID AGENCY,18/08/2016,Civil Representation,LEGAL AID FUND,TALBOTS LAW,1037122:144430894," 34,308.15 ",Legal Aid Payment Civil Representation
MINISTRY OF JUSTICE,LEGAL AID AGENCY,22/08/2016,Legal Help,LEGAL AID FUND,TANNER & TAYLOR LTD,1040622:125845921,"-40,305.65 ",Legal Aid Payment Legal Help
MINISTRY OF JUSTICE,LEGAL AID AGENCY,31/08/2016,Lower Crime,LEGAL AID FUND,TATES,1049256:145131489," 25,900.00 ",Legal Aid Payment Lower Crime
MINISTRY OF JUSTICE,LEGAL AID AGENCY,03/08/2016,Higher Crime,LEGAL AID FUND,TAYLOR GOODCHILD LTD,1028569:144886059," 46,581.21 ",Legal Aid Payment Higher Crime
MINISTRY OF JUSTICE,LEGAL AID AGENCY,03/08/2016,Higher Crime,LEGAL AID FUND,TAYLOR HALDANE BARLEX LLP,1030735:144887034," 76,058.30 ",Legal Aid Payment Higher Crime
MINISTRY OF JUSTICE,LEGAL AID AGENCY,31/08/2016,Higher Crime,LEGAL AID FUND,TAYLOR STREET SOLICITORS LLP,1049386:145120929," 51,945.14 ",Legal Aid Payment Higher Crime
MINISTRY OF JUSTICE,LEGAL AID AGENCY,31/08/2016,Lower Crime,LEGAL AID FUND,TAYLOR STREET SOLICITORS LLP,1049386:145131451," 61,700.00 ",Legal Aid Payment Lower Crime
MINISTRY OF JUSTICE,LEGAL AID AGENCY,24/08/2016,Higher Crime,LEGAL AID FUND,TAYLOR STREET SOLICITORS LLP-ADVOCATE,1041618:145069282," 31,519.56 ",Legal Aid Payment Higher Crime
MINISTRY OF JUSTICE,LEGAL AID AGENCY,31/08/2016,Lower Crime,LEGAL AID FUND,TEESSIDE LAW LTD,1045515:145132928," 34,028.00 ",Legal Aid Payment Lower Crime
MINISTRY OF JUSTICE,LEGAL AID AGENCY,31/08/2016,Legal Help,LEGAL AID FUND,THALIWAL & CO LTD,1048536:145130949," 39,172.00 ",Legal Aid Payment Legal Help
MINISTRY OF JUSTICE,LEGAL AID AGENCY,31/08/2016,Lower Crime,LEGAL AID FUND,THE CASTLE PARTNERSHIP,1048961:145131546," 29,000.00 ",Legal Aid Payment Lower Crime
MINISTRY OF JUSTICE,LEGAL AID AGENCY,03/08/2016,Higher Crime,LEGAL AID FUND,THE JOHNSON PARTNERSHIP,1027688:144886062," 63,968.59 ",Legal Aid Payment Higher Crime
MINISTRY OF JUSTICE,LEGAL AID AGENCY,10/08/2016,Lower Crime,LEGAL AID FUND,THE JOHNSON PARTNERSHIP,1033831:144925496," 30,929.67 ",Legal Aid Payment Lower Crime
MINISTRY OF JUSTICE,LEGAL AID AGENCY,10/08/2016,Higher Crime,LEGAL AID FUND,THE JOHNSON PARTNERSHIP,1033829:144949321," 81,347.36 ",Legal Aid Payment Higher Crime
MINISTRY OF JUSTICE,LEGAL AID AGENCY,24/08/2016,Higher Crime,LEGAL AID FUND,THE JOHNSON PARTNERSHIP,1044201:145098762," 86,867.95 ",Legal Aid Payment Higher Crime
MINISTRY OF JUSTICE,LEGAL AID AGENCY,31/08/2016,Higher Crime,LEGAL AID FUND,THE JOHNSON PARTNERSHIP,1049116:145134653," 35,163.08 ",Legal Aid Payment Higher Crime
MINISTRY OF JUSTICE,LEGAL AID AGENCY,31/08/2016,Lower Crime,LEGAL AID FUND,THE JOHNSON PARTNERSHIP,1049114:145131458," 38,200.00 ",Legal Aid Payment Lower Crime
MINISTRY OF JUSTICE,LEGAL AID AGENCY,31/08/2016,Lower Crime,LEGAL AID FUND,THE JOHNSON PARTNERSHIP,1048027:145131470," 48,400.00 ",Legal Aid Payment Lower Crime
MINISTRY OF JUSTICE,LEGAL AID AGENCY,31/08/2016,Lower Crime,LEGAL AID FUND,THE JOHNSON PARTNERSHIP,1049116:145131448," 190,000.00 ",Legal Aid Payment Lower Crime
MINISTRY OF JUSTICE,LEGAL AID AGENCY,18/08/2016,Civil Representation,LEGAL AID FUND,THE RICHMOND PARTNERSHIP,1039972:145006100,"-39,603.60 ",Legal Aid Payment Civil Representation
MINISTRY OF JUSTICE,LEGAL AID AGENCY,18/08/2016,Civil Representation,LEGAL AID FUND,THE RICHMOND PARTNERSHIP,1039972:144952802," 65,207.14 ",Legal Aid Payment Civil Representation
MINISTRY OF JUSTICE,LEGAL AID AGENCY,31/08/2016,Lower Crime,LEGAL AID FUND,THOMAS BOYD WHYTE,1050065:145132237," 48,409.00 ",Legal Aid Payment Lower Crime
MINISTRY OF JUSTICE,LEGAL AID AGENCY,24/08/2016,Higher Crime,LEGAL AID FUND,THOMAS GODFREY,1042599:145104908," 32,200.00 ",Legal Aid Payment Higher Crime
MINISTRY OF JUSTICE,LEGAL AID AGENCY,18/08/2016,Higher Crime,LEGAL AID FUND,THOMAS M C ALLEN,1038161:145042913," 87,408.00 ",Legal Aid Payment Higher Crime
MINISTRY OF JUSTICE,LEGAL AID AGENCY,31/08/2016,Higher Crime,LEGAL AID FUND,THOMAS NICHOLSON PRATT,1046436:145109738," 31,084.44 ",Legal Aid Payment Higher Crime
MINISTRY OF JUSTICE,LEGAL AID AGENCY,10/08/2016,Higher Crime,LEGAL AID FUND,THOMAS PRICE QC,1033289:144954890," 157,080.00 ",Legal Aid Payment Higher Crime
MINISTRY OF JUSTICE,LEGAL AID AGENCY,31/08/2016,Legal Help,LEGAL AID FUND,THOMPSON & CO,1049558:145130385," 27,300.00 ",Legal Aid Payment Legal Help
MINISTRY OF JUSTICE,LEGAL AID AGENCY,31/08/2016,Higher Crime,LEGAL AID FUND,THOMPSONS,1049848:145133830," 42,520.86 ",Legal Aid Payment Higher Crime
MINISTRY OF JUSTICE,LEGAL AID AGENCY,24/08/2016,Higher Crime,LEGAL AID FUND,TIMOTHY A FORTE,1042188:145098088," 38,153.16 ",Legal Aid Payment Higher Crime
MINISTRY OF JUSTICE,LEGAL AID AGENCY,18/08/2016,Civil Representation,LEGAL AID FUND,TINA G COOK QC,1038279:144952955," 102,924.00 ",Legal Aid Payment Civil Representation
MINISTRY OF JUSTICE,LEGAL AID AGENCY,24/08/2016,Higher Crime,LEGAL AID FUND,TRAYMANS LLP SOLICITORS,1044449:145070081," 68,686.30 ",Legal Aid Payment Higher Crime
MINISTRY OF JUSTICE,LEGAL AID AGENCY,02/08/2016,Legal Help,LEGAL AID FUND,TROTT & GENTRY LLP,1027624:143492048,"-208,558.43 ",Legal Aid Payment Legal Help
MINISTRY OF JUSTICE,LEGAL AID AGENCY,31/08/2016,Legal Help,LEGAL AID FUND,TRP SOLICITORS LTD,1048238:145130263," 26,600.00 ",Legal Aid Payment Legal Help
MINISTRY OF JUSTICE,LEGAL AID AGENCY,03/08/2016,Higher Crime,LEGAL AID FUND,TUCKERS SOLICITORS LLP,1031663:144886249," 97,258.75 ",Legal Aid Payment Higher Crime
MINISTRY OF JUSTICE,LEGAL AID AGENCY,18/08/2016,Higher Crime,LEGAL AID FUND,TUCKERS SOLICITORS LLP,1039913:144990421," 30,407.41 ",Legal Aid Payment Higher Crime
MINISTRY OF JUSTICE,LEGAL AID AGENCY,31/08/2016,Lower Crime,LEGAL AID FUND,TUCKERS SOLICITORS LLP,1045399:145131784," 30,500.00 ",Legal Aid Payment Lower Crime
MINISTRY OF JUSTICE,LEGAL AID AGENCY,31/08/2016,Lower Crime,LEGAL AID FUND,TUCKERS SOLICITORS LLP,1049468:145131803," 43,300.00 ",Legal Aid Payment Lower Crime
MINISTRY OF JUSTICE,LEGAL AID AGENCY,31/08/2016,Lower Crime,LEGAL AID FUND,TUCKERS SOLICITORS LLP,1049466:145131454," 80,900.00 ",Legal Aid Payment Lower Crime
MINISTRY OF JUSTICE,LEGAL AID AGENCY,31/08/2016,Lower Crime,LEGAL AID FUND,TUCKERS SOLICITORS LLP,1049467:145131450," 110,000.00 ",Legal Aid Payment Lower Crime
MINISTRY OF JUSTICE,LEGAL AID AGENCY,03/08/2016,Higher Crime,LEGAL AID FUND,TYRONE G SMITH,1028418:144915143," 45,611.21 ",Legal Aid Payment Higher Crime
MINISTRY OF JUSTICE,LEGAL AID AGENCY,03/08/2016,Civil Representation,LEGAL AID FUND,UK LAW,1028560:144882634,"-28,395.30 ",Legal Aid Payment Civil Representation
MINISTRY OF JUSTICE,LEGAL AID AGENCY,03/08/2016,Civil Representation,LEGAL AID FUND,UK LAW,1028560:144882609," 29,752.68 ",Legal Aid Payment Civil Representation
MINISTRY OF JUSTICE,LEGAL AID AGENCY,31/08/2016,Lower Crime,LEGAL AID FUND,USMANI KING LTD,1048637:145132154," 38,450.00 ",Legal Aid Payment Lower Crime
MINISTRY OF JUSTICE,LEGAL AID AGENCY,10/08/2016,Higher Crime,LEGAL AID FUND,VEDRANA PEHAR,1035458:144934393," 43,248.00 ",Legal Aid Payment Higher Crime
MINISTRY OF JUSTICE,LEGAL AID AGENCY,24/08/2016,Higher Crime,LEGAL AID FUND,VEJA & CO LTD,1044457:145078984," 61,170.87 ",Legal Aid Payment Higher Crime
MINISTRY OF JUSTICE,LEGAL AID AGENCY,24/08/2016,Higher Crime,LEGAL AID FUND,VEJA & CO LTD,1044457:145079101," 85,185.59 ",Legal Aid Payment Higher Crime
MINISTRY OF JUSTICE,LEGAL AID AGENCY,24/08/2016,Civil Representation,LEGAL AID FUND,VENTERS SOLICITORS,1043481:145052814," 25,252.82 ",Legal Aid Payment Civil Representation
MINISTRY OF JUSTICE,LEGAL AID AGENCY,10/08/2016,Higher Crime,LEGAL AID FUND,VHS FLETCHERS,1035830:144959505," 27,046.00 ",Legal Aid Payment Higher Crime
MINISTRY OF JUSTICE,LEGAL AID AGENCY,31/08/2016,Lower Crime,LEGAL AID FUND,VHS FLETCHERS,1045336:145131599," 29,200.00 ",Legal Aid Payment Lower Crime
MINISTRY OF JUSTICE,LEGAL AID AGENCY,31/08/2016,Lower Crime,LEGAL AID FUND,VHS FLETCHERS,1049103:145131460," 66,500.00 ",Legal Aid Payment Lower Crime
MINISTRY OF JUSTICE,LEGAL AID AGENCY,31/08/2016,Lower Crime,LEGAL AID FUND,VICKERS CHISMAN & WISHLADE,1049248:145131477," 43,800.00 ",Legal Aid Payment Lower Crime
MINISTRY OF JUSTICE,LEGAL AID AGENCY,03/08/2016,Higher Crime,LEGAL AID FUND,VIRDEES SOLICITORS LTD,1029893:144876797," 26,407.45 ",Legal Aid Payment Higher Crime
MINISTRY OF JUSTICE,LEGAL AID AGENCY,24/08/2016,Higher Crime,LEGAL AID FUND,VIRDEES SOLICITORS LTD,1043282:145049795," 77,592.85 ",Legal Aid Payment Higher Crime
MINISTRY OF JUSTICE,LEGAL AID AGENCY,31/08/2016,Higher Crime,LEGAL AID FUND,VIRDEES SOLICITORS LTD,1047771:145134724," 46,635.44 ",Legal Aid Payment Higher Crime
MINISTRY OF JUSTICE,LEGAL AID AGENCY,03/08/2016,Higher Crime,LEGAL AID FUND,VYMAN SOLICITORS LTD,1031539:144896277," 25,426.80 ",Legal Aid Payment Higher Crime
MINISTRY OF JUSTICE,LEGAL AID AGENCY,31/08/2016,Lower Crime,LEGAL AID FUND,VYMAN SOLICITORS LTD,1048464:145132518," 45,411.00 ",Legal Aid Payment Lower Crime
MINISTRY OF JUSTICE,LEGAL AID AGENCY,31/08/2016,Lower Crime,LEGAL AID FUND,W M B LAW LTD,1048837:145132644," 25,629.00 ",Legal Aid Payment Lower Crime
MINISTRY OF JUSTICE,LEGAL AID AGENCY,24/08/2016,Higher Crime,LEGAL AID FUND,WAINS,1043988:145069517," 32,184.01 ",Legal Aid Payment Higher Crime
MINISTRY OF JUSTICE,LEGAL AID AGENCY,31/08/2016,Higher Crime,LEGAL AID FUND,WAINWRIGHT & CUMMINS LLP,1048440:145134182," 29,707.04 ",Legal Aid Payment Higher Crime
MINISTRY OF JUSTICE,LEGAL AID AGENCY,31/08/2016,Lower Crime,LEGAL AID FUND,WAINWRIGHT & CUMMINS LLP,1048440:145131610," 42,000.00 ",Legal Aid Payment Lower Crime
MINISTRY OF JUSTICE,LEGAL AID AGENCY,03/08/2016,Higher Crime,LEGAL AID FUND,WALDRONS SOLICITORS,1031762:144875668," 40,229.82 ",Legal Aid Payment Higher Crime
MINISTRY OF JUSTICE,LEGAL AID AGENCY,31/08/2016,Lower Crime,LEGAL AID FUND,WALKER LAHIVE,1049204:145132594," 30,230.00 ",Legal Aid Payment Lower Crime
MINISTRY OF JUSTICE,LEGAL AID AGENCY,03/08/2016,Higher Crime,LEGAL AID FUND,WALTERS SOLICITORS,1029854:144914856," 31,399.12 ",Legal Aid Payment Higher Crime
MINISTRY OF JUSTICE,LEGAL AID AGENCY,18/08/2016,Higher Crime,LEGAL AID FUND,WARWICK SOLICITORS,1039112:145009954," 55,701.82 ",Legal Aid Payment Higher Crime
MINISTRY OF JUSTICE,LEGAL AID AGENCY,10/08/2016,Higher Crime,LEGAL AID FUND,WATSON WOODHOUSE SOLICITORS LLP,1033894:144949250," 74,492.30 ",Legal Aid Payment Higher Crime
MINISTRY OF JUSTICE,LEGAL AID AGENCY,31/08/2016,Lower Crime,LEGAL AID FUND,WATSON WOODHOUSE SOLICITORS LLP,1049461:145131703," 29,500.00 ",Legal Aid Payment Lower Crime
MINISTRY OF JUSTICE,LEGAL AID AGENCY,31/08/2016,Lower Crime,LEGAL AID FUND,WELLS BURCOMBE LLP,1048134:145132150," 41,057.00 ",Legal Aid Payment Lower Crime
MINISTRY OF JUSTICE,LEGAL AID AGENCY,31/08/2016,Lower Crime,LEGAL AID FUND,WELLS BURCOMBE LLP,1047827:145132787," 60,432.00 ",Legal Aid Payment Lower Crime
MINISTRY OF JUSTICE,LEGAL AID AGENCY,31/08/2016,Lower Crime,LEGAL AID FUND,WESSEX SOLICITORS CHAMBERS,1048068:145131456," 38,600.00 ",Legal Aid Payment Lower Crime
MINISTRY OF JUSTICE,LEGAL AID AGENCY,24/08/2016,Higher Crime,LEGAL AID FUND,WEST MIDLANDS SOLICITORS,1043373:145098513," 107,970.13 ",Legal Aid Payment Higher Crime
MINISTRY OF JUSTICE,LEGAL AID AGENCY,24/08/2016,Civil Representation,LEGAL AID FUND,WHITE & CO,1043636:145065177," 26,056.03 ",Legal Aid Payment Civil Representation
MINISTRY OF JUSTICE,LEGAL AID AGENCY,31/08/2016,Legal Help,LEGAL AID FUND,WICK & CO,1050028:145130805," 25,022.00 ",Legal Aid Payment Legal Help
MINISTRY OF JUSTICE,LEGAL AID AGENCY,03/08/2016,Higher Crime,LEGAL AID FUND,WILL J MARTIN,1030757:144909341," 33,200.00 ",Legal Aid Payment Higher Crime
MINISTRY OF JUSTICE,LEGAL AID AGENCY,10/08/2016,Higher Crime,LEGAL AID FUND,WILLIAM CLEGG QC,1032710:144934388," 87,408.00 ",Legal Aid Payment Higher Crime
MINISTRY OF JUSTICE,LEGAL AID AGENCY,18/08/2016,Civil Representation,LEGAL AID FUND,WILLIAM J TYLER,1038237:145044235,"-52,390.80 ",Legal Aid Payment Civil Representation
MINISTRY OF JUSTICE,LEGAL AID AGENCY,18/08/2016,Civil Representation,LEGAL AID FUND,WILLIAM J TYLER,1038237:145013970," 56,622.24 ",Legal Aid Payment Civil Representation
MINISTRY OF JUSTICE,LEGAL AID AGENCY,24/08/2016,Civil Representation,LEGAL AID FUND,WILLIAM J TYLER,1042575:145102245,"-56,622.24 ",Legal Aid Payment Civil Representation
MINISTRY OF JUSTICE,LEGAL AID AGENCY,24/08/2016,Civil Representation,LEGAL AID FUND,WILLIAM J TYLER,1042575:145102244," 66,614.40 ",Legal Aid Payment Civil Representation
MINISTRY OF JUSTICE,LEGAL AID AGENCY,18/08/2016,Higher Crime,LEGAL AID FUND,WILLIAM RYAN,1037887:145000118," 25,225.20 ",Legal Aid Payment Higher Crime
Ministry of Justice,LAA,24/08/2016,265000-IT & Telecommunications,VA294-ISD,WILLIAMS LEA LTD,2006547," 27,812.16 ",Printing Costs
Ministry of Justice,LAA,24/08/2016,265000-IT & Telecommunications,VA294-ISD,WILLIAMS LEA LTD,2006547," 28,337.14 ",Printing Costs
MINISTRY OF JUSTICE,LEGAL AID AGENCY,03/08/2016,Civil Representation,LEGAL AID FUND,WILSON BROWNE LLP,1028838:3000000783240010," 31,692.65 ",Legal Aid Payment Civil Representation
MINISTRY OF JUSTICE,LEGAL AID AGENCY,31/08/2016,Lower Crime,LEGAL AID FUND,WILSON DEVONALD GRIFFITHS JOHN,1048985:145131465," 45,000.00 ",Legal Aid Payment Lower Crime
MINISTRY OF JUSTICE,LEGAL AID AGENCY,10/08/2016,Civil Representation,LEGAL AID FUND,WILSON SOLICITORS LLP,1033697:144908228,"-26,549.47 ",Legal Aid Payment Civil Representation
MINISTRY OF JUSTICE,LEGAL AID AGENCY,10/08/2016,Civil Representation,LEGAL AID FUND,WILSON SOLICITORS LLP,1033697:144908215," 26,583.07 ",Legal Aid Payment Civil Representation
MINISTRY OF JUSTICE,LEGAL AID AGENCY,31/08/2016,Legal Help,LEGAL AID FUND,WILSON SOLICITORS LLP,1048928:145141144," 195,500.00 ",Legal Aid Payment Legal Help
MINISTRY OF JUSTICE,LEGAL AID AGENCY,31/08/2016,Legal Help,LEGAL AID FUND,WOLTON & CO,1048507:145130595," 29,633.00 ",Legal Aid Payment Legal Help
MINISTRY OF JUSTICE,LEGAL AID AGENCY,31/08/2016,Lower Crime,LEGAL AID FUND,WOODS SOLICITORS,1048339:145132378," 44,612.00 ",Legal Aid Payment Lower Crime
MINISTRY OF JUSTICE,LEGAL AID AGENCY,03/08/2016,Higher Crime,LEGAL AID FUND,WOOLLCOMBE & YONGE,1030340:144896567," 35,824.12 ",Legal Aid Payment Higher Crime
MINISTRY OF JUSTICE,LEGAL AID AGENCY,24/08/2016,Higher Crime,LEGAL AID FUND,WOOLLCOMBE & YONGE,1044833:145079047," 89,975.11 ",Legal Aid Payment Higher Crime
MINISTRY OF JUSTICE,LEGAL AID AGENCY,31/08/2016,Lower Crime,LEGAL AID FUND,YARWOOD & STUBLEY,1049459:145131616," 35,900.00 ",Legal Aid Payment Lower Crime
MINISTRY OF JUSTICE,LEGAL AID AGENCY,31/08/2016,Higher Crime,LEGAL AID FUND,YASIN A PATEL,1047549:145145895," 31,970.42 ",Legal Aid Payment Higher Crime
MINISTRY OF JUSTICE,LEGAL AID AGENCY,18/08/2016,Civil Representation,LEGAL AID FUND,ZACHARIA & CO,1039162:144890213," 40,500.14 ",Legal Aid Payment Civil Representation
